Workbook

Sheet Task1
A1: 3.099633746 | B1: -0.31096808 | C1: -6.415380492 | E1: =_xll.Randomness_Criterion(A1:A98, TRUE) -> 7.055023232e-11 | F1: P-Value (Abbe) | G1: 1.601111247 | H1: Statistics | J1: =_xll.HistogramAuto(A1:A98) -> -0.9119110479 | K1: 0.02040816327 | V1: Kolmogorov | AC1: Chi
A2: 2.512721019 | B2: 0.6163579975 | C2: -0.7405960491 | E2: 0.4056510829 | F2: P-Value (Series) | G2: 8 | H2: N-Series | J2: -0.4135890965 | K2: 0.01020408163 | W2: Dn | X2: p-val | Y2: params | AE2: DF | AF2: p-val | AG2: params
A3: 2.215574279 | B3: -0.4756300308 | C3: -0.8285137799 | E3: 0.02400574898 | F3: P-Value (Up&Dn) | G3: 75 | H3: N-Series | J3: 0.08473285486 | K3: 0.0306122449 | V3: =_xll.Distributions_List() -> Normal | W3: =_xll.Kolmogorov_DistributionTesting(A1:A98, V3:V11) -> 0.746562502 | X3: 0.6329564729 | Y3: 3.152598149 | Z3: 3.151807906 | AA3: Normal | AC3: =_xll.Distributions_List() -> Normal | AD3: =_xll.Chi_Square_DistributionTesting(A1:A98,AC3:AC11) -> 16.16411628 | AE3: 10 | AF3: 0.09502977511 | AG3: 3.118760762 | AH3: 3.024841738 | AI3: Normal
A4: 0.7834879697 | B4: -1.603827861 | C4: -8.497261894 | E4: 0.9731679673 | F4: P-Value (Up&Dn) | G4: 4 | H4: Series Length | J4: 0.5830548062 | K4: 0.05102040816 | V4: Laplace | W4: 1.012920486 | X4: 0.2564064212 | Y4: 3.283057123 | Z4: 0.7277276496 | AA4: Laplace | AC4: Laplace | AD4: 17.29236701 | AE4: 10 | AF4: 0.06813983708 | AG4: 3.255161027 | AH4: 0.7319336845 | AI4: Laplace
A5: 1.495694691 | B5: -0.08326710304 | C5: -1.121466848 | E5: 0.7241113187 | F5: P-Value (Inversion) | G5: 2434 | H5: N-Inversions | J5: 1.081376758 | K5: 0.04081632653 | V5: Pareto | AA5: Pareto | AC5: Pareto | AI5: Pareto
A6: 5.904241285 | B6: 0.4117610359 | C6: -1.284714802 | J6: 1.579698709 | K6: 0.04081632653 | V6: Exponential | W6: 3.421651115 | X6: 0 | Y6: 0.317198689 | AA6: Exponential | AC6: Exponential | AD6: 97.69258845 | AE6: 11 | AF6: 5.551115123e-16 | AG6: 0.3218848427 | AI6: Exponential
A7: -0.2263337569 | B7: 0.5796270524 | C7: -8.648489703 | E7: =_xll.Randomness_Criterion(B1:B97, TRUE) -> 0.2937201603 | F7: P-Value (Abbe) | G7: 0.8939621533 | H7: Statistics | J7: 2.07802066 | K7: 0.1428571429 | V7: Gamma | W7: 1.178561438 | X7: 0.1242937985 | Y7: 3.153388591 | Z7: 1.000250727 | AA7: Gamma | AC7: Gamma | AE7: 10 | AF7: 0 | AG7: 5.771422516 | AH7: 3.618284653 | AI7: Gamma
A8: 7.559562125 | B8: 0.41639342 | C8: -2.414206897 | E8: 0.3419078075 | F8: P-Value (Series) | G8: 47 | H8: N-Series | J8: 2.576342612 | K8: 0.07142857143 | V8: Weibull | W8: 9.394418664 | X8: 0 | Y8: 0.01172330025 | Z8: 3.399097491e+128 | AA8: Weibull | AC8: Weibull | AE8: 10 | AF8: 0 | AG8: 2.629757226 | AH8: 3.399097491e+128 | AI8: Weibull
A9: 1.959702824 | B9: 0.3916873718 | C9: -1.372375633 | E9: 0.4658321965 | F9: P-Value (Up&Dn) | G9: 62 | H9: N-Series | J9: 3.074664563 | K9: 0.112244898 | V9: Variance Gamma | AA9: Variance Gamma | AC9: Variance Gamma | AI9: Variance Gamma
A10: 3.630218659 | B10: -0.6913254125 | C10: -8.766373566 | E10: 0.9721263917 | F10: P-Value (Up&Dn) | G10: 4 | H10: Series Length | J10: 3.572986514 | K10: 0.1428571429 | V10: Uniform [A,B] | W10: 1.936110916 | X10: 0.001109435689 | Y10: -0.9212162627 | Z10: 7.636700514 | AA10: Uniform [A,B] | AC10: Uniform [A,B] | AD10: 33.85393395 | AE10: 10 | AF10: 0.0001955193594 | AG10: -0.3007228086 | AH10: 6.572643048 | AI10: Uniform [A,B]
A11: 3.657354084 | B11: 0.154181182 | C11: -2.474116251 | E11: 0.02215953557 | F11: P-Value (Inversion) | G11: 2695 | H11: N-Inversions | J11: 4.071308466 | K11: 0.112244898 | V11: Cauchy | W11: 1.46368033 | X11: 0.02755495139 | Y11: 3.283057123 | Z11: 0.7229432952 | AA11: Cauchy | AC11: Cauchy | AD11: 26.55394087 | AE11: 10 | AF11: 0.003062433793 | AG11: 3.219536242 | AH11: 0.9875531915 | AI11: Cauchy
A12: 3.303002977 | B12: -0.1743127509 | C12: -2.278469918 | J12: 4.569630417 | K12: 0.07142857143
A13: 6.158756217 | B13: 0.6042558942 | C13: -9.666741207 | E13: =_xll.Randomness_Criterion(C1:C98, TRUE) -> 0 | F13: P-Value (Abbe) | G13: 0.3343407156 | H13: Statistics | J13: 5.067952369 | K13: 0.04081632653
A14: -0.07036461321 | B14: -0.3453249282 | C14: -2.676237666 | F14: P-Value (Series) | G14: 1 | H14: N-Series | J14: 5.56627432 | K14: 0.02040816327
A15: 6.455353338 | B15: 0.1127020433 | C15: -2.4003448 | E15: 0.8719225359 | F15: P-Value (Up&Dn) | G15: 65 | H15: N-Series | J15: 6.064596271 | K15: 0.04081632653
A16: 2.014323862 | B16: 0.04128612272 | C16: -9.752974962 | E16: 1 | F16: P-Value (Up&Dn) | G16: 2 | H16: Series Length | J16: 6.562918223 | K16: 0.02040816327
A17: 3.990415013 | B17: 0.919431723 | C17: -3.665144011 | E17: 0 | F17: P-Value (Inversion) | G17: 4093 | H17: N-Inversions | J17: 7.061240174 | K17: 0.01020408163
A18: 3.948060511 | B18: 0.1656270309 | C18: -2.572179357 | J18: 7.559562125 | K18: 0.02040816327
A19: 1.845225738 | B19: -0.1261552586 | C19: -10.00042131
A20: 6.047007845 | B20: 1.323279103 | C20: -4.504182967 | J20: =_xll.HistogramAuto(B1:B97) -> -1.81153238 | K20: 0.01030927835 | V20: Kolmogorov | AC20: Chi
A21: 0.261900705 | B21: 0.3630244956 | C21: -3.028135481 | J21: -1.627131705 | K21: 0.01030927835 | W21: Dn | X21: p-val | Y21: params | AE21: DF | AF21: p-val | AG21: params
A22: 5.953185762 | B22: -0.5957824918 | C22: -10.71275229 | J22: -1.442731029 | K22: 0 | V22: =_xll.Distributions_List() -> Normal | W22: =_xll.Kolmogorov_DistributionTesting(B1:B97,V22:V27) -> 0.6513986065 | X22: 0.7898436984 | Y22: -0.08193748147 | Z22: 0.3710540185 | AA22: Normal | AC22: =_xll.Distributions_List() -> Normal | AD22: =_xll.Chi_Square_DistributionTesting(B1:B97,AC22:AC27) -> 19.91210826 | AE22: 11 | AF22: 0.04656070063 | AG22: -0.08813241745 | AH22: 0.3606712798 | AI22: Normal
A23: 2.399915283 | B23: 0.521625744 | C23: -6.595492173 | J23: -1.258330354 | K23: 0.05154639175 | V23: Laplace | W23: 1.106122184 | X23: 0.1729912996 | Y23: 0.007971560861 | Z23: 2.09872793 | AA23: Laplace | AC23: Laplace | AD23: 24.63713492 | AE23: 11 | AF23: 0.01029879621 | AG23: 0.007281293313 | AH23: 2.09220088 | AI23: Laplace
A24: 4.616470563 | B24: 0.4579304635 | C24: -3.34098123 | J24: -1.073929678 | K24: 0.0206185567 | V24: Pareto | AA24: Pareto | AC24: Pareto | AI24: Pareto
A25: 2.150531194 | B25: -0.5320100049 | C25: -11.04271361 | J25: -0.8895290028 | K25: 0.0206185567 | V25: Exponential | AA25: Exponential | AC25: Exponential | AI25: Exponential
A26: 5.363776403 | B26: 0.5233821896 | C26: -7.083352119 | J26: -0.7051283274 | K26: 0.03092783505 | V26: Gamma | AA26: Gamma | AC26: Gamma | AI26: Gamma
A27: 2.263353139 | B27: -1.203512674 | C27: -3.723372905 | J27: -0.5207276519 | K27: 0.1340206186 | V27: Weibull | W27: 9.848857802 | X27: 0 | Y27: 0.2612607413 | Z27: -226.6756983 | AA27: Weibull | AC27: Weibull | AE27: 11 | AF27: 0 | AG27: 2.879294667 | AH27: -224.0576644 | AI27: Weibull
A28: 3.972807141 | B28: 0.5611747227 | C28: -11.40470571 | J28: -0.3363269764 | K28: 0.1030927835
A29: 3.220249258 | B29: -0.6742241948 | C29: -7.847714797 | J29: -0.1519263009 | K29: 0.07216494845
A30: 2.662321998 | B30: 0.1982081319 | C30: -4.188431888 | J30: 0.03247437455 | K30: 0.1855670103
A31: 2.509546496 | B31: 0.06151419967 | C31: -11.47920919 | J31: 0.21687505 | K31: 0.0824742268
A32: 4.406926907 | B32: 0.01034565768 | C32: -8.357440894 | J32: 0.4012757255 | K32: 0.1030927835
A33: 2.168962398 | B33: 0.6371651225 | C33: -4.575074291 | J33: 0.585676401 | K33: 0.09278350515
A34: 2.996587044 | B34: 0.3267567889 | C34: -12.64925378 | J34: 0.7700770765 | K34: 0.0206185567
A35: 4.03235389 | B35: -0.9884735468 | C35: -9.214951802 | J35: 0.954477752 | K35: 0.03092783505
A36: 0.98169379 | B36: -0.2822279974 | C36: -5.729223218 | J36: 1.138878427 | K36: 0.0206185567
A37: 4.510035215 | B37: 0.2342828226 | C37: -12.848636 | J37: 1.323279103 | K37: 0.01030927835
A38: 3.148540733 | B38: 0.1238776697 | C38: -9.899558626
A39: 0.5134822558 | B39: 0.861411113 | C39: -6.193787643 | J39: =_xll.HistogramAuto(C1:C98) -> -30.15279419 | K39: 0.01020408163 | V39: Kolmogorov | AC39: Chi
A40: 6.842816958 | B40: -0.3482973747 | C40: -13.2021753 | J40: -28.42266489 | K40: 0.01020408163 | W40: Dn | X40: p-val | Y40: params | AE40: DF | AF40: p-val | AG40: params
A41: 0.8085515214 | B41: 0.8834149372 | C41: -10.89445185 | J41: -26.69253559 | K41: 0.04081632653 | V41: =_xll.Distributions_List() -> Normal | W41: =_xll.Kolmogorov_DistributionTesting(C1:C98, V41:V49) -> 0.7628572034 | X41: 0.6055707579 | Y41: -13.08360088 | Z41: 58.70956699 | AA41: Normal | AC41: =_xll.Distributions_List() -> Normal | AD41: =_xll.Chi_Square_DistributionTesting(C1:C98, AC41:AC49) -> 31.69504991 | AE41: 14 | AF41: 0.004425505736 | AG41: -13.13311813 | AH41: 56.96340364 | AI41: Normal
A42: 5.300807042 | B42: -0.3999870599 | C42: -6.933315941 | J42: -24.96240628 | K42: 0.0612244898 | V42: Laplace | W42: 0.8582441301 | X42: 0.4528816562 | Y42: -12.30421917 | Z42: 0.1589752852 | AA42: Laplace | AC42: Laplace | AD42: 1.659626807e+20 | AE42: 14 | AF42: 0 | AG42: -9.686185243 | AH42: 2.777009211 | AI42: Laplace
A43: 3.398642513 | B43: 0.1577133748 | C43: -13.65799178 | J43: -23.23227698 | K43: 0.0612244898 | V43: Pareto | W43: 1.224282152 | X43: 0.09978766943 | Y43: -0.9156238179 | Z43: -30.16299827 | AA43: Pareto | AC43: Pareto | AD43: -46329.23219 | AE43: 14 | AF43: 1 | AG43: 1.702410108 | AH43: -27.54496435 | AI43: Pareto
A44: 3.584040416 | B44: 1.050547493 | C44: -11.63184959 | J44: -21.50214768 | K44: 0.02040816327 | V44: Exponential | AA44: Exponential | AC44: Exponential | AI44: Exponential
A45: 2.825492643 | B45: 0.2170657953 | C45: -7.284523503 | J45: -19.77201838 | K45: 0.01020408163 | V45: Gamma | AA45: Gamma | AC45: Gamma | AI45: Gamma
A46: 4.542092726 | B46: -0.7551365026 | C46: -14.33591635 | J46: -18.04188907 | K46: 0.07142857143 | V46: Weibull | W46: 9.899494937 | X46: 0 | Y46: 0.01172327078 | Z46: -8.198219432e+127 | AA46: Weibull | AC46: Weibull | AE46: 14 | AF46: 0 | AG46: 2.629757196 | AH46: -8.198219432e+127 | AI46: Weibull
A47: 4.844385988 | B47: -0.5628539619 | C47: -11.95918455 | J47: -16.31175977 | K47: 0.0612244898 | V47: Variance Gamma | AA47: Variance Gamma | AC47: Variance Gamma | AI47: Variance Gamma
A48: 2.371705248 | B48: 0.4140000216 | C48: -7.735006873 | J48: -14.58163047 | K48: 0.07142857143 | V48: Uniform [A,B] | W48: 1.627039219 | X48: 0.01003811374 | Y48: -30.46047576 | Z48: -0.733115281 | AA48: Uniform [A,B] | AC48: Uniform [A,B] | AD48: 17.46842104 | AE48: 14 | AF48: 0.2320736819 | AG48: -27.88781049 | AH48: -0.7405960492 | AI48: Uniform [A,B]
A49: 3.307833024 | B49: 0.5371635321 | C49: -14.90169285 | J49: -12.85150117 | K49: 0.08163265306 | V49: Cauchy | W49: 1.290528952 | X49: 0.07151639902 | Y49: -12.30421917 | Z49: 5.019695665 | AA49: Cauchy | AC49: Cauchy | AD49: 69.47804402 | AE49: 14 | AF49: 2.399064392e-09 | AG49: -12.11061366 | AH49: 4.889809074 | AI49: Cauchy
A50: 3.800892863 | B50: -0.288809843 | C50: -13.29538221 | J50: -11.12137186 | K50: 0.112244898
A51: 1.993388817 | B51: -0.5771757492 | C51: -8.327698953 | J51: -9.391242561 | K51: 0.08163265306
A52: 4.628921024 | B52: -0.06103165967 | C52: -17.0702525 | J52: -7.661113259 | K52: 0.08163265306
A53: 3.113377068 | B53: -0.3558249987 | C53: -13.34601962 | J53: -5.930983956 | K53: 0.04081632653
A54: 3.934355556 | B54: 0.8661593066 | C54: -8.605480295 | J54: -4.200854654 | K54: 0.0612244898
A55: 2.214047921 | B55: -0.026694113 | C55: -17.51284693 | J55: -2.470725352 | K55: 0.07142857143
A56: 3.843087855 | B56: -0.3863794318 | C56: -14.27969418 | J56: -0.7405960491 | K56: 0.05102040816
A57: 3.762220135 | B57: 0.007971560861 | C57: -10.2786472
A58: 1.833768007 | B58: -0.4224541224 | C58: -18.52497086
A59: 2.315562774 | B59: -0.8663909258 | C59: -15.59039699
A60: 2.985580545 | B60: -0.5689725691 | C60: -11.01457765
A61: 3.349222783 | B61: -0.4029981095 | C61: -20.45310176
A62: 3.48334999 | B62: -0.4827137181 | C62: -15.85743312
A63: 1.220417621 | B63: -0.2236669425 | C63: -11.77715111
A64: 3.37348065 | B64: 0.338048225 | C64: -22.62108593
A65: 3.933668291 | B65: 0.4167987536 | C65: -17.01265473
A66: 3.263111269 | B66: 0.09289860151 | C66: -11.93345497
A67: 3.189091983 | B67: -0.8341572536 | C67: -22.85766647
A68: 0.612631379 | B68: -0.5084427511 | C68: -17.7189551
A69: 3.367324339 | B69: -0.02872078102 | C69: -13.20152813
A70: 3.701408052 | B70: -0.07371281096 | C70: -23.03432671
A71: 2.433187094 | B71: 0.0265590018 | C71: -18.67379356
A72: 3.02273254 | B72: 0.06186162847 | C72: -13.62314044
A73: -0.9119110479 | B73: -0.1985555607 | C73: -24.57086097
A74: 4.006000418 | B74: 0.3324507609 | C74: -18.90112314
A75: 3.432618743 | B75: 0.1069887696 | C75: -14.39460148
A76: 1.769333726 | B76: -1.100480732 | C76: -24.87533486
A77: 5.334313618 | B77: -0.5233242848 | C77: -20.95845614
A78: 1.756899534 | B78: -0.05684321243 | C78: -14.62792975
A79: 6.48395217 | B79: -1.81153238 | C79: -25.02594187
A80: 0.04060633657 | B80: -0.4991200782 | C80: -21.35394821
A81: 5.232220555 | B81: 0.07346189016 | C81: -14.93082616
A82: 3.975535637 | B82: -0.5492270322 | C82: -25.28462464
A83: 1.765770675 | B83: -1.171452716 | C83: -22.7639025
A84: 4.587717146 | B84: 0.3076289032 | C84: -15.1578925
A85: 1.834374638 | B85: 0.06435153489 | C85: -25.92565926
A86: 4.280086842 | B86: -0.6056070062 | C86: -23.53963736
A87: 2.139023078 | B87: 0.02794871701 | C87: -16.39407278
A88: 1.094073909 | B88: 0.08243713423 | C88: -26.4271228
A89: 3.906909071 | B89: 0.6937188109 | C89: -23.58637191
A90: 3.434498525 | B90: 1.108645309 | C90: -17.12211323
A91: 4.653085856 | B91: 0.5034629382 | C91: -27.45126705
A92: 2.021871265 | B92: -0.5094271327 | C92: -24.23183762
A93: 3.584760413 | B93: -0.03034211543 | C93: -17.93832848
A94: 0.8341041453 | B94: -1.182145803 | C94: -28.28508079
A95: 4.846886698 | B95: -1.25979614 | C95: -25.04634686
A96: 0.5530955535 | B96: 0.1506682908 | C96: -18.16998777
A97: 7.543527535 | B97: -1.327872884 | C97: -30.15279419
A98: -0.8622110447 | C98: -25.93547632

Sheet SBER_170901_180430
A1: <TICKER> | B1: <PER> | C1: <DATE> | D1: <TIME> | E1: <OPEN> | F1: <HIGH> | G1: <LOW> | H1: <CLOSE> | I1: <VOL> | J1: profit | K1: hist
A2: SBER | B2: D | C2: 2017-09-01 | D2: 00:00:00 | E2: 183.85 | F2: 185.33 | G2: 182.02 | H2: 183.66 | I2: 34333540 | K2: =_xll.HistogramAuto(J3:J167) -> -0.1704315314 | L2: 0.006060606061
A3: SBER | B3: D | C3: 2017-09-04 | D3: 00:00:00 | E3: 181.82 | F3: 185.27 | G3: 180.93 | H3: 184.1 | I3: 25567970 | J3: =H3/H2-1 -> 0.002395731243 | K3: -0.1595261803 | L3: 0
A4: SBER | B4: D | C4: 2017-09-05 | D4: 00:00:00 | E4: 184.39 | F4: 185.59 | G4: 183.33 | H4: 184.14 | I4: 34325970 | J4: =H4/H3-1 -> 0.0002172732211 | K4: -0.1486208292 | L4: 0
A5: SBER | B5: D | C5: 2017-09-06 | D5: 00:00:00 | E5: 183.25 | F5: 183.73 | G5: 181.47 | H5: 183.12 | I5: 33457830 | J5: -0.005539263604 | K5: -0.137715478 | L5: 0
A6: SBER | B6: D | C6: 2017-09-07 | D6: 00:00:00 | E6: 183.47 | F6: 185.25 | G6: 183.32 | H6: 184 | I6: 45624850 | J6: 0.004805591962 | K6: -0.1268101269 | L6: 0
A7: SBER | B7: D | C7: 2017-09-08 | D7: 00:00:00 | E7: 184.1 | F7: 187.43 | G7: 183.77 | H7: 185.89 | I7: 60670380 | J7: 0.01027173913 | K7: -0.1159047758 | L7: 0
A8: SBER | B8: D | C8: 2017-09-11 | D8: 00:00:00 | E8: 186.7 | F8: 191.3 | G8: 186.51 | H8: 190.5 | I8: 61525610 | J8: 0.02479961267 | K8: -0.1049994247 | L8: 0
A9: SBER | B9: D | C9: 2017-09-12 | D9: 00:00:00 | E9: 191.03 | F9: 192.31 | G9: 188.14 | H9: 189.32 | I9: 50460340 | J9: -0.006194225722 | K9: -0.09409407357 | L9: 0
A10: SBER | B10: D | C10: 2017-09-13 | D10: 00:00:00 | E10: 189.3 | F10: 190.95 | G10: 188.4 | H10: 189.1 | I10: 47748710 | J10: -0.001162053666 | K10: -0.08318872245 | L10: 0
A11: SBER | B11: D | C11: 2017-09-14 | D11: 00:00:00 | E11: 189 | F11: 189.39 | G11: 186 | H11: 188.64 | I11: 38009640 | J11: -0.002432575357 | K11: -0.07228337133 | L11: 0
A12: SBER | B12: D | C12: 2017-09-15 | D12: 00:00:00 | E12: 188.68 | F12: 189.3 | G12: 186.72 | H12: 188.75 | I12: 44759670 | J12: 0.0005831212892 | K12: -0.06137802022 | L12: 0.006060606061
A13: SBER | B13: D | C13: 2017-09-18 | D13: 00:00:00 | E13: 189.58 | F13: 190.37 | G13: 187.31 | H13: 188.04 | I13: 29476890 | J13: -0.003761589404 | K13: -0.0504726691 | L13: 0
A14: SBER | B14: D | C14: 2017-09-19 | D14: 00:00:00 | E14: 187.65 | F14: 187.72 | G14: 184.55 | H14: 184.85 | I14: 41361960 | J14: -0.01696447564 | K14: -0.03956731798 | L14: 0.01818181818
A15: SBER | B15: D | C15: 2017-09-20 | D15: 00:00:00 | E15: 184.53 | F15: 186.47 | G15: 182.65 | H15: 186.47 | I15: 49971400 | J15: 0.008763862591 | K15: -0.02866196686 | L15: 0.02424242424
A16: SBER | B16: D | C16: 2017-09-21 | D16: 00:00:00 | E16: 186.35 | F16: 188.37 | G16: 183.8 | H16: 187.38 | I16: 41568220 | J16: 0.004880141578 | K16: -0.01775661575 | L16: 0.103030303
A17: SBER | B17: D | C17: 2017-09-22 | D17: 00:00:00 | E17: 187.36 | F17: 188.77 | G17: 186.77 | H17: 187.55 | I17: 37263860 | J17: 0.0009072473049 | K17: -0.00685126463 | L17: 0.2363636364
A18: SBER | B18: D | C18: 2017-09-25 | D18: 00:00:00 | E18: 187.33 | F18: 191.38 | G18: 186.37 | H18: 191.2 | I18: 64121250 | J18: 0.01946147694 | K18: 0.004054086487 | L18: 0.3393939394
A19: SBER | B19: D | C19: 2017-09-26 | D19: 00:00:00 | E19: 191.58 | F19: 195 | G19: 191.54 | H19: 192.54 | I19: 82022480 | J19: 0.007008368201 | K19: 0.0149594376 | L19: 0.1515151515 | N19: Kolmogorov
A20: SBER | B20: D | C20: 2017-09-27 | D20: 00:00:00 | E20: 192.94 | F20: 194.29 | G20: 191.2 | H20: 193.7 | I20: 54969700 | J20: 0.006024722136 | K20: 0.02586478872 | L20: 0.06666666667 | O20: Dn | P20: p-val | Q20: params
A21: SBER | B21: D | C21: 2017-09-28 | D21: 00:00:00 | E21: 193.63 | F21: 194.3 | G21: 191.53 | H21: 191.96 | I21: 39061930 | J21: -0.008982963345 | K21: 0.03677013984 | L21: 0.01818181818 | N21: =_xll.Distributions_List() -> Normal | O21: =_xll.Kolmogorov_DistributionTesting(J3:J167, N21:N30) -> 1.598926199 | P21: 0.01203443927 | Q21: 0.001543159889 | R21: 0.0005001267481 | U21: Normal
A22: SBER | B22: D | C22: 2017-09-29 | D22: 00:00:00 | E22: 191.96 | F22: 192.94 | G22: 190.8 | H22: 192.33 | I22: 26264260 | J22: 0.001927484893 | K22: 0.04767549096 | L22: 0.01818181818 | N22: Laplace | O22: 0.5098441463 | P22: 0.9572971558 | Q22: 0.001134044001 | R22: 74.22452045 | U22: Laplace
A23: SBER | B23: D | C23: 2017-10-02 | D23: 00:00:00 | E23: 192.71 | F23: 194.1 | G23: 191.1 | H23: 193 | I23: 35930460 | J23: 0.003483595903 | K23: 0.05858084207 | L23: 0.006060606061 | N23: Pareto | U23: Pareto
A24: SBER | B24: D | C24: 2017-10-03 | D24: 00:00:00 | E24: 193.25 | F24: 193.87 | G24: 192.13 | H24: 192.5 | I24: 28621470 | J24: -0.002590673575 | K24: 0.06948619319 | L24: 0 | N24: Exponential | O24: 1.184727751e+49 | P24: 0 | Q24: 648.0209907 | U24: Exponential
A25: SBER | B25: D | C25: 2017-10-04 | D25: 00:00:00 | E25: 192.49 | F25: 192.59 | G25: 191.22 | H25: 192.03 | I25: 26521660 | J25: -0.002441558442 | K25: 0.08039154431 | L25: 0.006060606061 | N25: Gamma | O25: 6.445398337 | P25: 0 | Q25: 0.004761477868 | R25: 3.085537606 | U25: Gamma
A26: SBER | B26: D | C26: 2017-10-05 | D26: 00:00:00 | E26: 192.18 | F26: 193.93 | G26: 189.06 | H26: 193.74 | I26: 49460980 | J26: 0.008904858616 | N26: Weibull | O26: 5.916591976 | P26: 0 | Q26: 0.2056590115 | R26: 61599.78292 | U26: Weibull
A27: SBER | B27: D | C27: 2017-10-06 | D27: 00:00:00 | E27: 194.3 | F27: 196.42 | G27: 193.67 | H27: 194.16 | I27: 52295530 | J27: 0.002167853825 | N27: Variance Gamma | O27: 2.776076478 | P27: 4.047266079e-07 | Q27: 0.001543159889 | R27: 0.0005001267481 | S27: -2.400792749 | T27: 21.73622618 | U27: Variance Gamma
A28: SBER | B28: D | C28: 2017-10-09 | D28: 00:00:00 | E28: 194.22 | F28: 194.9 | G28: 192.58 | H28: 194 | I28: 27725450 | J28: -0.0008240626288 | N28: Uniform [A,B] | O28: 6.820747593 | P28: 0 | Q28: -0.1714644498 | R28: 0.08087876579 | U28: Uniform [A,B]
A29: SBER | B29: D | C29: 2017-10-10 | D29: 00:00:00 | E29: 194.3 | F29: 194.45 | G29: 192.95 | H29: 193.21 | I29: 17816780 | J29: -0.004072164948 | N29: Cauchy | O29: 0.7648422113 | P29: 0.6022472323 | Q29: 0.001134044001 | R29: 0.00913769513 | U29: Cauchy
A30: SBER | B30: D | C30: 2017-10-11 | D30: 00:00:00 | E30: 193.94 | F30: 196.75 | G30: 193.56 | H30: 195.83 | I30: 57937770 | J30: 0.01356037472 | N30: Alpha Stable | O30: 4.28174415e+301 | P30: 0 | Q30: 0 | R30: 1 | S30: 2 | T30: 0 | U30: Alpha Stable
A31: SBER | B31: D | C31: 2017-10-12 | D31: 00:00:00 | E31: 195.83 | F31: 196.75 | G31: 194.95 | H31: 195.51 | I31: 34916020 | J31: -0.001634070367
A32: SBER | B32: D | C32: 2017-10-13 | D32: 00:00:00 | E32: 195.63 | F32: 197.29 | G32: 195.2 | H32: 196.48 | I32: 30319970 | J32: 0.004961383049 | N32: Chi
A33: SBER | B33: D | C33: 2017-10-16 | D33: 00:00:00 | E33: 197.53 | F33: 198.52 | G33: 196.7 | H33: 197.7 | I33: 26893430 | J33: 0.006209283388 | P33: DF | Q33: p-val | R33: params
A34: SBER | B34: D | C34: 2017-10-17 | D34: 00:00:00 | E34: 197.39 | F34: 198 | G34: 196.07 | H34: 197.2 | I34: 26202670 | J34: -0.002529084471 | N34: =_xll.Distributions_List() -> Normal | O34: =_xll.Chi_Square_DistributionTesting(J3:J167,N34:N43) -> 1993294898 | P34: 8 | Q34: 0 | R34: 156598.3115 | S34: 2.452309555e+10
A35: SBER | B35: D | C35: 2017-10-18 | D35: 00:00:00 | E35: 197.5 | F35: 197.89 | G35: 194.01 | H35: 195.31 | I35: 43528990 | J35: -0.009584178499 | N35: Laplace | O35: 2.944319496 | P35: 8 | Q35: 0.9378030086 | R35: 0.00122000013 | S35: 74.22453116
A36: SBER | B36: D | C36: 2017-10-19 | D36: 00:00:00 | E36: 195.26 | F36: 195.69 | G36: 191.81 | H36: 192.2 | I36: 40301270 | J36: -0.01592340382 | N36: Pareto
A37: SBER | B37: D | C37: 2017-10-20 | D37: 00:00:00 | E37: 193.54 | F37: 194.14 | G37: 192.23 | H37: 192.97 | I37: 28740370 | J37: 0.004006243496 | N37: Exponential | O37: 3.856539148e+50 | P37: 9 | Q37: 0 | R37: 653.476962
A38: SBER | B38: D | C38: 2017-10-23 | D38: 00:00:00 | E38: 193.43 | F38: 193.64 | G38: 190.82 | H38: 192.34 | I38: 26923870 | J38: -0.00326475618 | N38: Gamma | P38: 8 | Q38: 0 | R38: 2.622795403 | S38: 5.703571531
A39: SBER | B39: D | C39: 2017-10-24 | D39: 00:00:00 | E39: 191.69 | F39: 192.92 | G39: 190.13 | H39: 192.5 | I39: 28240990 | J39: 0.0008318602475 | N39: Weibull | P39: 8 | Q39: 0 | R39: 2.823692937 | S39: 61602.40096
A40: SBER | B40: D | C40: 2017-10-25 | D40: 00:00:00 | E40: 193.01 | F40: 194.37 | G40: 192.04 | H40: 192.04 | I40: 32243310 | J40: -0.00238961039 | N40: Variance Gamma | O40: 1.871598935 | P40: 6 | Q40: 0.9311205845 | R40: 0.001897819487 | S40: 0.000332014103 | T40: 0.4063555233 | U40: 3.260969489
A41: SBER | B41: D | C41: 2017-10-26 | D41: 00:00:00 | E41: 192.65 | F41: 193.5 | G41: 190.72 | H41: 192.75 | I41: 25609480 | J41: 0.003697146428 | N41: Uniform [A,B] | O41: 129.3962261 | P41: 8 | Q41: 0 | R41: -0.04170723599 | S41: 0.05199647884
A42: SBER | B42: D | C42: 2017-10-27 | D42: 00:00:00 | E42: 193.53 | F42: 196.18 | G42: 192.87 | H42: 196.05 | I42: 46711220 | J42: 0.01712062257 | N42: Cauchy | O42: 11.139193 | P42: 8 | Q42: 0.193936388 | R42: 0.001089786271 | S42: 0.008103813236
A43: SBER | B43: D | C43: 2017-10-30 | D43: 00:00:00 | E43: 196.32 | F43: 197.7 | G43: 195 | H43: 195 | I43: 31909280 | J43: -0.005355776588 | N43: Alpha Stable | P43: 6 | Q43: 0 | R43: 30.0344401 | S43: 31.0344401 | T43: 29.41640617 | U43: 30.0344401
A44: SBER | B44: D | C44: 2017-10-31 | D44: 00:00:00 | E44: 194.96 | F44: 196.36 | G44: 193.8 | H44: 193.8 | I44: 25598610 | J44: -0.006153846154
A45: SBER | B45: D | C45: 2017-11-01 | D45: 00:00:00 | E45: 194.5 | F45: 197.05 | G45: 193.33 | H45: 194.05 | I45: 40225200 | J45: 0.00128998968 | P45: Homo
A46: SBER | B46: D | C46: 2017-11-02 | D46: 00:00:00 | E46: 193.77 | F46: 195.12 | G46: 192.38 | H46: 193.85 | I46: 33696650 | J46: -0.0010306622 | P46: =_xll.Homogeneity_Test(J3:J86,J87:J167,TRUE) -> 0.1949136792 | Q46: P-Value (Kolmogorov) | R46: 0.167989418 | S46: Statistics D(n,m)
A47: SBER | B47: D | C47: 2017-11-03 | D47: 00:00:00 | E47: 194.77 | F47: 195.75 | G47: 193.2 | H47: 193.8 | I47: 30592540 | J47: -0.0002579313903 | P47: 0.7093640984 | Q47: P-Value (Wilcoxon) | R47: 6858 | S47: Statistics Wilcoxon
A48: SBER | B48: D | C48: 2017-11-07 | D48: 00:00:00 | E48: 196.5 | F48: 206.7 | G48: 195.56 | H48: 205.96 | I48: 134984670 | J48: 0.06274509804 | P48: 0.990587287 | Q48: P-Value (Klotz. Mean Value) | R48: -0.0008806373392 | S48: Statistics for Mean Value
A49: SBER | B49: D | C49: 2017-11-08 | D49: 00:00:00 | E49: 205.92 | F49: 211.77 | G49: 204.06 | H49: 209.09 | I49: 88243500 | J49: 0.01519712566 | P49: 0.003810335912 | Q49: P-Value (Klotz. Variance) | R49: 56.44556529 | S49: Statistics for Variance
A50: SBER | B50: D | C50: 2017-11-09 | D50: 00:00:00 | E50: 209.55 | F50: 221.5 | G50: 209.12 | H50: 220.05 | I50: 116612700 | J50: 0.05241761921
A51: SBER | B51: D | C51: 2017-11-10 | D51: 00:00:00 | E51: 221.01 | F51: 229.4 | G51: 216.61 | H51: 217.7 | I51: 143480020 | J51: -0.01067939105
A52: SBER | B52: D | C52: 2017-11-13 | D52: 00:00:00 | E52: 217.8 | F52: 223.99 | G52: 215.78 | H52: 216.61 | I52: 50915300 | J52: -0.005006890216
A53: SBER | B53: D | C53: 2017-11-14 | D53: 00:00:00 | E53: 216.51 | F53: 222.2 | G53: 215.96 | H53: 221.4 | I53: 45864370 | J53: 0.02211347583
A54: SBER | B54: D | C54: 2017-11-15 | D54: 00:00:00 | E54: 222.53 | F54: 227.75 | G54: 221.54 | H54: 225.95 | I54: 72148490 | J54: 0.02055103884
A55: SBER | B55: D | C55: 2017-11-16 | D55: 00:00:00 | E55: 227.73 | F55: 228.58 | G55: 219.09 | H55: 227.5 | I55: 85815540 | J55: 0.006859924762
A56: SBER | B56: D | C56: 2017-11-17 | D56: 00:00:00 | E56: 227.9 | F56: 228 | G56: 224.1 | H56: 225.65 | I56: 37914400 | J56: -0.008131868132
A57: SBER | B57: D | C57: 2017-11-20 | D57: 00:00:00 | E57: 225.7 | F57: 225.97 | G57: 223.16 | H57: 224.6 | I57: 18825310 | J57: -0.004653224019
A58: SBER | B58: D | C58: 2017-11-21 | D58: 00:00:00 | E58: 225.49 | F58: 232.99 | G58: 224.07 | H58: 231 | I58: 77525730 | J58: 0.0284951024
A59: SBER | B59: D | C59: 2017-11-22 | D59: 00:00:00 | E59: 231.88 | F59: 233.95 | G59: 228.38 | H59: 230.25 | I59: 45902740 | J59: -0.003246753247
A60: SBER | B60: D | C60: 2017-11-23 | D60: 00:00:00 | E60: 230.28 | F60: 230.99 | G60: 225.06 | H60: 225.56 | I60: 41134020 | J60: -0.02036916395
A61: SBER | B61: D | C61: 2017-11-24 | D61: 00:00:00 | E61: 225.4 | F61: 228 | G61: 222.15 | H61: 228 | I61: 44245160 | J61: 0.01081752084
A62: SBER | B62: D | C62: 2017-11-27 | D62: 00:00:00 | E62: 228.39 | F62: 229.04 | G62: 225 | H62: 226.76 | I62: 23975080 | J62: -0.005438596491
A63: SBER | B63: D | C63: 2017-11-28 | D63: 00:00:00 | E63: 221 | F63: 230 | G63: 221 | H63: 230 | I63: 39995960 | J63: 0.01428823426
A64: SBER | B64: D | C64: 2017-11-29 | D64: 00:00:00 | E64: 230.13 | F64: 231.5 | G64: 226.7 | H64: 228.2 | I64: 34326960 | J64: -0.007826086957
A65: SBER | B65: D | C65: 2017-11-30 | D65: 00:00:00 | E65: 228 | F65: 228.92 | G65: 222.35 | H65: 224.35 | I65: 46105250 | J65: -0.01687116564
A66: SBER | B66: D | C66: 2017-12-01 | D66: 00:00:00 | E66: 224.53 | F66: 225.76 | G66: 220.76 | H66: 221.5 | I66: 39944560 | J66: -0.01270336528
A67: SBER | B67: D | C67: 2017-12-04 | D67: 00:00:00 | E67: 222 | F67: 226 | G67: 219.55 | H67: 224.6 | I67: 45046220 | J67: 0.01399548533
A68: SBER | B68: D | C68: 2017-12-05 | D68: 00:00:00 | E68: 224 | F68: 224.55 | G68: 222 | H68: 223.91 | I68: 27865110 | J68: =H68/H67-1 -> -0.003072128228
A69: SBER | B69: D | C69: 2017-12-06 | D69: 00:00:00 | E69: 222.65 | F69: 224.9 | G69: 221.57 | H69: 223.75 | I69: 23099150 | J69: -0.0007145728194
A70: SBER | B70: D | C70: 2017-12-07 | D70: 00:00:00 | E70: 223.83 | F70: 224.79 | G70: 219.23 | H70: 219.81 | I70: 38205450 | J70: -0.01760893855
A71: SBER | B71: D | C71: 2017-12-08 | D71: 00:00:00 | E71: 219.9 | F71: 223 | G71: 219.61 | H71: 220.89 | I71: 28307760 | J71: 0.004913334243
A72: SBER | B72: D | C72: 2017-12-11 | D72: 00:00:00 | E72: 221.4 | F72: 227.69 | G72: 221.1 | H72: 227.69 | I72: 34512300 | J72: 0.0307845534
A73: SBER | B73: D | C73: 2017-12-12 | D73: 00:00:00 | E73: 228.92 | F73: 230.5 | G73: 226.11 | H73: 227.9 | I73: 39576840 | J73: 0.000922306645
A74: SBER | B74: D | C74: 2017-12-13 | D74: 00:00:00 | E74: 227.27 | F74: 228.33 | G74: 220.54 | H74: 221.8 | I74: 61563290 | J74: -0.02676612549
A75: SBER | B75: D | C75: 2017-12-14 | D75: 00:00:00 | E75: 222.16 | F75: 229.9 | G75: 221.1 | H75: 229.9 | I75: 55591560 | J75: 0.03651938683
A76: SBER | B76: D | C76: 2017-12-15 | D76: 00:00:00 | E76: 228.91 | F76: 229.79 | G76: 225.57 | H76: 226.53 | I76: 42473440 | J76: -0.01465854719
A77: SBER | B77: D | C77: 2017-12-18 | D77: 00:00:00 | E77: 227.5 | F77: 228.9 | G77: 225.7 | H77: 227.4 | I77: 24514050 | J77: 0.00384055092
A78: SBER | B78: D | C78: 2017-12-19 | D78: 00:00:00 | E78: 227.9 | F78: 228.5 | G78: 223.5 | H78: 224.1 | I78: 34973820 | J78: -0.01451187335
A79: SBER | B79: D | C79: 2017-12-20 | D79: 00:00:00 | E79: 224.45 | F79: 226.68 | G79: 222.7 | H79: 226 | I79: 34146960 | J79: 0.008478357876
A80: SBER | B80: D | C80: 2017-12-21 | D80: 00:00:00 | E80: 226.46 | F80: 227.39 | G80: 222.35 | H80: 223.6 | I80: 34746200 | J80: -0.01061946903
A81: SBER | B81: D | C81: 2017-12-22 | D81: 00:00:00 | E81: 223.68 | F81: 224.64 | G81: 221.12 | H81: 221.44 | I81: 21508710 | J81: -0.009660107335
A82: SBER | B82: D | C82: 2017-12-25 | D82: 00:00:00 | E82: 222.22 | F82: 223.9 | G82: 221.65 | H82: 223.3 | I82: 11153030 | J82: 0.008399566474
A83: SBER | B83: D | C83: 2017-12-26 | D83: 00:00:00 | E83: 223.52 | F83: 223.98 | G83: 221 | H83: 223.57 | I83: 12299330 | J83: 0.001209135692
A84: SBER | B84: D | C84: 2017-12-27 | D84: 00:00:00 | E84: 224.03 | F84: 227.2 | G84: 223.1 | H84: 226.98 | I84: 30086500 | J84: 0.01525249363
A85: SBER | B85: D | C85: 2017-12-28 | D85: 00:00:00 | E85: 226.9 | F85: 227.17 | G85: 223 | H85: 224.2 | I85: 24042990 | J85: -0.01224777513
A86: SBER | B86: D | C86: 2017-12-29 | D86: 00:00:00 | E86: 224.05 | F86: 226.2 | G86: 223.27 | H86: 225.2 | I86: 18911170 | J86: 0.004460303301
A87: SBER | B87: D | C87: 2018-01-03 | D87: 00:00:00 | E87: 226.88 | F87: 232.7 | G87: 226.35 | H87: 231.9 | I87: 34460110 | J87: 0.02975133215
A88: SBER | B88: D | C88: 2018-01-04 | D88: 00:00:00 | E88: 232.13 | F88: 239.5 | G88: 231 | H88: 238.8 | I88: 53575900 | J88: 0.0297542044
A89: SBER | B89: D | C89: 2018-01-05 | D89: 00:00:00 | E89: 238.85 | F89: 239.95 | G89: 236.7 | H89: 238.6 | I89: 31546930 | J89: -0.000837520938
A90: SBER | B90: D | C90: 2018-01-09 | D90: 00:00:00 | E90: 239.04 | F90: 243.76 | G90: 239.01 | H90: 240.4 | I90: 53158280 | J90: 0.007544006706
A91: SBER | B91: D | C91: 2018-01-10 | D91: 00:00:00 | E91: 240.41 | F91: 241.25 | G91: 237.06 | H91: 237.76 | I91: 39353510 | J91: -0.01098169717
A92: SBER | B92: D | C92: 2018-01-11 | D92: 00:00:00 | E92: 237.76 | F92: 240.88 | G92: 235.21 | H92: 239 | I92: 43062100 | J92: 0.005215343203
A93: SBER | B93: D | C93: 2018-01-12 | D93: 00:00:00 | E93: 239 | F93: 239 | G93: 236.05 | H93: 237.75 | I93: 30886330 | J93: -0.005230125523
A94: SBER | B94: D | C94: 2018-01-15 | D94: 00:00:00 | E94: 239.03 | F94: 240.97 | G94: 238 | H94: 238.85 | I94: 25651360 | J94: 0.004626708728
A95: SBER | B95: D | C95: 2018-01-16 | D95: 00:00:00 | E95: 239 | F95: 240 | G95: 236.01 | H95: 239.64 | I95: 25463890 | J95: 0.003307515177
A96: SBER | B96: D | C96: 2018-01-17 | D96: 00:00:00 | E96: 238.62 | F96: 239.82 | G96: 236.53 | H96: 239.82 | I96: 30496560 | J96: 0.00075112669
A97: SBER | B97: D | C97: 2018-01-18 | D97: 00:00:00 | E97: 240.5 | F97: 246.69 | G97: 240 | H97: 245.5 | I97: 64062190 | J97: 0.02368442999
A98: SBER | B98: D | C98: 2018-01-19 | D98: 00:00:00 | E98: 245.16 | F98: 245.98 | G98: 240.68 | H98: 242.45 | I98: 38974940 | J98: -0.01242362525
A99: SBER | B99: D | C99: 2018-01-22 | D99: 00:00:00 | E99: 242.97 | F99: 244.89 | G99: 241.41 | H99: 243.99 | I99: 25074510 | J99: 0.006351825119
A100: SBER | B100: D | C100: 2018-01-23 | D100: 00:00:00 | E100: 244.78 | F100: 246.25 | G100: 241.67 | H100: 244.4 | I100: 43952320 | J100: 0.001680396738
A101: SBER | B101: D | C101: 2018-01-24 | D101: 00:00:00 | E101: 244.2 | F101: 247.53 | G101: 242.32 | H101: 247.53 | I101: 31125880 | J101: 0.01280687398
A102: SBER | B102: D | C102: 2018-01-25 | D102: 00:00:00 | E102: 247.9 | F102: 251.65 | G102: 247.58 | H102: 250.64 | I102: 54982290 | J102: 0.01256413364
A103: SBER | B103: D | C103: 2018-01-26 | D103: 00:00:00 | E103: 249.6 | F103: 251.23 | G103: 245.93 | H103: 247 | I103: 35182810 | J103: -0.01452282158
A104: SBER | B104: D | C104: 2018-01-29 | D104: 00:00:00 | E104: 247.5 | F104: 250.79 | G104: 246 | H104: 250.48 | I104: 49177160 | J104: 0.01408906883
A105: SBER | B105: D | C105: 2018-01-30 | D105: 00:00:00 | E105: 248.53 | F105: 258.96 | G105: 247.91 | H105: 257.8 | I105: 65465450 | J105: 0.02922389013
A106: SBER | B106: D | C106: 2018-01-31 | D106: 00:00:00 | E106: 257.5 | F106: 264.79 | G106: 255.7 | H106: 264.5 | I106: 63661880 | J106: 0.02598913887
A107: SBER | B107: D | C107: 2018-02-01 | D107: 00:00:00 | E107: 265 | F107: 270.3 | G107: 260.6 | H107: 263.2 | I107: 73011770 | J107: -0.004914933837
A108: SBER | B108: D | C108: 2018-02-02 | D108: 00:00:00 | E108: 263.63 | F108: 264.83 | G108: 256.2 | H108: 257.32 | I108: 64628360 | J108: -0.02234042553
A109: SBER | B109: D | C109: 2018-02-05 | D109: 00:00:00 | E109: 254.93 | F109: 258.29 | G109: 252.6 | H109: 255.64 | I109: 45881050 | J109: -0.006528835691
A110: SBER | B110: D | C110: 2018-02-06 | D110: 00:00:00 | E110: 249.98 | F110: 262.55 | G110: 248.1 | H110: 258.94 | I110: 85504830 | J110: 0.01290877797
A111: SBER | B111: D | C111: 2018-02-07 | D111: 00:00:00 | E111: 263 | F111: 264.37 | G111: 256.26 | H111: 257.58 | I111: 53360650 | J111: -0.005252181973
A112: SBER | B112: D | C112: 2018-02-08 | D112: 00:00:00 | E112: 256.4 | F112: 259.76 | G112: 253.19 | H112: 253.19 | I112: 37153970 | J112: -0.0170432487
A113: SBER | B113: D | C113: 2018-02-09 | D113: 00:00:00 | E113: 249.48 | F113: 252.89 | G113: 244.13 | H113: 250.11 | I113: 81609160 | J113: -0.01216477744
A114: SBER | B114: D | C114: 2018-02-12 | D114: 00:00:00 | E114: 253 | F114: 256.36 | G114: 251.67 | H114: 255.05 | I114: 41723850 | J114: 0.01975130942
A115: SBER | B115: D | C115: 2018-02-13 | D115: 00:00:00 | E115: 255.87 | F115: 258.62 | G115: 254.7 | H115: 258.3 | I115: 43682560 | J115: 0.01274259949
A116: SBER | B116: D | C116: 2018-02-14 | D116: 00:00:00 | E116: 259.08 | F116: 263.37 | G116: 257.26 | H116: 262.03 | I116: 60335860 | J116: 0.01444057298
A117: SBER | B117: D | C117: 2018-02-15 | D117: 00:00:00 | E117: 267.53 | F117: 268.77 | G117: 264 | H117: 264.58 | I117: 60628960 | J117: 0.00973171011
A118: SBER | B118: D | C118: 2018-02-16 | D118: 00:00:00 | E118: 265.81 | F118: 267.97 | G118: 263.11 | H118: 266.99 | I118: 51896060 | J118: 0.009108776174
A119: SBER | B119: D | C119: 2018-02-19 | D119: 00:00:00 | E119: 267 | F119: 270 | G119: 265.3 | H119: 266.85 | I119: 24145990 | J119: -0.0005243642084
A120: SBER | B120: D | C120: 2018-02-20 | D120: 00:00:00 | E120: 266.86 | F120: 267.8 | G120: 264.72 | H120: 267.22 | I120: 24741410 | J120: 0.001386546749
A121: SBER | B121: D | C121: 2018-02-21 | D121: 00:00:00 | E121: 266.06 | F121: 279.2 | G121: 266.05 | H121: 279.2 | I121: 70353730 | J121: 0.04483197365
A122: SBER | B122: D | C122: 2018-02-22 | D122: 00:00:00 | E122: 277.96 | F122: 279.5 | G122: 275.52 | H122: 277.49 | I122: 50614960 | J122: -0.006124641834
A123: SBER | B123: D | C123: 2018-02-26 | D123: 00:00:00 | E123: 279 | F123: 285 | G123: 278.59 | H123: 279.97 | I123: 67356050 | J123: 0.008937259
A124: SBER | B124: D | C124: 2018-02-27 | D124: 00:00:00 | E124: 280.82 | F124: 280.99 | G124: 276.61 | H124: 278.21 | I124: 39968470 | J124: -0.006286387827
A125: SBER | B125: D | C125: 2018-02-28 | D125: 00:00:00 | E125: 276.02 | F125: 277.41 | G125: 272 | H125: 272.4 | I125: 52919980 | J125: -0.02088350527
A126: SBER | B126: D | C126: 2018-03-01 | D126: 00:00:00 | E126: 270.98 | F126: 277 | G126: 270.9 | H126: 275 | I126: 38940750 | J126: 0.009544787078
A127: SBER | B127: D | C127: 2018-03-02 | D127: 00:00:00 | E127: 274.4 | F127: 275.5 | G127: 268.56 | H127: 273 | I127: 46008780 | J127: -0.007272727273
A128: SBER | B128: D | C128: 2018-03-05 | D128: 00:00:00 | E128: 273.7 | F128: 278.84 | G128: 273.5 | H128: 277 | I128: 34090490 | J128: 0.01465201465
A129: SBER | B129: D | C129: 2018-03-06 | D129: 00:00:00 | E129: 278.5 | F129: 281.5 | G129: 274.03 | H129: 274.03 | I129: 40549160 | J129: -0.01072202166
A130: SBER | B130: D | C130: 2018-03-07 | D130: 00:00:00 | E130: 272.99 | F130: 276.72 | G130: 270.15 | H130: 274 | I130: 49951810 | J130: -0.0001094770646
A131: SBER | B131: D | C131: 2018-03-09 | D131: 00:00:00 | E131: 274.57 | F131: 275.48 | G131: 270.61 | H131: 274.6 | I131: 26306900 | J131: 0.002189781022
A132: SBER | B132: D | C132: 2018-03-12 | D132: 00:00:00 | E132: 276.05 | F132: 277.3 | G132: 273.55 | H132: 274.3 | I132: 23683510 | J132: =H132/H131-1 -> -0.001092498179
A133: SBER | B133: D | C133: 2018-03-13 | D133: 00:00:00 | E133: 274 | F133: 275.93 | G133: 272.66 | H133: 273.95 | I133: 34624050 | J133: -0.00127597521
A134: SBER | B134: D | C134: 2018-03-14 | D134: 00:00:00 | E134: 272.92 | F134: 273.4 | G134: 262.11 | H134: 262.5 | I134: 61740760 | J134: -0.04179594817
A135: SBER | B135: D | C135: 2018-03-15 | D135: 00:00:00 | E135: 263.01 | F135: 264.61 | G135: 253.29 | H135: 254.51 | I135: 77948620 | J135: -0.03043809524
A136: SBER | B136: D | C136: 2018-03-16 | D136: 00:00:00 | E136: 255.28 | F136: 257.98 | G136: 249.76 | H136: 256.15 | I136: 91829180 | J136: 0.006443754666
A137: SBER | B137: D | C137: 2018-03-19 | D137: 00:00:00 | E137: 257.8 | F137: 259.81 | G137: 250.01 | H137: 255 | I137: 42444330 | J137: -0.0044895569
A138: SBER | B138: D | C138: 2018-03-20 | D138: 00:00:00 | E138: 255.95 | F138: 257.34 | G138: 250.4 | H138: 257.15 | I138: 62915590 | J138: 0.008431372549
A139: SBER | B139: D | C139: 2018-03-21 | D139: 00:00:00 | E139: 258 | F139: 270 | G139: 257.23 | H139: 268.88 | I139: 69873420 | J139: 0.04561539957
A140: SBER | B140: D | C140: 2018-03-22 | D140: 00:00:00 | E140: 269.97 | F140: 271.8 | G140: 264.1 | H140: 265.5 | I140: 55515720 | J140: -0.01257066349
A141: SBER | B141: D | C141: 2018-03-23 | D141: 00:00:00 | E141: 259.03 | F141: 264.25 | G141: 259.03 | H141: 262 | I141: 45451970 | J141: -0.0131826742
A142: SBER | B142: D | C142: 2018-03-26 | D142: 00:00:00 | E142: 262.02 | F142: 264.87 | G142: 255 | H142: 255 | I142: 56781030 | J142: -0.02671755725
A143: SBER | B143: D | C143: 2018-03-27 | D143: 00:00:00 | E143: 256.99 | F143: 258.43 | G143: 252.27 | H143: 258 | I143: 45103320 | J143: 0.01176470588
A144: SBER | B144: D | C144: 2018-03-28 | D144: 00:00:00 | E144: 255.5 | F144: 256.12 | G144: 250.75 | H144: 251.5 | I144: 43708220 | J144: -0.02519379845
A145: SBER | B145: D | C145: 2018-03-29 | D145: 00:00:00 | E145: 252.14 | F145: 255.6 | G145: 252.14 | H145: 252.9 | I145: 33595950 | J145: 0.005566600398
A146: SBER | B146: D | C146: 2018-03-30 | D146: 00:00:00 | E146: 254.02 | F146: 254.49 | G146: 252.8 | H146: 253.57 | I146: 10854540 | J146: 0.002649268486
A147: SBER | B147: D | C147: 2018-04-02 | D147: 00:00:00 | E147: 253.6 | F147: 258.34 | G147: 249.99 | H147: 249.99 | I147: 35423370 | J147: -0.0141183894
A148: SBER | B148: D | C148: 2018-04-03 | D148: 00:00:00 | E148: 250.01 | F148: 251.93 | G148: 245.38 | H148: 251.6 | I148: 63712830 | J148: 0.00644025761
A149: SBER | B149: D | C149: 2018-04-04 | D149: 00:00:00 | E149: 252.22 | F149: 255.77 | G149: 249.09 | H149: 255.69 | I149: 51988700 | J149: 0.01625596184
A150: SBER | B150: D | C150: 2018-04-05 | D150: 00:00:00 | E150: 257.26 | F150: 262.89 | G150: 255.92 | H150: 262 | I150: 52541810 | J150: 0.0246783214
A151: SBER | B151: D | C151: 2018-04-06 | D151: 00:00:00 | E151: 260.64 | F151: 262.32 | G151: 256.01 | H151: 256.76 | I151: 40147790 | J151: -0.02
A152: SBER | B152: D | C152: 2018-04-09 | D152: 00:00:00 | E152: 255.1 | F152: 255.3 | G152: 205 | H152: 213 | I152: 249893540 | J152: -0.1704315314
A153: SBER | B153: D | C153: 2018-04-10 | D153: 00:00:00 | E153: 211.24 | F153: 224.47 | G153: 197 | H153: 215.48 | I153: 242110550 | J153: 0.01164319249
A154: SBER | B154: D | C154: 2018-04-11 | D154: 00:00:00 | E154: 213.98 | F154: 223.6 | G154: 204.24 | H154: 208 | I154: 185548360 | J154: -0.03471319844
A155: SBER | B155: D | C155: 2018-04-12 | D155: 00:00:00 | E155: 214.59 | F155: 218.39 | G155: 208.5 | H155: 212.21 | I155: 126646690 | J155: 0.02024038462
A156: SBER | B156: D | C156: 2018-04-13 | D156: 00:00:00 | E156: 213.36 | F156: 216.7 | G156: 203.14 | H156: 204.7 | I156: 106807820 | J156: -0.03538947269
A157: SBER | B157: D | C157: 2018-04-16 | D157: 00:00:00 | E157: 199.35 | F157: 208 | G157: 191.5 | H157: 192.06 | I157: 199130330 | J157: -0.06174890083
A158: SBER | B158: D | C158: 2018-04-17 | D158: 00:00:00 | E158: 203.03 | F158: 207.87 | G158: 200 | H158: 207.5 | I158: 168916840 | J158: 0.08039154431
A159: SBER | B159: D | C159: 2018-04-18 | D159: 00:00:00 | E159: 209.02 | F159: 219.93 | G159: 208.25 | H159: 215.87 | I159: 173838350 | J159: 0.0403373494
A160: SBER | B160: D | C160: 2018-04-19 | D160: 00:00:00 | E160: 217.34 | F160: 222.22 | G160: 212 | H160: 213.45 | I160: 133397880 | J160: -0.01121045073
A161: SBER | B161: D | C161: 2018-04-20 | D161: 00:00:00 | E161: 214.02 | F161: 216.27 | G161: 212.13 | H161: 215.36 | I161: 57747950 | J161: 0.008948231436
A162: SBER | B162: D | C162: 2018-04-23 | D162: 00:00:00 | E162: 216.48 | F162: 223.5 | G162: 213.22 | H162: 223.25 | I162: 116819360 | J162: 0.03663632987
A163: SBER | B163: D | C163: 2018-04-24 | D163: 00:00:00 | E163: 225.92 | F163: 228.43 | G163: 221.3 | H163: 223 | I163: 83740550 | J163: -0.001119820829
A164: SBER | B164: D | C164: 2018-04-25 | D164: 00:00:00 | E164: 220.13 | F164: 223.78 | G164: 218.2 | H164: 220.45 | I164: 69521980 | J164: -0.01143497758
A165: SBER | B165: D | C165: 2018-04-26 | D165: 00:00:00 | E165: 221.57 | F165: 222.59 | G165: 216 | H165: 220.7 | I165: 73144200 | J165: 0.001134044001
A166: SBER | B166: D | C166: 2018-04-27 | D166: 00:00:00 | E166: 221.37 | F166: 224.43 | G166: 217.62 | H166: 223.91 | I166: 81902940 | J166: 0.01454463072
A167: SBER | B167: D | C167: 2018-04-30 | D167: 00:00:00 | E167: 224.5 | F167: 228.2 | G167: 221.58 | H167: 226.99 | I167: 39339460 | J167: 0.01375552677

Sheet IMOEX_170901_180430
A1: <TICKER> | B1: <PER> | C1: <DATE> | D1: <TIME> | E1: <OPEN> | F1: <HIGH> | G1: <LOW> | H1: <CLOSE> | I1: <VOL> | J1: MICEX | K1: GAZPROM | M1: std dev | N1: daily rate | O1: annual rate | P1: alpha | Q1: beta
A2: IMOEX | B2: D | C2: 2017-09-01 | D2: 00:00:00 | E2: 2021.93 | F2: 2030.37 | G2: 2008.49 | H2: 2010.98 | I2: 30776971787 | M2: =_xlfn.STDEV.S(J3:J167) -> 0.01111045034 | N2: =O2/365 -> 0.000198630137 | O2: 0.0725 | P2: =AVERAGE(K3:K167)-(N2+Q2*(AVERAGE(J3:J167)-N2)) -> 0.0005821906919 | Q2: =_xlfn.COVARIANCE.S(J3:J167,K3:K167)/M2^2 -> 0.8931260173
A3: IMOEX | B3: D | C3: 2017-09-04 | D3: 00:00:00 | E3: 2007.42 | F3: 2012.29 | G3: 1999.84 | H3: 2003.32 | I3: 21225818753 | J3: =H3/H2 - 1 -> -0.003809088106 | K3: =GAZP_170901_180430!H3/GAZP_170901_180430!H2-1 -> -0.003407155026
A4: IMOEX | B4: D | C4: 2017-09-05 | D4: 00:00:00 | E4: 2005.23 | F4: 2014.03 | G4: 1995.94 | H4: 2004.02 | I4: 30737472916 | J4: =H4/H3 - 1 -> 0.0003494199629 | K4: =GAZP_170901_180430!H4/GAZP_170901_180430!H3-1 -> -0.008547008547
A5: IMOEX | B5: D | C5: 2017-09-06 | D5: 00:00:00 | E5: 2001.97 | F5: 2015.63 | G5: 1992.68 | H5: 2014.6 | I5: 32869337151 | J5: 0.005279388429 | K5: =GAZP_170901_180430!H5/GAZP_170901_180430!H4-1 -> 0.009827586207
A6: IMOEX | B6: D | C6: 2017-09-07 | D6: 00:00:00 | E6: 2017.52 | F6: 2025.37 | G6: 2010.17 | H6: 2010.17 | I6: 29925513647 | J6: -0.002198947682 | K6: =GAZP_170901_180430!H6/GAZP_170901_180430!H5-1 -> 0.0069148028
A7: IMOEX | B7: D | C7: 2017-09-08 | D7: 00:00:00 | E7: 2010.55 | F7: 2037.48 | G7: 2010.55 | H7: 2032.75 | I7: 38258005714 | J7: 0.0112328808 | K7: =GAZP_170901_180430!H7/GAZP_170901_180430!H6-1 -> 0.02026282323
A8: IMOEX | B8: D | C8: 2017-09-11 | D8: 00:00:00 | E8: 2038.78 | F8: 2049.07 | G8: 2032.92 | H8: 2044.13 | I8: 36317540552 | J8: 0.005598327389 | K8: =GAZP_170901_180430!H8/GAZP_170901_180430!H7-1 -> 0.005484460695
A9: IMOEX | B9: D | C9: 2017-09-12 | D9: 00:00:00 | E9: 2045.85 | F9: 2059.96 | G9: 2044.07 | H9: 2058.8 | I9: 31288398754 | J9: 0.007176647278 | K9: =GAZP_170901_180430!H9/GAZP_170901_180430!H8-1 -> 0.008181818182
A10: IMOEX | B10: D | C10: 2017-09-13 | D10: 00:00:00 | E10: 2059.4 | F10: 2072.96 | G10: 2054.19 | H10: 2054.19 | I10: 38010560083 | J10: -0.002239168448 | K10: =GAZP_170901_180430!H10/GAZP_170901_180430!H9-1 -> 0.01278793344
A11: IMOEX | B11: D | C11: 2017-09-14 | D11: 00:00:00 | E11: 2054.66 | F11: 2055.93 | G11: 2036.22 | H11: 2052.25 | I11: 31569273510 | J11: -0.0009444111791 | K11: =GAZP_170901_180430!H11/GAZP_170901_180430!H10-1 -> -0.001780655605
A12: IMOEX | B12: D | C12: 2017-09-15 | D12: 00:00:00 | E12: 2051.47 | F12: 2061.6 | G12: 2041.28 | H12: 2053.81 | I12: 32046259946 | J12: 0.0007601413083 | K12: =GAZP_170901_180430!H12/GAZP_170901_180430!H11-1 -> -0.006729911619
A13: IMOEX | B13: D | C13: 2017-09-18 | D13: 00:00:00 | E13: 2055.41 | F13: 2062.75 | G13: 2053.6 | H13: 2059.08 | I13: 27791911849 | J13: 0.002565962772 | K13: =GAZP_170901_180430!H13/GAZP_170901_180430!H12-1 -> 0.001795918367
A14: IMOEX | B14: D | C14: 2017-09-19 | D14: 00:00:00 | E14: 2057.33 | F14: 2059.16 | G14: 2046.61 | H14: 2048.99 | I14: 28946468393 | J14: -0.004900246712 | K14: =GAZP_170901_180430!H14/GAZP_170901_180430!H13-1 -> -0.007904172099
A15: IMOEX | B15: D | C15: 2017-09-20 | D15: 00:00:00 | E15: 2050.68 | F15: 2058.08 | G15: 2044.23 | H15: 2057.53 | I15: 35396601120 | J15: 0.004167907115 | K15: =GAZP_170901_180430!H15/GAZP_170901_180430!H14-1 -> 0.004106776181
A16: IMOEX | B16: D | C16: 2017-09-21 | D16: 00:00:00 | E16: 2056.27 | F16: 2066.41 | G16: 2051.68 | H16: 2060.24 | I16: 33057559698 | J16: 0.001317113238 | K16: =GAZP_170901_180430!H16/GAZP_170901_180430!H15-1 -> 0.000736196319
A17: IMOEX | B17: D | C17: 2017-09-22 | D17: 00:00:00 | E17: 2059.01 | F17: 2059.01 | G17: 2046.35 | H17: 2051.63 | I17: 28074449954 | J17: -0.004179124762 | K17: =GAZP_170901_180430!H17/GAZP_170901_180430!H16-1 -> -0.003187837175
A18: IMOEX | B18: D | C18: 2017-09-25 | D18: 00:00:00 | E18: 2050.21 | F18: 2070.82 | G18: 2046.01 | H18: 2069.11 | I18: 36034399685 | J18: 0.008520054786 | K18: =GAZP_170901_180430!H18/GAZP_170901_180430!H17-1 -> 0.008856088561
A19: IMOEX | B19: D | C19: 2017-09-26 | D19: 00:00:00 | E19: 2071.62 | F19: 2086.65 | G19: 2070.49 | H19: 2071.13 | I19: 40745873808 | J19: 0.0009762651575 | K19: =GAZP_170901_180430!H19/GAZP_170901_180430!H18-1 -> 0
A20: IMOEX | B20: D | C20: 2017-09-27 | D20: 00:00:00 | E20: 2072.27 | F20: 2085.14 | G20: 2065.79 | H20: 2081.12 | I20: 29664329304 | J20: 0.004823453863 | K20: =GAZP_170901_180430!H20/GAZP_170901_180430!H19-1 -> 0.002682272616
A21: IMOEX | B21: D | C21: 2017-09-28 | D21: 00:00:00 | E21: 2080.73 | F21: 2084.39 | G21: 2068.54 | H21: 2071.64 | I21: 25543129539 | J21: -0.004555239486 | K21: =GAZP_170901_180430!H21/GAZP_170901_180430!H20-1 -> -0.006971465629
A22: IMOEX | B22: D | C22: 2017-09-29 | D22: 00:00:00 | E22: 2071.33 | F22: 2077.28 | G22: 2068.39 | H22: 2077.19 | I22: 25879486788 | J22: 0.002679036898 | K22: =GAZP_170901_180430!H22/GAZP_170901_180430!H21-1 -> -0.002448979592
A23: IMOEX | B23: D | C23: 2017-10-02 | D23: 00:00:00 | E23: 2077.16 | F23: 2083.43 | G23: 2072.72 | H23: 2075.72 | I23: 23781336284 | J23: -0.0007076868269 | K23: =GAZP_170901_180430!H23/GAZP_170901_180430!H22-1 -> -0.002454991817
A24: IMOEX | B24: D | C24: 2017-10-03 | D24: 00:00:00 | E24: 2076.53 | F24: 2084.03 | G24: 2072.83 | H24: 2076.81 | I24: 29271290869 | J24: 0.0005251189949 | K24: =GAZP_170901_180430!H24/GAZP_170901_180430!H23-1 -> -0.009187858901
A25: IMOEX | B25: D | C25: 2017-10-04 | D25: 00:00:00 | E25: 2076.5 | F25: 2080.05 | G25: 2068.73 | H25: 2077.09 | I25: 22612073883 | J25: 0.0001348221551 | K25: =GAZP_170901_180430!H25/GAZP_170901_180430!H24-1 -> 0.008113926147
A26: IMOEX | B26: D | C26: 2017-10-05 | D26: 00:00:00 | E26: 2076.78 | F26: 2088.64 | G26: 2071.19 | H26: 2088.32 | I26: 31196036315 | J26: 0.005406602506 | K26: =GAZP_170901_180430!H26/GAZP_170901_180430!H25-1 -> 0.01429040736
A27: IMOEX | B27: D | C27: 2017-10-06 | D27: 00:00:00 | E27: 2089.39 | F27: 2103.05 | G27: 2089.39 | H27: 2093.86 | I27: 29518982080 | J27: 0.002652850138 | K27: =GAZP_170901_180430!H27/GAZP_170901_180430!H26-1 -> -0.0002429149798
A28: IMOEX | B28: D | C28: 2017-10-09 | D28: 00:00:00 | E28: 2094.16 | F28: 2100.29 | G28: 2086.74 | H28: 2096.29 | I28: 21834093292 | J28: 0.001160536043 | K28: =GAZP_170901_180430!H28/GAZP_170901_180430!H27-1 -> 0.01085283875
A29: IMOEX | B29: D | C29: 2017-10-10 | D29: 00:00:00 | E29: 2096.35 | F29: 2096.35 | G29: 2084.49 | H29: 2086.91 | I29: 20851365341 | J29: -0.004474571743 | K29: =GAZP_170901_180430!H29/GAZP_170901_180430!H28-1 -> -0.002964506049
A30: IMOEX | B30: D | C30: 2017-10-11 | D30: 00:00:00 | E30: 2087.47 | F30: 2103.29 | G30: 2087.07 | H30: 2101.07 | I30: 32820233583 | J30: 0.006785151252 | K30: =GAZP_170901_180430!H30/GAZP_170901_180430!H29-1 -> 0.01253616201
A31: IMOEX | B31: D | C31: 2017-10-12 | D31: 00:00:00 | E31: 2101.33 | F31: 2101.33 | G31: 2090.86 | H31: 2094.96 | I31: 25726422026 | J31: -0.002908042093 | K31: =GAZP_170901_180430!H31/GAZP_170901_180430!H30-1 -> -0.0005555555556
A32: IMOEX | B32: D | C32: 2017-10-13 | D32: 00:00:00 | E32: 2094.94 | F32: 2105.64 | G32: 2092.4 | H32: 2098.77 | I32: 27709775824 | J32: 0.001818650475 | K32: =GAZP_170901_180430!H32/GAZP_170901_180430!H31-1 -> 0.007385055189
A33: IMOEX | B33: D | C33: 2017-10-16 | D33: 00:00:00 | E33: 2101.41 | F33: 2106.39 | G33: 2098.07 | H33: 2106.39 | I33: 27713508271 | J33: 0.00363069798 | K33: =GAZP_170901_180430!H33/GAZP_170901_180430!H32-1 -> 0.002443638657
A34: IMOEX | B34: D | C34: 2017-10-17 | D34: 00:00:00 | E34: 2105.74 | F34: 2106.49 | G34: 2086.41 | H34: 2092.57 | I34: 28669238613 | J34: -0.006560988231 | K34: =GAZP_170901_180430!H34/GAZP_170901_180430!H33-1 -> -0.01588424943
A35: IMOEX | B35: D | C35: 2017-10-18 | D35: 00:00:00 | E35: 2092.79 | F35: 2101.35 | G35: 2086.45 | H35: 2094.4 | I35: 31229047361 | J35: 0.0008745227161 | K35: =GAZP_170901_180430!H35/GAZP_170901_180430!H34-1 -> 0.01238513783
A36: IMOEX | B36: D | C36: 2017-10-19 | D36: 00:00:00 | E36: 2094.56 | F36: 2099.66 | G36: 2071.6 | H36: 2072.73 | I36: 29049131346 | J36: -0.01034663866 | K36: =GAZP_170901_180430!H36/GAZP_170901_180430!H35-1 -> -0.009471191792
A37: IMOEX | B37: D | C37: 2017-10-20 | D37: 00:00:00 | E37: 2076.29 | F37: 2079.64 | G37: 2067.91 | H37: 2071.83 | I37: 31894760682 | J37: -0.000434209955 | K37: =GAZP_170901_180430!H37/GAZP_170901_180430!H36-1 -> 0.009561752988
A38: IMOEX | B38: D | C38: 2017-10-23 | D38: 00:00:00 | E38: 2073.55 | F38: 2078.59 | G38: 2060.43 | H38: 2063.81 | I38: 25549512657 | J38: -0.00387097397 | K38: =GAZP_170901_180430!H38/GAZP_170901_180430!H37-1 -> 0.0007892659826
A39: IMOEX | B39: D | C39: 2017-10-24 | D39: 00:00:00 | E39: 2062.58 | F39: 2066.21 | G39: 2057.69 | H39: 2061.79 | I39: 26577228482 | J39: -0.0009787722707 | K39: =GAZP_170901_180430!H39/GAZP_170901_180430!H38-1 -> -0.006151419558
A40: IMOEX | B40: D | C40: 2017-10-25 | D40: 00:00:00 | E40: 2063.2 | F40: 2073.44 | G40: 2048.78 | H40: 2049.48 | I40: 30312496094 | J40: -0.005970540162 | K40: =GAZP_170901_180430!H40/GAZP_170901_180430!H39-1 -> -0.008093953341
A41: IMOEX | B41: D | C41: 2017-10-26 | D41: 00:00:00 | E41: 2050.56 | F41: 2053.53 | G41: 2038.26 | H41: 2046.69 | I41: 25215437007 | J41: -0.00136132092 | K41: =GAZP_170901_180430!H41/GAZP_170901_180430!H40-1 -> -0.0064
A42: IMOEX | B42: D | C42: 2017-10-27 | D42: 00:00:00 | E42: 2050.35 | F42: 2068.76 | G42: 2050.35 | H42: 2068.76 | I42: 32978905862 | J42: 0.01078326469 | K42: =GAZP_170901_180430!H42/GAZP_170901_180430!H41-1 -> 0.01400966184
A43: IMOEX | B43: D | C43: 2017-10-30 | D43: 00:00:00 | E43: 2069.32 | F43: 2076.96 | G43: 2064.74 | H43: 2065.25 | I43: 25948134792 | J43: -0.001696668536 | K43: =GAZP_170901_180430!H43/GAZP_170901_180430!H42-1 -> 0.0003176115611
A44: IMOEX | B44: D | C44: 2017-10-31 | D44: 00:00:00 | E44: 2066.1 | F44: 2079.28 | G44: 2064.31 | H44: 2064.31 | I44: 26889367521 | J44: -0.0004551507081 | K44: =GAZP_170901_180430!H44/GAZP_170901_180430!H43-1 -> -0.000635021432
A45: IMOEX | B45: D | C45: 2017-11-01 | D45: 00:00:00 | E45: 2070.68 | F45: 2089.83 | G45: 2068.26 | H45: 2082.73 | I45: 36089541735 | J45: 0.008923078414 | K45: =GAZP_170901_180430!H45/GAZP_170901_180430!H44-1 -> 0.004765687053
A46: IMOEX | B46: D | C46: 2017-11-02 | D46: 00:00:00 | E46: 2080.53 | F46: 2080.53 | G46: 2065.69 | H46: 2073.04 | I46: 32705382338 | J46: -0.004652547378 | K46: =GAZP_170901_180430!H46/GAZP_170901_180430!H45-1 -> -0.006561264822
A47: IMOEX | B47: D | C47: 2017-11-03 | D47: 00:00:00 | E47: 2073.17 | F47: 2096.04 | G47: 2073.17 | H47: 2081.15 | I47: 31932210910 | J47: 0.003912129047 | K47: =GAZP_170901_180430!H47/GAZP_170901_180430!H46-1 -> 0.001830190181
A48: IMOEX | B48: D | C48: 2017-11-07 | D48: 00:00:00 | E48: 2092.78 | F48: 2155.55 | G48: 2092.78 | H48: 2155.55 | I48: 74222613743 | J48: 0.03574946544 | K48: =GAZP_170901_180430!H48/GAZP_170901_180430!H47-1 -> 0.050675139
A49: IMOEX | B49: D | C49: 2017-11-08 | D49: 00:00:00 | E49: 2155.21 | F49: 2178.42 | G49: 2144.98 | H49: 2163.01 | I49: 49040305740 | J49: 0.003460833662 | K49: =GAZP_170901_180430!H49/GAZP_170901_180430!H48-1 -> 0.000151194436
A50: IMOEX | B50: D | C50: 2017-11-09 | D50: 00:00:00 | E50: 2162 | F50: 2183.61 | G50: 2156.48 | H50: 2183.61 | I50: 60208430048 | J50: 0.009523765493 | K50: =GAZP_170901_180430!H50/GAZP_170901_180430!H49-1 -> -0.00604686319
A51: IMOEX | B51: D | C51: 2017-11-10 | D51: 00:00:00 | E51: 2181.98 | F51: 2190.56 | G51: 2166.68 | H51: 2169.26 | I51: 62124396482 | J51: -0.006571686336 | K51: =GAZP_170901_180430!H51/GAZP_170901_180430!H50-1 -> 0.007604562738
A52: IMOEX | B52: D | C52: 2017-11-13 | D52: 00:00:00 | E52: 2169.85 | F52: 2191.71 | G52: 2167.63 | H52: 2167.63 | I52: 37970412063 | J52: -0.0007514083144 | K52: =GAZP_170901_180430!H52/GAZP_170901_180430!H51-1 -> 0.006188679245
A53: IMOEX | B53: D | C53: 2017-11-14 | D53: 00:00:00 | E53: 2167.2 | F53: 2185.56 | G53: 2166.65 | H53: 2166.83 | I53: 44397142646 | J53: -0.0003690666765 | K53: =GAZP_170901_180430!H53/GAZP_170901_180430!H52-1 -> -0.002925292529
A54: IMOEX | B54: D | C54: 2017-11-15 | D54: 00:00:00 | E54: 2161.51 | F54: 2162.41 | G54: 2131.75 | H54: 2131.75 | I54: 53484016959 | J54: -0.01618954879 | K54: =GAZP_170901_180430!H54/GAZP_170901_180430!H53-1 -> -0.0129391409
A55: IMOEX | B55: D | C55: 2017-11-16 | D55: 00:00:00 | E55: 2138.82 | F55: 2147.83 | G55: 2112.2 | H55: 2132.65 | I55: 54930847765 | J55: 0.0004221883429 | K55: =GAZP_170901_180430!H55/GAZP_170901_180430!H54-1 -> -0.01531895435
A56: IMOEX | B56: D | C56: 2017-11-17 | D56: 00:00:00 | E56: 2135.58 | F56: 2139.43 | G56: 2127.95 | H56: 2131.91 | I56: 34124171631 | J56: -0.000346986144 | K56: =GAZP_170901_180430!H56/GAZP_170901_180430!H55-1 -> 0.003482972136
A57: IMOEX | B57: D | C57: 2017-11-20 | D57: 00:00:00 | E57: 2132.4 | F57: 2139.91 | G57: 2123.76 | H57: 2130.39 | I57: 26205978752 | J57: -0.0007129756885 | K57: =GAZP_170901_180430!H57/GAZP_170901_180430!H56-1 -> 0.002391052835
A58: IMOEX | B58: D | C58: 2017-11-21 | D58: 00:00:00 | E58: 2132.5 | F58: 2155.82 | G58: 2132.5 | H58: 2155.82 | I58: 48109118338 | J58: 0.01193678153 | K58: =GAZP_170901_180430!H58/GAZP_170901_180430!H57-1 -> 0.01946752847
A59: IMOEX | B59: D | C59: 2017-11-22 | D59: 00:00:00 | E59: 2159.5 | F59: 2168.01 | G59: 2151.3 | H59: 2160.16 | I59: 32252726412 | J59: 0.002013155087 | K59: =GAZP_170901_180430!H59/GAZP_170901_180430!H58-1 -> 0.0006038191562
A60: IMOEX | B60: D | C60: 2017-11-23 | D60: 00:00:00 | E60: 2159.88 | F60: 2160.64 | G60: 2143.06 | H60: 2148.56 | I60: 30659856682 | J60: -0.005369972595 | K60: =GAZP_170901_180430!H60/GAZP_170901_180430!H59-1 -> -0.007316889191
A61: IMOEX | B61: D | C61: 2017-11-24 | D61: 00:00:00 | E61: 2150.09 | F61: 2163.61 | G61: 2144.62 | H61: 2161.17 | I61: 31134801041 | J61: 0.005869047176 | K61: =GAZP_170901_180430!H61/GAZP_170901_180430!H60-1 -> 0.01496960486
A62: IMOEX | B62: D | C62: 2017-11-27 | D62: 00:00:00 | E62: 2160.39 | F62: 2164.32 | G62: 2139.12 | H62: 2145.87 | I62: 24683806656 | J62: -0.007079498605 | K62: =GAZP_170901_180430!H62/GAZP_170901_180430!H61-1 -> -0.0005240697761
A63: IMOEX | B63: D | C63: 2017-11-28 | D63: 00:00:00 | E63: 2144.53 | F63: 2149.45 | G63: 2126.06 | H63: 2149.45 | I63: 30251532234 | J63: 0.001668321007 | K63: =GAZP_170901_180430!H63/GAZP_170901_180430!H62-1 -> 0.01258426966
A64: IMOEX | B64: D | C64: 2017-11-29 | D64: 00:00:00 | E64: 2147.97 | F64: 2150.88 | G64: 2120.24 | H64: 2124.08 | I64: 31363188004 | J64: -0.01180301938 | K64: =GAZP_170901_180430!H64/GAZP_170901_180430!H63-1 -> -0.01205799675
A65: IMOEX | B65: D | C65: 2017-11-30 | D65: 00:00:00 | E65: 2120.68 | F65: 2123.18 | G65: 2092.2 | H65: 2100.62 | I65: 58393564165 | J65: -0.01104478174 | K65: =GAZP_170901_180430!H65/GAZP_170901_180430!H64-1 -> -0.01048296518
A66: IMOEX | B66: D | C66: 2017-12-01 | D66: 00:00:00 | E66: 2102.54 | F66: 2109.33 | G66: 2091.89 | H66: 2105.99 | I66: 32254059971 | J66: 0.002556388114 | K66: =GAZP_170901_180430!H66/GAZP_170901_180430!H65-1 -> 0.006583427923
A67: IMOEX | B67: D | C67: 2017-12-04 | D67: 00:00:00 | E67: 2104.9 | F67: 2123.08 | G67: 2087.37 | H67: 2119.42 | I67: 31678170335 | J67: 0.006377048324 | K67: =GAZP_170901_180430!H67/GAZP_170901_180430!H66-1 -> 0.005638249887
A68: IMOEX | B68: D | C68: 2017-12-05 | D68: 00:00:00 | E68: 2115.25 | F68: 2115.53 | G68: 2099.77 | H68: 2113.69 | I68: 25271043801 | J68: =H68/H67 - 1 -> -0.002703569845 | K68: =GAZP_170901_180430!H68/GAZP_170901_180430!H67-1 -> -0.0008970621216
A69: IMOEX | B69: D | C69: 2017-12-06 | D69: 00:00:00 | E69: 2108.87 | F69: 2126.16 | G69: 2102.9 | H69: 2124.12 | I69: 24167326032 | J69: 0.004934498436 | K69: =GAZP_170901_180430!H69/GAZP_170901_180430!H68-1 -> 0.002618780397
A70: IMOEX | B70: D | C70: 2017-12-07 | D70: 00:00:00 | E70: 2120.38 | F70: 2120.83 | G70: 2100.87 | H70: 2103.15 | I70: 28549119472 | J70: -0.009872323598 | K70: =GAZP_170901_180430!H70/GAZP_170901_180430!H69-1 -> -0.007313432836
A71: IMOEX | B71: D | C71: 2017-12-08 | D71: 00:00:00 | E71: 2106.38 | F71: 2118.71 | G71: 2097.29 | H71: 2104.99 | I71: 23038211567 | J71: 0.000874878159 | K71: =GAZP_170901_180430!H71/GAZP_170901_180430!H70-1 -> -0.003157419937
A72: IMOEX | B72: D | C72: 2017-12-11 | D72: 00:00:00 | E72: 2105.77 | F72: 2148.6 | G72: 2105.77 | H72: 2148.6 | I72: 27534133651 | J72: 0.02071743809 | K72: =GAZP_170901_180430!H72/GAZP_170901_180430!H71-1 -> 0.01546003017
A73: IMOEX | B73: D | C73: 2017-12-12 | D73: 00:00:00 | E73: 2151.96 | F73: 2160.75 | G73: 2142.06 | H73: 2160.75 | I73: 31134915668 | J73: 0.005654845015 | K73: =GAZP_170901_180430!H73/GAZP_170901_180430!H72-1 -> 0.006312662458
A74: IMOEX | B74: D | C74: 2017-12-13 | D74: 00:00:00 | E74: 2152.05 | F74: 2158.25 | G74: 2127.1 | H74: 2131.94 | I74: 35053500742 | J74: -0.01333333333 | K74: =GAZP_170901_180430!H74/GAZP_170901_180430!H73-1 -> 0.000442804428
A75: IMOEX | B75: D | C75: 2017-12-14 | D75: 00:00:00 | E75: 2133.3 | F75: 2152.41 | G75: 2127.74 | H75: 2152.41 | I75: 31666603131 | J75: 0.009601583534 | K75: =GAZP_170901_180430!H75/GAZP_170901_180430!H74-1 -> 0.002581882561
A76: IMOEX | B76: D | C76: 2017-12-15 | D76: 00:00:00 | E76: 2151.23 | F76: 2151.23 | G76: 2135.85 | H76: 2143.99 | I76: 25366684391 | J76: -0.003911894109 | K76: =GAZP_170901_180430!H76/GAZP_170901_180430!H75-1 -> -0.003016702229
A77: IMOEX | B77: D | C77: 2017-12-18 | D77: 00:00:00 | E77: 2145.27 | F77: 2155.92 | G77: 2122.05 | H77: 2134.58 | I77: 27942037281 | J77: -0.004389013008 | K77: =GAZP_170901_180430!H77/GAZP_170901_180430!H76-1 -> -0.009225092251
A78: IMOEX | B78: D | C78: 2017-12-19 | D78: 00:00:00 | E78: 2134.47 | F78: 2139.27 | G78: 2112.99 | H78: 2118.16 | I78: 25625840920 | J78: -0.007692379766 | K78: =GAZP_170901_180430!H78/GAZP_170901_180430!H77-1 -> -0.002160148976
A79: IMOEX | B79: D | C79: 2017-12-20 | D79: 00:00:00 | E79: 2118.83 | F79: 2120.57 | G79: 2101.93 | H79: 2102.97 | I79: 30045937758 | J79: -0.007171318503 | K79: =GAZP_170901_180430!H79/GAZP_170901_180430!H78-1 -> -0.01089877575
A80: IMOEX | B80: D | C80: 2017-12-21 | D80: 00:00:00 | E80: 2097.81 | F80: 2103.62 | G80: 2082.29 | H80: 2093.38 | I80: 34789016707 | J80: -0.004560217217 | K80: =GAZP_170901_180430!H80/GAZP_170901_180430!H79-1 -> -0.006037735849
A81: IMOEX | B81: D | C81: 2017-12-22 | D81: 00:00:00 | E81: 2095.56 | F81: 2109.44 | G81: 2089.6 | H81: 2102.94 | I81: 20918042114 | J81: 0.004566777174 | K81: =GAZP_170901_180430!H81/GAZP_170901_180430!H80-1 -> 0.005466970387
A82: IMOEX | B82: D | C82: 2017-12-25 | D82: 00:00:00 | E82: 2109.38 | F82: 2115.68 | G82: 2100.76 | H82: 2105.06 | I82: 10781756260 | J82: 0.001008112452 | K82: =GAZP_170901_180430!H82/GAZP_170901_180430!H81-1 -> -0.003473795499
A83: IMOEX | B83: D | C83: 2017-12-26 | D83: 00:00:00 | E83: 2105.51 | F83: 2107.48 | G83: 2086.61 | H83: 2097.03 | I83: 11945064397 | J83: -0.003814618111 | K83: =GAZP_170901_180430!H83/GAZP_170901_180430!H82-1 -> -0.005759321006
A84: IMOEX | B84: D | C84: 2017-12-27 | D84: 00:00:00 | E84: 2099.83 | F84: 2108.74 | G84: 2091.94 | H84: 2106.17 | I84: 26561492905 | J84: 0.004358545181 | K84: =GAZP_170901_180430!H84/GAZP_170901_180430!H83-1 -> -0.001600609756
A85: IMOEX | B85: D | C85: 2017-12-28 | D85: 00:00:00 | E85: 2106.25 | F85: 2106.25 | G85: 2088.67 | H85: 2102.89 | I85: 18090090633 | J85: -0.00155732918 | K85: =GAZP_170901_180430!H85/GAZP_170901_180430!H84-1 -> -0.003511718452
A86: IMOEX | B86: D | C86: 2017-12-29 | D86: 00:00:00 | E86: 2102.81 | F86: 2110.9 | G86: 2091.93 | H86: 2109.74 | I86: 14606035650 | J86: 0.003257421929 | K86: =GAZP_170901_180430!H86/GAZP_170901_180430!H85-1 -> -0.0002298322225
A87: IMOEX | B87: D | C87: 2018-01-03 | D87: 00:00:00 | E87: 2114.88 | F87: 2152.97 | G87: 2114.59 | H87: 2152.97 | I87: 21076095060 | J87: 0.02049067658 | K87: =GAZP_170901_180430!H87/GAZP_170901_180430!H86-1 -> 0.01302681992
A88: IMOEX | B88: D | C88: 2018-01-04 | D88: 00:00:00 | E88: 2157.17 | F88: 2197.6 | G88: 2154.69 | H88: 2197.6 | I88: 35345988369 | J88: 0.02072950389 | K88: =GAZP_170901_180430!H88/GAZP_170901_180430!H87-1 -> 0.02791225416
A89: IMOEX | B89: D | C89: 2018-01-05 | D89: 00:00:00 | E89: 2196.5 | F89: 2207.41 | G89: 2188.35 | H89: 2207.41 | I89: 25985573299 | J89: 0.004463960684 | K89: =GAZP_170901_180430!H89/GAZP_170901_180430!H88-1 -> 0.009051438664
A90: IMOEX | B90: D | C90: 2018-01-09 | D90: 00:00:00 | E90: 2212.68 | F90: 2242.87 | G90: 2212.68 | H90: 2225.39 | I90: 43305585994 | J90: 0.008145292447 | K90: =GAZP_170901_180430!H90/GAZP_170901_180430!H89-1 -> 0.02100350058
A91: IMOEX | B91: D | C91: 2018-01-10 | D91: 00:00:00 | E91: 2227.33 | F91: 2233.63 | G91: 2213.77 | H91: 2232.27 | I91: 38844119687 | J91: 0.003091592934 | K91: =GAZP_170901_180430!H91/GAZP_170901_180430!H90-1 -> 0.0245
A92: IMOEX | B92: D | C92: 2018-01-11 | D92: 00:00:00 | E92: 2232.28 | F92: 2246.82 | G92: 2221.61 | H92: 2246.45 | I92: 34621308689 | J92: 0.006352278174 | K92: =GAZP_170901_180430!H92/GAZP_170901_180430!H91-1 -> 0.008017848428
A93: IMOEX | B93: D | C93: 2018-01-12 | D93: 00:00:00 | E93: 2244.01 | F93: 2262.38 | G93: 2234.42 | H93: 2262.38 | I93: 38133037880 | J93: 0.007091188319 | K93: =GAZP_170901_180430!H93/GAZP_170901_180430!H92-1 -> -0.004080785724
A94: IMOEX | B94: D | C94: 2018-01-15 | D94: 00:00:00 | E94: 2268.01 | F94: 2280.17 | G94: 2259.66 | H94: 2261.53 | I94: 28506021421 | J94: -0.0003757105349 | K94: =GAZP_170901_180430!H94/GAZP_170901_180430!H93-1 -> -0.006944926731
A95: IMOEX | B95: D | C95: 2018-01-16 | D95: 00:00:00 | E95: 2262.09 | F95: 2265.64 | G95: 2232.92 | H95: 2257.89 | I95: 34181194406 | J95: -0.001609529832 | K95: =GAZP_170901_180430!H95/GAZP_170901_180430!H94-1 -> 0.01608504091
A96: IMOEX | B96: D | C96: 2018-01-17 | D96: 00:00:00 | E96: 2250.71 | F96: 2277.89 | G96: 2231.7 | H96: 2277.89 | I96: 39366032022 | J96: 0.008857827441 | K96: =GAZP_170901_180430!H96/GAZP_170901_180430!H95-1 -> 0.02347030078
A97: IMOEX | B97: D | C97: 2018-01-18 | D97: 00:00:00 | E97: 2280.28 | F97: 2299.64 | G97: 2279.4 | H97: 2297.47 | I97: 49404764302 | J97: 0.008595674067 | K97: =GAZP_170901_180430!H97/GAZP_170901_180430!H96-1 -> 0.01109616678
A98: IMOEX | B98: D | C98: 2018-01-19 | D98: 00:00:00 | E98: 2298.07 | F98: 2306.79 | G98: 2273.24 | H98: 2286.33 | I98: 38592101396 | J98: -0.004848811954 | K98: =GAZP_170901_180430!H98/GAZP_170901_180430!H97-1 -> -0.008114399734
A99: IMOEX | B99: D | C99: 2018-01-22 | D99: 00:00:00 | E99: 2288.83 | F99: 2308.61 | G99: 2285.32 | H99: 2308.61 | I99: 31230183176 | J99: 0.009744874974 | K99: =GAZP_170901_180430!H99/GAZP_170901_180430!H98-1 -> 0.007845503923
A100: IMOEX | B100: D | C100: 2018-01-23 | D100: 00:00:00 | E100: 2311.99 | F100: 2315.77 | G100: 2281.52 | H100: 2298.95 | I100: 38581119626 | J100: -0.004184336029 | K100: =GAZP_170901_180430!H100/GAZP_170901_180430!H99-1 -> -0.00998003992
A101: IMOEX | B101: D | C101: 2018-01-24 | D101: 00:00:00 | E101: 2297.69 | F101: 2306.99 | G101: 2283.2 | H101: 2306.99 | I101: 32370459370 | J101: 0.003497248744 | K101: =GAZP_170901_180430!H101/GAZP_170901_180430!H100-1 -> 0.006048387097
A102: IMOEX | B102: D | C102: 2018-01-25 | D102: 00:00:00 | E102: 2312.03 | F102: 2328.48 | G102: 2307.62 | H102: 2320.03 | I102: 51859433744 | J102: 0.005652386876 | K102: =GAZP_170901_180430!H102/GAZP_170901_180430!H101-1 -> 0.000668002672
A103: IMOEX | B103: D | C103: 2018-01-26 | D103: 00:00:00 | E103: 2317.15 | F103: 2317.15 | G103: 2281.71 | H103: 2295.26 | I103: 40341460588 | J103: -0.01067658608 | K103: =GAZP_170901_180430!H103/GAZP_170901_180430!H102-1 -> -0.01742323097
A104: IMOEX | B104: D | C104: 2018-01-29 | D104: 00:00:00 | E104: 2295.34 | F104: 2303.49 | G104: 2280.92 | H104: 2284.27 | I104: 42254856240 | J104: -0.004788128578 | K104: =GAZP_170901_180430!H104/GAZP_170901_180430!H103-1 -> -0.01657721313
A105: IMOEX | B105: D | C105: 2018-01-30 | D105: 00:00:00 | E105: 2276.37 | F105: 2301.98 | G105: 2264.16 | H105: 2280.36 | I105: 46615611263 | J105: -0.001711706585 | K105: =GAZP_170901_180430!H105/GAZP_170901_180430!H104-1 -> -0.008635578584
A106: IMOEX | B106: D | C106: 2018-01-31 | D106: 00:00:00 | E106: 2278.83 | F106: 2295.88 | G106: 2266.95 | H106: 2289.99 | I106: 44157072660 | J106: 0.004223017418 | K106: =GAZP_170901_180430!H106/GAZP_170901_180430!H105-1 -> -0.0009756097561
A107: IMOEX | B107: D | C107: 2018-02-01 | D107: 00:00:00 | E107: 2292.22 | F107: 2313.21 | G107: 2288.31 | H107: 2302.57 | I107: 45698685675 | J107: 0.005493473771 | K107: =GAZP_170901_180430!H107/GAZP_170901_180430!H106-1 -> 0.01416015625
A108: IMOEX | B108: D | C108: 2018-02-02 | D108: 00:00:00 | E108: 2299.9 | F108: 2309.6 | G108: 2272.84 | H108: 2281.84 | I108: 44384865620 | J108: -0.009002983623 | K108: =GAZP_170901_180430!H108/GAZP_170901_180430!H107-1 -> -0.009560492469
A109: IMOEX | B109: D | C109: 2018-02-05 | D109: 00:00:00 | E109: 2270.55 | F109: 2281.97 | G109: 2255.43 | H109: 2276.85 | I109: 37422246287 | J109: -0.00218683168 | K109: =GAZP_170901_180430!H109/GAZP_170901_180430!H108-1 -> 0.003680555556
A110: IMOEX | B110: D | C110: 2018-02-06 | D110: 00:00:00 | E110: 2233.31 | F110: 2258.79 | G110: 2222.85 | H110: 2238.24 | I110: 62262346955 | J110: -0.01695763884 | K110: =GAZP_170901_180430!H110/GAZP_170901_180430!H109-1 -> -0.02034179755
A111: IMOEX | B111: D | C111: 2018-02-07 | D111: 00:00:00 | E111: 2247.99 | F111: 2267.35 | G111: 2247.99 | H111: 2254.64 | I111: 40989154735 | J111: 0.007327185646 | K111: =GAZP_170901_180430!H111/GAZP_170901_180430!H110-1 -> -0.004166960944
A112: IMOEX | B112: D | C112: 2018-02-08 | D112: 00:00:00 | E112: 2245.95 | F112: 2259.4 | G112: 2227.24 | H112: 2227.24 | I112: 38683426837 | J112: -0.01215271618 | K112: =GAZP_170901_180430!H112/GAZP_170901_180430!H111-1 -> -0.02695035461
A113: IMOEX | B113: D | C113: 2018-02-09 | D113: 00:00:00 | E113: 2205.9 | F113: 2217.89 | G113: 2181.96 | H113: 2197.12 | I113: 54963029481 | J113: -0.01352346402 | K113: =GAZP_170901_180430!H113/GAZP_170901_180430!H112-1 -> -0.01195335277
A114: IMOEX | B114: D | C114: 2018-02-12 | D114: 00:00:00 | E114: 2213.69 | F114: 2229.81 | G114: 2206.28 | H114: 2220.12 | I114: 33142078686 | J114: 0.01046824934 | K114: =GAZP_170901_180430!H114/GAZP_170901_180430!H113-1 -> 0.01283564473
A115: IMOEX | B115: D | C115: 2018-02-13 | D115: 00:00:00 | E115: 2225.71 | F115: 2250.63 | G115: 2220.69 | H115: 2250.63 | I115: 36305983680 | J115: 0.01374250041 | K115: =GAZP_170901_180430!H115/GAZP_170901_180430!H114-1 -> 0.01857246905
A116: IMOEX | B116: D | C116: 2018-02-14 | D116: 00:00:00 | E116: 2252.95 | F116: 2259.06 | G116: 2232.96 | H116: 2257.95 | I116: 41188995805 | J116: 0.003252422655 | K116: =GAZP_170901_180430!H116/GAZP_170901_180430!H115-1 -> -0.006864497676
A117: IMOEX | B117: D | C117: 2018-02-15 | D117: 00:00:00 | E117: 2267.82 | F117: 2280.27 | G117: 2265.45 | H117: 2265.45 | I117: 44459857653 | J117: 0.003321597024 | K117: =GAZP_170901_180430!H117/GAZP_170901_180430!H116-1 -> -0.01317589459
A118: IMOEX | B118: D | C118: 2018-02-16 | D118: 00:00:00 | E118: 2266.42 | F118: 2283.65 | G118: 2248.3 | H118: 2255.27 | I118: 57156807286 | J118: -0.00449358847 | K118: =GAZP_170901_180430!H118/GAZP_170901_180430!H117-1 -> 0
A119: IMOEX | B119: D | C119: 2018-02-19 | D119: 00:00:00 | E119: 2255.37 | F119: 2266.89 | G119: 2251.18 | H119: 2254.92 | I119: 31273799300 | J119: -0.0001551920613 | K119: =GAZP_170901_180430!H119/GAZP_170901_180430!H118-1 -> 0.00912009339
A120: IMOEX | B120: D | C120: 2018-02-20 | D120: 00:00:00 | E120: 2256.93 | F120: 2271.37 | G120: 2254.92 | H120: 2270.12 | I120: 36257600696 | J120: 0.006740815639 | K120: =GAZP_170901_180430!H120/GAZP_170901_180430!H119-1 -> 0.02176270696
A121: IMOEX | B121: D | C121: 2018-02-21 | D121: 00:00:00 | E121: 2268.27 | F121: 2320.32 | G121: 2265.85 | H121: 2320.32 | I121: 50000937450 | J121: 0.02211336846 | K121: =GAZP_170901_180430!H121/GAZP_170901_180430!H120-1 -> 0.01896405321
A122: IMOEX | B122: D | C122: 2018-02-22 | D122: 00:00:00 | E122: 2310.3 | F122: 2336.82 | G122: 2307.43 | H122: 2336.82 | I122: 51740357241 | J122: 0.007111088126 | K122: =GAZP_170901_180430!H122/GAZP_170901_180430!H121-1 -> 0.01368055556
A123: IMOEX | B123: D | C123: 2018-02-26 | D123: 00:00:00 | E123: 2352.56 | F123: 2376.96 | G123: 2346.73 | H123: 2353.16 | I123: 58393829596 | J123: 0.006992408487 | K123: =GAZP_170901_180430!H123/GAZP_170901_180430!H122-1 -> 0.007056244434
A124: IMOEX | B124: D | C124: 2018-02-27 | D124: 00:00:00 | E124: 2357.1 | F124: 2357.1 | G124: 2333.38 | H124: 2341.89 | I124: 35603963664 | J124: -0.004789304595 | K124: =GAZP_170901_180430!H124/GAZP_170901_180430!H123-1 -> -0.003401360544
A125: IMOEX | B125: D | C125: 2018-02-28 | D125: 00:00:00 | E125: 2327.89 | F125: 2332.61 | G125: 2296.8 | H125: 2296.8 | I125: 41768952780 | J125: -0.01925367972 | K125: =GAZP_170901_180430!H125/GAZP_170901_180430!H124-1 -> -0.02279863481
A126: IMOEX | B126: D | C126: 2018-03-01 | D126: 00:00:00 | E126: 2285.33 | F126: 2306.51 | G126: 2281.22 | H126: 2297.9 | I126: 42257918194 | J126: 0.0004789272031 | K126: =GAZP_170901_180430!H126/GAZP_170901_180430!H125-1 -> -0.02137468567
A127: IMOEX | B127: D | C127: 2018-03-02 | D127: 00:00:00 | E127: 2294.65 | F127: 2301.77 | G127: 2263.77 | H127: 2288.84 | I127: 39527790205 | J127: -0.003942730319 | K127: =GAZP_170901_180430!H127/GAZP_170901_180430!H126-1 -> -0.01092077088
A128: IMOEX | B128: D | C128: 2018-03-05 | D128: 00:00:00 | E128: 2291.9 | F128: 2317.01 | G128: 2291.9 | H128: 2309.53 | I128: 30064306469 | J128: 0.009039513465 | K128: =GAZP_170901_180430!H128/GAZP_170901_180430!H127-1 -> 0.02186620481
A129: IMOEX | B129: D | C129: 2018-03-06 | D129: 00:00:00 | E129: 2315.85 | F129: 2325.16 | G129: 2302.11 | H129: 2303.32 | I129: 40785682651 | J129: -0.002688858772 | K129: =GAZP_170901_180430!H129/GAZP_170901_180430!H128-1 -> -0.007132768362
A130: IMOEX | B130: D | C130: 2018-03-07 | D130: 00:00:00 | E130: 2299.38 | F130: 2299.38 | G130: 2269.9 | H130: 2291.23 | I130: 39435749908 | J130: -0.005248945001 | K130: =GAZP_170901_180430!H130/GAZP_170901_180430!H129-1 -> -0.0144391493
A131: IMOEX | B131: D | C131: 2018-03-09 | D131: 00:00:00 | E131: 2289.2 | F131: 2311.69 | G131: 2286.23 | H131: 2311.69 | I131: 23288971970 | J131: 0.008929701514 | K131: =GAZP_170901_180430!H131/GAZP_170901_180430!H130-1 -> 0.009021362587
A132: IMOEX | B132: D | C132: 2018-03-12 | D132: 00:00:00 | E132: 2317.19 | F132: 2326.41 | G132: 2309.6 | H132: 2318.01 | I132: 28170929628 | J132: =H132/H131 - 1 -> 0.002733930588 | K132: =GAZP_170901_180430!H132/GAZP_170901_180430!H131-1 -> 0.01101494886
A133: IMOEX | B133: D | C133: 2018-03-13 | D133: 00:00:00 | E133: 2315.24 | F133: 2326.06 | G133: 2305.25 | H133: 2319.38 | I133: 33406335063 | J133: 0.0005910241975 | K133: =GAZP_170901_180430!H133/GAZP_170901_180430!H132-1 -> 0.009904492395
A134: IMOEX | B134: D | C134: 2018-03-14 | D134: 00:00:00 | E134: 2316.6 | F134: 2316.6 | G134: 2275.24 | H134: 2275.24 | I134: 44387807679 | J134: -0.01903094793 | K134: =GAZP_170901_180430!H134/GAZP_170901_180430!H133-1 -> -0.02767075306
A135: IMOEX | B135: D | C135: 2018-03-15 | D135: 00:00:00 | E135: 2276.16 | F135: 2284.79 | G135: 2262.21 | H135: 2272.49 | I135: 56858203391 | J135: -0.001208663701 | K135: =GAZP_170901_180430!H135/GAZP_170901_180430!H134-1 -> -0.003962536023
A136: IMOEX | B136: D | C136: 2018-03-16 | D136: 00:00:00 | E136: 2274.35 | F136: 2294.6 | G136: 2255.95 | H136: 2294.6 | I136: 53276628576 | J136: 0.009729415751 | K136: =GAZP_170901_180430!H136/GAZP_170901_180430!H135-1 -> 0.0198915009
A137: IMOEX | B137: D | C137: 2018-03-19 | D137: 00:00:00 | E137: 2300.38 | F137: 2302.78 | G137: 2279.5 | H137: 2281.72 | I137: 34531623969 | J137: -0.005613178768 | K137: =GAZP_170901_180430!H137/GAZP_170901_180430!H136-1 -> -0.007730496454
A138: IMOEX | B138: D | C138: 2018-03-20 | D138: 00:00:00 | E138: 2281.53 | F138: 2293.85 | G138: 2263.48 | H138: 2291.18 | I138: 42412581711 | J138: 0.004145995126 | K138: =GAZP_170901_180430!H138/GAZP_170901_180430!H137-1 -> 0.01815452791
A139: IMOEX | B139: D | C139: 2018-03-21 | D139: 00:00:00 | E139: 2292.74 | F139: 2316.08 | G139: 2290.18 | H139: 2309.36 | I139: 44081625158 | J139: 0.007934775967 | K139: =GAZP_170901_180430!H139/GAZP_170901_180430!H138-1 -> -0.006598806599
A140: IMOEX | B140: D | C140: 2018-03-22 | D140: 00:00:00 | E140: 2311.31 | F140: 2317.38 | G140: 2279.63 | H140: 2285.76 | I140: 36070853645 | J140: -0.01021928153 | K140: =GAZP_170901_180430!H140/GAZP_170901_180430!H139-1 -> -0.01420394318
A141: IMOEX | B141: D | C141: 2018-03-23 | D141: 00:00:00 | E141: 2272.32 | F141: 2288.15 | G141: 2259.78 | H141: 2285.53 | I141: 38871145835 | J141: -0.0001006229875 | K141: =GAZP_170901_180430!H141/GAZP_170901_180430!H140-1 -> 0.01792114695
A142: IMOEX | B142: D | C142: 2018-03-26 | D142: 00:00:00 | E142: 2283.95 | F142: 2284.37 | G142: 2240.85 | H142: 2240.85 | I142: 37868106026 | J142: -0.01954907614 | K142: =GAZP_170901_180430!H142/GAZP_170901_180430!H141-1 -> -0.02626760563
A143: IMOEX | B143: D | C143: 2018-03-27 | D143: 00:00:00 | E143: 2248.11 | F143: 2271.62 | G143: 2243.08 | H143: 2262.5 | I143: 32424661786 | J143: 0.009661512373 | K143: =GAZP_170901_180430!H143/GAZP_170901_180430!H142-1 -> 0.01829753381
A144: IMOEX | B144: D | C144: 2018-03-28 | D144: 00:00:00 | E144: 2252.64 | F144: 2258.52 | G144: 2241.07 | H144: 2249.23 | I144: 32480178904 | J144: -0.00586519337 | K144: =GAZP_170901_180430!H144/GAZP_170901_180430!H143-1 -> -0.00234375
A145: IMOEX | B145: D | C145: 2018-03-29 | D145: 00:00:00 | E145: 2251.61 | F145: 2274.62 | G145: 2251.61 | H145: 2274.62 | I145: 31247991527 | J145: 0.01128830755 | K145: =GAZP_170901_180430!H145/GAZP_170901_180430!H144-1 -> 0.01658717164
A146: IMOEX | B146: D | C146: 2018-03-30 | D146: 00:00:00 | E146: 2278.94 | F146: 2281.54 | G146: 2270.98 | H146: 2270.98 | I146: 10538701967 | J146: -0.001600267297 | K146: =GAZP_170901_180430!H146/GAZP_170901_180430!H145-1 -> -0.003291316527
A147: IMOEX | B147: D | C147: 2018-04-02 | D147: 00:00:00 | E147: 2272.55 | F147: 2294.08 | G147: 2256.64 | H147: 2256.64 | I147: 24731128865 | J147: -0.006314454553 | K147: =GAZP_170901_180430!H147/GAZP_170901_180430!H146-1 -> -0.01412211059
A148: IMOEX | B148: D | C148: 2018-04-03 | D148: 00:00:00 | E148: 2259.8 | F148: 2264.07 | G148: 2245.83 | H148: 2263.85 | I148: 33010239571 | J148: 0.003195015598 | K148: =GAZP_170901_180430!H148/GAZP_170901_180430!H147-1 -> 0.005772519954
A149: IMOEX | B149: D | C149: 2018-04-04 | D149: 00:00:00 | E149: 2264.74 | F149: 2273.53 | G149: 2248.48 | H149: 2265.6 | I149: 34553316437 | J149: 0.0007730194138 | K149: =GAZP_170901_180430!H149/GAZP_170901_180430!H148-1 -> -0.006731382413
A150: IMOEX | B150: D | C150: 2018-04-05 | D150: 00:00:00 | E150: 2270.16 | F150: 2297.69 | G150: 2270.16 | H150: 2296.25 | I150: 37766035317 | J150: 0.01352842514 | K150: =GAZP_170901_180430!H150/GAZP_170901_180430!H149-1 -> 0.002282779284
A151: IMOEX | B151: D | C151: 2018-04-06 | D151: 00:00:00 | E151: 2287 | F151: 2293.99 | G151: 2274.91 | H151: 2281.23 | I151: 35847188658 | J151: -0.006541099619 | K151: =GAZP_170901_180430!H151/GAZP_170901_180430!H150-1 -> 0.007117437722
A152: IMOEX | B152: D | C152: 2018-04-09 | D152: 00:00:00 | E152: 2272.4 | F152: 2272.4 | G152: 2065.32 | H152: 2090.88 | I152: 148148487374 | J152: -0.08344182744 | K152: =GAZP_170901_180430!H152/GAZP_170901_180430!H151-1 -> -0.04586572438
A153: IMOEX | B153: D | C153: 2018-04-10 | D153: 00:00:00 | E153: 2090.37 | F153: 2199.44 | G153: 2083.3 | H153: 2173.76 | I153: 119667924382 | J153: 0.03963881237 | K153: =GAZP_170901_180430!H153/GAZP_170901_180430!H152-1 -> 0.04155247759
A154: IMOEX | B154: D | C154: 2018-04-11 | D154: 00:00:00 | E154: 2172.45 | F154: 2231.26 | G154: 2157.92 | H154: 2192.15 | I154: 71882706469 | J154: 0.008459995584 | K154: =GAZP_170901_180430!H154/GAZP_170901_180430!H153-1 -> 0.03306784241
A155: IMOEX | B155: D | C155: 2018-04-12 | D155: 00:00:00 | E155: 2207.84 | F155: 2220.83 | G155: 2173.64 | H155: 2210.05 | I155: 64819676115 | J155: 0.008165499624 | K155: =GAZP_170901_180430!H155/GAZP_170901_180430!H154-1 -> 0.004956288291
A156: IMOEX | B156: D | C156: 2018-04-13 | D156: 00:00:00 | E156: 2212.28 | F156: 2219.1 | G156: 2167.9 | H156: 2175.16 | I156: 65417234616 | J156: -0.01578697315 | K156: =GAZP_170901_180430!H156/GAZP_170901_180430!H155-1 -> -0.02335776423
A157: IMOEX | B157: D | C157: 2018-04-16 | D157: 00:00:00 | E157: 2156.28 | F157: 2179.75 | G157: 2141.17 | H157: 2143.67 | I157: 72616341730 | J157: -0.01447709594 | K157: =GAZP_170901_180430!H157/GAZP_170901_180430!H156-1 -> -0.007574694908
A158: IMOEX | B158: D | C158: 2018-04-17 | D158: 00:00:00 | E158: 2177.8 | F158: 2191.19 | G158: 2165.21 | H158: 2191.19 | I158: 64604753310 | J158: 0.02216759109 | K158: =GAZP_170901_180430!H158/GAZP_170901_180430!H157-1 -> 0.006360424028
A159: IMOEX | B159: D | C159: 2018-04-18 | D159: 00:00:00 | E159: 2193.73 | F159: 2246.6 | G159: 2191.67 | H159: 2241.49 | I159: 75033565420 | J159: 0.02295556296 | K159: =GAZP_170901_180430!H159/GAZP_170901_180430!H158-1 -> 0.01650280899
A160: IMOEX | B160: D | C160: 2018-04-19 | D160: 00:00:00 | E160: 2248.08 | F160: 2265.92 | G160: 2219.49 | H160: 2230.55 | I160: 57630725592 | J160: -0.004880682046 | K160: =GAZP_170901_180430!H160/GAZP_170901_180430!H159-1 -> -0.00932642487
A161: IMOEX | B161: D | C161: 2018-04-20 | D161: 00:00:00 | E161: 2229.23 | F161: 2242.72 | G161: 2222.81 | H161: 2232.66 | I161: 32907921169 | J161: 0.0009459550335 | K161: =GAZP_170901_180430!H161/GAZP_170901_180430!H160-1 -> 0.006973500697
A162: IMOEX | B162: D | C162: 2018-04-23 | D162: 00:00:00 | E162: 2231.42 | F162: 2250.99 | G162: 2212.16 | H162: 2250.99 | I162: 62257473827 | J162: 0.008209937922 | K162: =GAZP_170901_180430!H162/GAZP_170901_180430!H161-1 -> -0.00283933518
A163: IMOEX | B163: D | C163: 2018-04-24 | D163: 00:00:00 | E163: 2260.17 | F163: 2270.61 | G163: 2245.57 | H163: 2253.77 | I163: 46142806069 | J163: 0.00123501215 | K163: =GAZP_170901_180430!H163/GAZP_170901_180430!H162-1 -> 0.00104173901
A164: IMOEX | B164: D | C164: 2018-04-25 | D164: 00:00:00 | E164: 2245.06 | F164: 2253.5 | G164: 2229.66 | H164: 2253.5 | I164: 39477072373 | J164: -0.0001197992697 | K164: =GAZP_170901_180430!H164/GAZP_170901_180430!H163-1 -> -0.009990287221
A165: IMOEX | B165: D | C165: 2018-04-26 | D165: 00:00:00 | E165: 2255.66 | F165: 2286.73 | G165: 2253.92 | H165: 2286.02 | I165: 45975451684 | J165: 0.01443088529 | K165: =GAZP_170901_180430!H165/GAZP_170901_180430!H164-1 -> 0.01948142957
A166: IMOEX | B166: D | C166: 2018-04-27 | D166: 00:00:00 | E166: 2287.95 | F166: 2302.54 | G166: 2281.49 | H166: 2301.49 | I166: 43987139180 | J166: 0.006767219884 | K166: =GAZP_170901_180430!H166/GAZP_170901_180430!H165-1 -> -0.006736321144
A167: IMOEX | B167: D | C167: 2018-04-30 | D167: 00:00:00 | E167: 2296.11 | F167: 2322.38 | G167: 2289.33 | H167: 2307.02 | I167: 23787703485 | J167: 0.002402791235 | K167: =GAZP_170901_180430!H167/GAZP_170901_180430!H166-1 -> 0.009896193772

Sheet GAZP_170901_180430
A1: <TICKER> | B1: <PER> | C1: <DATE> | D1: <TIME> | E1: <OPEN> | F1: <HIGH> | G1: <LOW> | H1: <CLOSE> | I1: <VOL>
A2: GAZP | B2: D | C2: 2017-09-01 | D2: 00:00:00 | E2: 118.02 | F2: 118.26 | G2: 117.04 | H2: 117.4 | I2: 22690580
A3: GAZP | B3: D | C3: 2017-09-04 | D3: 00:00:00 | E3: 117.03 | F3: 117.65 | G3: 116.56 | H3: 117 | I3: 15938500
A4: GAZP | B4: D | C4: 2017-09-05 | D4: 00:00:00 | E4: 117.55 | F4: 117.89 | G4: 115.9 | H4: 116 | I4: 26541020
A5: GAZP | B5: D | C5: 2017-09-06 | D5: 00:00:00 | E5: 116 | F5: 117.58 | G5: 115.66 | H5: 117.14 | I5: 24387110
A6: GAZP | B6: D | C6: 2017-09-07 | D6: 00:00:00 | E6: 117.61 | F6: 119.03 | G6: 117.38 | H6: 117.95 | I6: 37059350
A7: GAZP | B7: D | C7: 2017-09-08 | D7: 00:00:00 | E7: 118.2 | F7: 120.45 | G7: 118.16 | H7: 120.34 | I7: 41825350
A8: GAZP | B8: D | C8: 2017-09-11 | D8: 00:00:00 | E8: 120.81 | F8: 121.94 | G8: 119.63 | H8: 121 | I8: 40230290
A9: GAZP | B9: D | C9: 2017-09-12 | D9: 00:00:00 | E9: 121.22 | F9: 122 | G9: 120.16 | H9: 121.99 | I9: 27228360
A10: GAZP | B10: D | C10: 2017-09-13 | D10: 00:00:00 | E10: 121.99 | F10: 124.38 | G10: 121.99 | H10: 123.55 | I10: 51210280
A11: GAZP | B11: D | C11: 2017-09-14 | D11: 00:00:00 | E11: 123.57 | F11: 124.19 | G11: 122.79 | H11: 123.33 | I11: 29452320
A12: GAZP | B12: D | C12: 2017-09-15 | D12: 00:00:00 | E12: 122.89 | F12: 123 | G12: 121.59 | H12: 122.5 | I12: 41826920
A13: GAZP | B13: D | C13: 2017-09-18 | D13: 00:00:00 | E13: 122.5 | F13: 123.35 | G13: 122.07 | H13: 122.72 | I13: 26878140
A14: GAZP | B14: D | C14: 2017-09-19 | D14: 00:00:00 | E14: 122.72 | F14: 122.8 | G14: 121.05 | H14: 121.75 | I14: 32095850
A15: GAZP | B15: D | C15: 2017-09-20 | D15: 00:00:00 | E15: 121.88 | F15: 122.43 | G15: 121.52 | H15: 122.25 | I15: 25978430
A16: GAZP | B16: D | C16: 2017-09-21 | D16: 00:00:00 | E16: 122.11 | F16: 123.2 | G16: 121.61 | H16: 122.34 | I16: 35204520
A17: GAZP | B17: D | C17: 2017-09-22 | D17: 00:00:00 | E17: 122.36 | F17: 122.46 | G17: 121.3 | H17: 121.95 | I17: 19164830
A18: GAZP | B18: D | C18: 2017-09-25 | D18: 00:00:00 | E18: 121.98 | F18: 123.6 | G18: 121.9 | H18: 123.03 | I18: 28206840
A19: GAZP | B19: D | C19: 2017-09-26 | D19: 00:00:00 | E19: 123.27 | F19: 124.19 | G19: 122.84 | H19: 123.03 | I19: 25695940
A20: GAZP | B20: D | C20: 2017-09-27 | D20: 00:00:00 | E20: 123.18 | F20: 123.68 | G20: 122.46 | H20: 123.36 | I20: 22485510
A21: GAZP | B21: D | C21: 2017-09-28 | D21: 00:00:00 | E21: 123.28 | F21: 123.62 | G21: 122.11 | H21: 122.5 | I21: 22610060
A22: GAZP | B22: D | C22: 2017-09-29 | D22: 00:00:00 | E22: 122.5 | F22: 122.81 | G22: 121.7 | H22: 122.2 | I22: 17182380
A23: GAZP | B23: D | C23: 2017-10-02 | D23: 00:00:00 | E23: 122.29 | F23: 122.44 | G23: 121.4 | H23: 121.9 | I23: 14198990
A24: GAZP | B24: D | C24: 2017-10-03 | D24: 00:00:00 | E24: 121.81 | F24: 122.11 | G24: 120.47 | H24: 120.78 | I24: 26873740
A25: GAZP | B25: D | C25: 2017-10-04 | D25: 00:00:00 | E25: 120.68 | F25: 121.95 | G25: 119.7 | H25: 121.76 | I25: 24254160
A26: GAZP | B26: D | C26: 2017-10-05 | D26: 00:00:00 | E26: 121.79 | F26: 123.97 | G26: 121.51 | H26: 123.5 | I26: 39979330
A27: GAZP | B27: D | C27: 2017-10-06 | D27: 00:00:00 | E27: 123.54 | F27: 124.48 | G27: 123.27 | H27: 123.47 | I27: 30270700
A28: GAZP | B28: D | C28: 2017-10-09 | D28: 00:00:00 | E28: 123.7 | F28: 124.9 | G28: 123.41 | H28: 124.81 | I28: 22035180
A29: GAZP | B29: D | C29: 2017-10-10 | D29: 00:00:00 | E29: 125 | F29: 125.33 | G29: 124.17 | H29: 124.44 | I29: 20064040
A30: GAZP | B30: D | C30: 2017-10-11 | D30: 00:00:00 | E30: 124.54 | F30: 126 | G30: 124.38 | H30: 126 | I30: 30323720
A31: GAZP | B31: D | C31: 2017-10-12 | D31: 00:00:00 | E31: 126.04 | F31: 126.79 | G31: 125.45 | H31: 125.93 | I31: 18051060
A32: GAZP | B32: D | C32: 2017-10-13 | D32: 00:00:00 | E32: 126 | F32: 127.39 | G32: 125.8 | H32: 126.86 | I32: 23707840
A33: GAZP | B33: D | C33: 2017-10-16 | D33: 00:00:00 | E33: 127.11 | F33: 127.8 | G33: 126.68 | H33: 127.17 | I33: 23771970
A34: GAZP | B34: D | C34: 2017-10-17 | D34: 00:00:00 | E34: 127.05 | F34: 127.2 | G34: 125.05 | H34: 125.15 | I34: 28299320
A35: GAZP | B35: D | C35: 2017-10-18 | D35: 00:00:00 | E35: 125.44 | F35: 127.09 | G35: 125.26 | H35: 126.7 | I35: 29571630
A36: GAZP | B36: D | C36: 2017-10-19 | D36: 00:00:00 | E36: 126.78 | F36: 127.39 | G36: 125.17 | H36: 125.5 | I36: 22518290
A37: GAZP | B37: D | C37: 2017-10-20 | D37: 00:00:00 | E37: 125.81 | F37: 127.05 | G37: 125.6 | H37: 126.7 | I37: 21042270
A38: GAZP | B38: D | C38: 2017-10-23 | D38: 00:00:00 | E38: 127.06 | F38: 127.47 | G38: 126.37 | H38: 126.8 | I38: 17286880
A39: GAZP | B39: D | C39: 2017-10-24 | D39: 00:00:00 | E39: 126.89 | F39: 126.97 | G39: 125.61 | H39: 126.02 | I39: 20349440
A40: GAZP | B40: D | C40: 2017-10-25 | D40: 00:00:00 | E40: 126.55 | F40: 126.75 | G40: 124.28 | H40: 125 | I40: 24125900
A41: GAZP | B41: D | C41: 2017-10-26 | D41: 00:00:00 | E41: 124.99 | F41: 125.39 | G41: 124.07 | H41: 124.2 | I41: 14719810
A42: GAZP | B42: D | C42: 2017-10-27 | D42: 00:00:00 | E42: 124.57 | F42: 125.94 | G42: 123.64 | H42: 125.94 | I42: 28566500
A43: GAZP | B43: D | C43: 2017-10-30 | D43: 00:00:00 | E43: 125.96 | F43: 126.93 | G43: 125.53 | H43: 125.98 | I43: 19229280
A44: GAZP | B44: D | C44: 2017-10-31 | D44: 00:00:00 | E44: 126.12 | F44: 126.6 | G44: 125.57 | H44: 125.9 | I44: 11847690
A45: GAZP | B45: D | C45: 2017-11-01 | D45: 00:00:00 | E45: 126.34 | F45: 126.89 | G45: 125.97 | H45: 126.5 | I45: 18167600
A46: GAZP | B46: D | C46: 2017-11-02 | D46: 00:00:00 | E46: 125.88 | F46: 126 | G46: 124.87 | H46: 125.67 | I46: 15528250
A47: GAZP | B47: D | C47: 2017-11-03 | D47: 00:00:00 | E47: 125.71 | F47: 126.84 | G47: 125.71 | H47: 125.9 | I47: 22607180
A48: GAZP | B48: D | C48: 2017-11-07 | D48: 00:00:00 | E48: 127.06 | F48: 132.55 | G48: 127.05 | H48: 132.28 | I48: 82128530
A49: GAZP | B49: D | C49: 2017-11-08 | D49: 00:00:00 | E49: 132.1 | F49: 133.94 | G49: 131.58 | H49: 132.3 | I49: 39337670
A50: GAZP | B50: D | C50: 2017-11-09 | D50: 00:00:00 | E50: 132.31 | F50: 132.82 | G50: 131.14 | H50: 131.5 | I50: 33846240
A51: GAZP | B51: D | C51: 2017-11-10 | D51: 00:00:00 | E51: 131.05 | F51: 133.84 | G51: 130.51 | H51: 132.5 | I51: 47096990
A52: GAZP | B52: D | C52: 2017-11-13 | D52: 00:00:00 | E52: 132.64 | F52: 134.18 | G52: 131.71 | H52: 133.32 | I52: 29445370
A53: GAZP | B53: D | C53: 2017-11-14 | D53: 00:00:00 | E53: 133.07 | F53: 134.28 | G53: 132.35 | H53: 132.93 | I53: 42176770
A54: GAZP | B54: D | C54: 2017-11-15 | D54: 00:00:00 | E54: 132.01 | F54: 132.79 | G54: 131.21 | H54: 131.21 | I54: 23233500
A55: GAZP | B55: D | C55: 2017-11-16 | D55: 00:00:00 | E55: 131.79 | F55: 132.7 | G55: 127.74 | H55: 129.2 | I55: 42097040
A56: GAZP | B56: D | C56: 2017-11-17 | D56: 00:00:00 | E56: 129.65 | F56: 130.87 | G56: 129.06 | H56: 129.65 | I56: 18113220
A57: GAZP | B57: D | C57: 2017-11-20 | D57: 00:00:00 | E57: 129.8 | F57: 130.49 | G57: 128.63 | H57: 129.96 | I57: 15642930
A58: GAZP | B58: D | C58: 2017-11-21 | D58: 00:00:00 | E58: 130.45 | F58: 133.05 | G58: 130.35 | H58: 132.49 | I58: 35516950
A59: GAZP | B59: D | C59: 2017-11-22 | D59: 00:00:00 | E59: 133.01 | F59: 133.65 | G59: 132.2 | H59: 132.57 | I59: 25079290
A60: GAZP | B60: D | C60: 2017-11-23 | D60: 00:00:00 | E60: 132.5 | F60: 133.1 | G60: 131.3 | H60: 131.6 | I60: 29101330
A61: GAZP | B61: D | C61: 2017-11-24 | D61: 00:00:00 | E61: 131.56 | F61: 134.19 | G61: 131.31 | H61: 133.57 | I61: 29025290
A62: GAZP | B62: D | C62: 2017-11-27 | D62: 00:00:00 | E62: 133.61 | F62: 135.19 | G62: 132.8 | H62: 133.5 | I62: 27676810
A63: GAZP | B63: D | C63: 2017-11-28 | D63: 00:00:00 | E63: 133.29 | F63: 135.18 | G63: 132.55 | H63: 135.18 | I63: 26653360
A64: GAZP | B64: D | C64: 2017-11-29 | D64: 00:00:00 | E64: 134.86 | F64: 134.86 | G64: 132.97 | H64: 133.55 | I64: 27221990
A65: GAZP | B65: D | C65: 2017-11-30 | D65: 00:00:00 | E65: 133 | F65: 134.31 | G65: 132 | H65: 132.15 | I65: 39953360
A66: GAZP | B66: D | C66: 2017-12-01 | D66: 00:00:00 | E66: 132.47 | F66: 133.32 | G66: 131.72 | H66: 133.02 | I66: 24739380
A67: GAZP | B67: D | C67: 2017-12-04 | D67: 00:00:00 | E67: 133.01 | F67: 134 | G67: 131.93 | H67: 133.77 | I67: 17805030
A68: GAZP | B68: D | C68: 2017-12-05 | D68: 00:00:00 | E68: 133.47 | F68: 133.99 | G68: 132.78 | H68: 133.65 | I68: 12681030
A69: GAZP | B69: D | C69: 2017-12-06 | D69: 00:00:00 | E69: 133.32 | F69: 134.29 | G69: 132.91 | H69: 134 | I69: 14625230
A70: GAZP | B70: D | C70: 2017-12-07 | D70: 00:00:00 | E70: 133.66 | F70: 133.87 | G70: 132.81 | H70: 133.02 | I70: 18187870
A71: GAZP | B71: D | C71: 2017-12-08 | D71: 00:00:00 | E71: 133.42 | F71: 133.9 | G71: 132 | H71: 132.6 | I71: 16027170
A72: GAZP | B72: D | C72: 2017-12-11 | D72: 00:00:00 | E72: 132.35 | F72: 134.65 | G72: 132.35 | H72: 134.65 | I72: 22727400
A73: GAZP | B73: D | C73: 2017-12-12 | D73: 00:00:00 | E73: 134.69 | F73: 135.6 | G73: 133.65 | H73: 135.5 | I73: 25137070
A74: GAZP | B74: D | C74: 2017-12-13 | D74: 00:00:00 | E74: 135.18 | F74: 136.42 | G74: 134.6 | H74: 135.56 | I74: 23251380
A75: GAZP | B75: D | C75: 2017-12-14 | D75: 00:00:00 | E75: 135.42 | F75: 136.2 | G75: 134.9 | H75: 135.91 | I75: 22537690
A76: GAZP | B76: D | C76: 2017-12-15 | D76: 00:00:00 | E76: 135.72 | F76: 136.16 | G76: 135 | H76: 135.5 | I76: 25066350
A77: GAZP | B77: D | C77: 2017-12-18 | D77: 00:00:00 | E77: 135.64 | F77: 136.35 | G77: 132.94 | H77: 134.25 | I77: 31018990
A78: GAZP | B78: D | C78: 2017-12-19 | D78: 00:00:00 | E78: 134.13 | F78: 134.74 | G78: 133.5 | H78: 133.96 | I78: 16458270
A79: GAZP | B79: D | C79: 2017-12-20 | D79: 00:00:00 | E79: 133.96 | F79: 134.33 | G79: 132.35 | H79: 132.5 | I79: 23877480
A80: GAZP | B80: D | C80: 2017-12-21 | D80: 00:00:00 | E80: 133 | F80: 133.47 | G80: 130.2 | H80: 131.7 | I80: 39251410
A81: GAZP | B81: D | C81: 2017-12-22 | D81: 00:00:00 | E81: 132.15 | F81: 133.48 | G81: 131.05 | H81: 132.42 | I81: 16550650
A82: GAZP | B82: D | C82: 2017-12-25 | D82: 00:00:00 | E82: 132.72 | F82: 133.19 | G82: 131.8 | H82: 131.96 | I82: 5658690
A83: GAZP | B83: D | C83: 2017-12-26 | D83: 00:00:00 | E83: 132.23 | F83: 132.44 | G83: 129.62 | H83: 131.2 | I83: 12765160
A84: GAZP | B84: D | C84: 2017-12-27 | D84: 00:00:00 | E84: 131.29 | F84: 132.23 | G84: 130.45 | H84: 130.99 | I84: 15957460
A85: GAZP | B85: D | C85: 2017-12-28 | D85: 00:00:00 | E85: 130.88 | F85: 131.2 | G85: 129.81 | H85: 130.53 | I85: 16271890
A86: GAZP | B86: D | C86: 2017-12-29 | D86: 00:00:00 | E86: 130.42 | F86: 130.93 | G86: 128.86 | H86: 130.5 | I86: 16285270
A87: GAZP | B87: D | C87: 2018-01-03 | D87: 00:00:00 | E87: 131.03 | F87: 132.2 | G87: 130.63 | H87: 132.2 | I87: 10522070
A88: GAZP | B88: D | C88: 2018-01-04 | D88: 00:00:00 | E88: 132.5 | F88: 136.2 | G88: 132.3 | H88: 135.89 | I88: 32092300
A89: GAZP | B89: D | C89: 2018-01-05 | D89: 00:00:00 | E89: 135.8 | F89: 137.12 | G89: 135.08 | H89: 137.12 | I89: 19965100
A90: GAZP | B90: D | C90: 2018-01-09 | D90: 00:00:00 | E90: 138 | F90: 141.35 | G90: 137.6 | H90: 140 | I90: 52204990
A91: GAZP | B91: D | C91: 2018-01-10 | D91: 00:00:00 | E91: 140.49 | F91: 143.43 | G91: 139.58 | H91: 143.43 | I91: 51756440
A92: GAZP | B92: D | C92: 2018-01-11 | D92: 00:00:00 | E92: 143.23 | F92: 144.8 | G92: 142.31 | H92: 144.58 | I92: 38571480
A93: GAZP | B93: D | C93: 2018-01-12 | D93: 00:00:00 | E93: 144.21 | F93: 144.54 | G93: 141.64 | H93: 143.99 | I93: 36760620
A94: GAZP | B94: D | C94: 2018-01-15 | D94: 00:00:00 | E94: 144.33 | F94: 145.5 | G94: 142.6 | H94: 142.99 | I94: 30037050
A95: GAZP | B95: D | C95: 2018-01-16 | D95: 00:00:00 | E95: 143.16 | F95: 145.35 | G95: 141.89 | H95: 145.29 | I95: 36982660
A96: GAZP | B96: D | C96: 2018-01-17 | D96: 00:00:00 | E96: 144.51 | F96: 149.2 | G96: 143.31 | H96: 148.7 | I96: 64088350
A97: GAZP | B97: D | C97: 2018-01-18 | D97: 00:00:00 | E97: 148.79 | F97: 150.35 | G97: 148.13 | H97: 150.35 | I97: 53857120
A98: GAZP | B98: D | C98: 2018-01-19 | D98: 00:00:00 | E98: 149.94 | F98: 151 | G98: 148.4 | H98: 149.13 | I98: 38996740
A99: GAZP | B99: D | C99: 2018-01-22 | D99: 00:00:00 | E99: 149.09 | F99: 150.3 | G99: 148.85 | H99: 150.3 | I99: 22745110
A100: GAZP | B100: D | C100: 2018-01-23 | D100: 00:00:00 | E100: 150.8 | F100: 151.65 | G100: 147.71 | H100: 148.8 | I100: 35760870
A101: GAZP | B101: D | C101: 2018-01-24 | D101: 00:00:00 | E101: 148.51 | F101: 149.7 | G101: 146.6 | H101: 149.7 | I101: 24826570
A102: GAZP | B102: D | C102: 2018-01-25 | D102: 00:00:00 | E102: 150.02 | F102: 151.39 | G102: 149.27 | H102: 149.8 | I102: 41825580
A103: GAZP | B103: D | C103: 2018-01-26 | D103: 00:00:00 | E103: 149.4 | F103: 149.55 | G103: 146.01 | H103: 147.19 | I103: 35266440
A104: GAZP | B104: D | C104: 2018-01-29 | D104: 00:00:00 | E104: 146.77 | F104: 147.29 | G104: 144.15 | H104: 144.75 | I104: 36073370
A105: GAZP | B105: D | C105: 2018-01-30 | D105: 00:00:00 | E105: 144 | F105: 146.43 | G105: 142.37 | H105: 143.5 | I105: 51240710
A106: GAZP | B106: D | C106: 2018-01-31 | D106: 00:00:00 | E106: 142.98 | F106: 144.5 | G106: 141.8 | H106: 143.36 | I106: 44234770
A107: GAZP | B107: D | C107: 2018-02-01 | D107: 00:00:00 | E107: 143.43 | F107: 146.17 | G107: 143.13 | H107: 145.39 | I107: 37413040
A108: GAZP | B108: D | C108: 2018-02-02 | D108: 00:00:00 | E108: 145.68 | F108: 146.78 | G108: 142.88 | H108: 144 | I108: 39050390
A109: GAZP | B109: D | C109: 2018-02-05 | D109: 00:00:00 | E109: 142.87 | F109: 145.2 | G109: 142.3 | H109: 144.53 | I109: 33048750
A110: GAZP | B110: D | C110: 2018-02-06 | D110: 00:00:00 | E110: 141.73 | F110: 142.82 | G110: 140.4 | H110: 141.59 | I110: 51830950
A111: GAZP | B111: D | C111: 2018-02-07 | D111: 00:00:00 | E111: 142.45 | F111: 143.39 | G111: 141 | H111: 141 | I111: 32853320
A112: GAZP | B112: D | C112: 2018-02-08 | D112: 00:00:00 | E112: 140.47 | F112: 140.85 | G112: 137.14 | H112: 137.2 | I112: 42662580
A113: GAZP | B113: D | C113: 2018-02-09 | D113: 00:00:00 | E113: 135.99 | F113: 136.7 | G113: 132.8 | H113: 135.56 | I113: 53098540
A114: GAZP | B114: D | C114: 2018-02-12 | D114: 00:00:00 | E114: 136.87 | F114: 138.1 | G114: 136.03 | H114: 137.3 | I114: 29360450
A115: GAZP | B115: D | C115: 2018-02-13 | D115: 00:00:00 | E115: 138 | F115: 140.1 | G115: 137.45 | H115: 139.85 | I115: 36398240
A116: GAZP | B116: D | C116: 2018-02-14 | D116: 00:00:00 | E116: 140.03 | F116: 140.57 | G116: 137.02 | H116: 138.89 | I116: 34106600
A117: GAZP | B117: D | C117: 2018-02-15 | D117: 00:00:00 | E117: 139.79 | F117: 140.99 | G117: 137.06 | H117: 137.06 | I117: 29054840
A118: GAZP | B118: D | C118: 2018-02-16 | D118: 00:00:00 | E118: 137.85 | F118: 139.49 | G118: 136.77 | H118: 137.06 | I118: 24628330
A119: GAZP | B119: D | C119: 2018-02-19 | D119: 00:00:00 | E119: 137.36 | F119: 138.7 | G119: 137.13 | H119: 138.31 | I119: 14431390
A120: GAZP | B120: D | C120: 2018-02-20 | D120: 00:00:00 | E120: 138.78 | F120: 144.29 | G120: 138.78 | H120: 141.32 | I120: 62769320
A121: GAZP | B121: D | C121: 2018-02-21 | D121: 00:00:00 | E121: 140.9 | F121: 144 | G121: 140.53 | H121: 144 | I121: 24886450
A122: GAZP | B122: D | C122: 2018-02-22 | D122: 00:00:00 | E122: 143.43 | F122: 145.97 | G122: 142.63 | H122: 145.97 | I122: 29870140
A123: GAZP | B123: D | C123: 2018-02-26 | D123: 00:00:00 | E123: 148.07 | F123: 149.98 | G123: 146.42 | H123: 147 | I123: 37150990
A124: GAZP | B124: D | C124: 2018-02-27 | D124: 00:00:00 | E124: 147.2 | F124: 147.49 | G124: 144.85 | H124: 146.5 | I124: 24771080
A125: GAZP | B125: D | C125: 2018-02-28 | D125: 00:00:00 | E125: 145.5 | F125: 145.75 | G125: 142.25 | H125: 143.16 | I125: 36217520
A126: GAZP | B126: D | C126: 2018-03-01 | D126: 00:00:00 | E126: 141 | F126: 142 | G126: 139.39 | H126: 140.1 | I126: 47285230
A127: GAZP | B127: D | C127: 2018-03-02 | D127: 00:00:00 | E127: 139.63 | F127: 140.59 | G127: 137.77 | H127: 138.57 | I127: 26799640
A128: GAZP | B128: D | C128: 2018-03-05 | D128: 00:00:00 | E128: 138.8 | F128: 141.83 | G128: 138.57 | H128: 141.6 | I128: 23220830
A129: GAZP | B129: D | C129: 2018-03-06 | D129: 00:00:00 | E129: 142.25 | F129: 143.49 | G129: 140.47 | H129: 140.59 | I129: 24358140
A130: GAZP | B130: D | C130: 2018-03-07 | D130: 00:00:00 | E130: 139.96 | F130: 139.98 | G130: 137.38 | H130: 138.56 | I130: 28189860
A131: GAZP | B131: D | C131: 2018-03-09 | D131: 00:00:00 | E131: 138.8 | F131: 139.81 | G131: 137.79 | H131: 139.81 | I131: 12080580
A132: GAZP | B132: D | C132: 2018-03-12 | D132: 00:00:00 | E132: 140.44 | F132: 141.96 | G132: 140.11 | H132: 141.35 | I132: 16899310
A133: GAZP | B133: D | C133: 2018-03-13 | D133: 00:00:00 | E133: 141.1 | F133: 142.93 | G133: 139.95 | H133: 142.75 | I133: 22899860
A134: GAZP | B134: D | C134: 2018-03-14 | D134: 00:00:00 | E134: 141.82 | F134: 141.98 | G134: 138.8 | H134: 138.8 | I134: 31765180
A135: GAZP | B135: D | C135: 2018-03-15 | D135: 00:00:00 | E135: 138.58 | F135: 140.06 | G135: 138 | H135: 138.25 | I135: 34232460
A136: GAZP | B136: D | C136: 2018-03-16 | D136: 00:00:00 | E136: 138.66 | F136: 141 | G136: 137.11 | H136: 141 | I136: 42459720
A137: GAZP | B137: D | C137: 2018-03-19 | D137: 00:00:00 | E137: 141.2 | F137: 141.77 | G137: 139.43 | H137: 139.91 | I137: 21582910
A138: GAZP | B138: D | C138: 2018-03-20 | D138: 00:00:00 | E138: 140.25 | F138: 142.7 | G138: 139.31 | H138: 142.45 | I138: 25931850
A139: GAZP | B139: D | C139: 2018-03-21 | D139: 00:00:00 | E139: 142.7 | F139: 144 | G139: 140.84 | H139: 141.51 | I139: 31141240
A140: GAZP | B140: D | C140: 2018-03-22 | D140: 00:00:00 | E140: 141.73 | F140: 142.08 | G140: 139.2 | H140: 139.5 | I140: 20677700
A141: GAZP | B141: D | C141: 2018-03-23 | D141: 00:00:00 | E141: 138.78 | F141: 142.49 | G141: 137.82 | H141: 142 | I141: 33554360
A142: GAZP | B142: D | C142: 2018-03-26 | D142: 00:00:00 | E142: 142.01 | F142: 142.08 | G142: 138.27 | H142: 138.27 | I142: 27556030
A143: GAZP | B143: D | C143: 2018-03-27 | D143: 00:00:00 | E143: 139.23 | F143: 141.7 | G143: 139.01 | H143: 140.8 | I143: 25427090
A144: GAZP | B144: D | C144: 2018-03-28 | D144: 00:00:00 | E144: 140.01 | F144: 141.67 | G144: 139.13 | H144: 140.47 | I144: 21273130
A145: GAZP | B145: D | C145: 2018-03-29 | D145: 00:00:00 | E145: 140.71 | F145: 142.8 | G145: 140.71 | H145: 142.8 | I145: 23762490
A146: GAZP | B146: D | C146: 2018-03-30 | D146: 00:00:00 | E146: 143 | F146: 143.31 | G146: 142.05 | H146: 142.33 | I146: 8337160
A147: GAZP | B147: D | C147: 2018-04-02 | D147: 00:00:00 | E147: 142.39 | F147: 143.7 | G147: 140.32 | H147: 140.32 | I147: 18501160
A148: GAZP | B148: D | C148: 2018-04-03 | D148: 00:00:00 | E148: 140.32 | F148: 141.3 | G148: 139.7 | H148: 141.13 | I148: 13758480
A149: GAZP | B149: D | C149: 2018-04-04 | D149: 00:00:00 | E149: 141.02 | F149: 141.52 | G149: 139.02 | H149: 140.18 | I149: 22247310
A150: GAZP | B150: D | C150: 2018-04-05 | D150: 00:00:00 | E150: 140.66 | F150: 141.35 | G150: 139.8 | H150: 140.5 | I150: 20436610
A151: GAZP | B151: D | C151: 2018-04-06 | D151: 00:00:00 | E151: 140.13 | F151: 141.97 | G151: 139.45 | H151: 141.5 | I151: 27346240
A152: GAZP | B152: D | C152: 2018-04-09 | D152: 00:00:00 | E152: 140.93 | F152: 141.22 | G152: 128.19 | H152: 135.01 | I152: 91006200
A153: GAZP | B153: D | C153: 2018-04-10 | D153: 00:00:00 | E153: 134.95 | F153: 141.97 | G153: 133.5 | H153: 140.62 | I153: 58453070
A154: GAZP | B154: D | C154: 2018-04-11 | D154: 00:00:00 | E154: 141 | F154: 146.29 | G154: 140.71 | H154: 145.27 | I154: 62134680
A155: GAZP | B155: D | C155: 2018-04-12 | D155: 00:00:00 | E155: 145.71 | F155: 146.89 | G155: 142.13 | H155: 145.99 | I155: 40706810
A156: GAZP | B156: D | C156: 2018-04-13 | D156: 00:00:00 | E156: 146 | F156: 146.75 | G156: 142.09 | H156: 142.58 | I156: 26381420
A157: GAZP | B157: D | C157: 2018-04-16 | D157: 00:00:00 | E157: 141.03 | F157: 142.83 | G157: 139.87 | H157: 141.5 | I157: 26630690
A158: GAZP | B158: D | C158: 2018-04-17 | D158: 00:00:00 | E158: 142.45 | F158: 143.18 | G158: 140.66 | H158: 142.4 | I158: 26680260
A159: GAZP | B159: D | C159: 2018-04-18 | D159: 00:00:00 | E159: 142.67 | F159: 145.31 | G159: 142.04 | H159: 144.75 | I159: 28080120
A160: GAZP | B160: D | C160: 2018-04-19 | D160: 00:00:00 | E160: 145.2 | F160: 145.75 | G160: 142.57 | H160: 143.4 | I160: 20518720
A161: GAZP | B161: D | C161: 2018-04-20 | D161: 00:00:00 | E161: 143.3 | F161: 145.5 | G161: 142.9 | H161: 144.4 | I161: 21147520
A162: GAZP | B162: D | C162: 2018-04-23 | D162: 00:00:00 | E162: 144.3 | F162: 144.48 | G162: 142 | H162: 143.99 | I162: 32633930
A163: GAZP | B163: D | C163: 2018-04-24 | D163: 00:00:00 | E163: 144 | F163: 146.52 | G163: 143.52 | H163: 144.14 | I163: 29007820
A164: GAZP | B164: D | C164: 2018-04-25 | D164: 00:00:00 | E164: 143.5 | F164: 143.89 | G164: 141.41 | H164: 142.7 | I164: 23792050
A165: GAZP | B165: D | C165: 2018-04-26 | D165: 00:00:00 | E165: 143.01 | F165: 145.75 | G165: 142.6 | H165: 145.48 | I165: 22254120
A166: GAZP | B166: D | C166: 2018-04-27 | D166: 00:00:00 | E166: 145.81 | F166: 146 | G166: 143.77 | H166: 144.5 | I166: 19498970
A167: GAZP | B167: D | C167: 2018-04-30 | D167: 00:00:00 | E167: 144.32 | F167: 147.29 | G167: 143.7 | H167: 145.93 | I167: 15278690

Sheet Close
A1: Date | B1: EESR | C1: LKOH | D1: SBER | E1: RTKM | F1: SNGS | G1: TATN | I1: П(t) | J1: П(t) - П(t-1) | K1: П(t) - П(t-5) | L1: П(t) - П(t-10) | N1: Confidence interval | Q1: HistVar | R1: DeltaNormal
A2: 2001-01-03 | B2: 2.3 | C2: 237.68 | D2: 645.99999 | E2: 22.89 | F2: 5.259 | G2: 9.42 | I2: =B2*Portfolio!$B$3+Close!C2*Portfolio!$C$3+Close!D2*Portfolio!$D$3+Close!E2*Portfolio!$E$3+Close!F2*Portfolio!$F$3+Close!G2*Portfolio!$G$3 -> 293086.9999 | N2: 0.95 | P2: 1 day | Q2: =histVar($J$2:$J$468,$N$2) -> 22030.40915 | R2: =NORMINV($N$2,0,1)*$N$5 -> 22891.37011
A3: 2001-01-04 | B3: 2.254 | C3: 262.21 | D3: 690 | E3: 24.76 | F3: 5.814 | G3: 9.88 | I3: =B3*Portfolio!$B$3+Close!C3*Portfolio!$C$3+Close!D3*Portfolio!$D$3+Close!E3*Portfolio!$E$3+Close!F3*Portfolio!$F$3+Close!G3*Portfolio!$G$3 -> 294035 | J3: =I3-I2 -> 948.0001 | P3: 5 days | Q3: =histVar($K$3:$K$469,$N$2) -> 48159 | R3: =R2*SQRT(5) -> 51186.65967
A4: 2001-01-05 | B4: 2.344 | C4: 270 | D4: 700 | E4: 25 | F4: 6.81833 | G4: 9.95 | I4: =B4*Portfolio!$B$3+Close!C4*Portfolio!$C$3+Close!D4*Portfolio!$D$3+Close!E4*Portfolio!$E$3+Close!F4*Portfolio!$F$3+Close!G4*Portfolio!$G$3 -> 305193.33 | J4: 11158.33 | N4: Deviance | P4: 10 days | Q4: =histVar($L$4:$L$470,$N$2) -> 76674.435 | R4: =R2*SQRT(10) -> 72388.86832
A5: 2001-01-09 | B5: 2.344 | C5: 283.5 | D5: 706.8 | E5: 24.82 | F5: 6.25 | G5: 9.81 | I5: =B5*Portfolio!$B$3+Close!C5*Portfolio!$C$3+Close!D5*Portfolio!$D$3+Close!E5*Portfolio!$E$3+Close!F5*Portfolio!$F$3+Close!G5*Portfolio!$G$3 -> 305793 | J5: 599.67 | N5: =STDEV(J3:J468) -> 13916.96485
A6: 2001-01-10 | B6: 2.453 | C6: 297 | D6: 722.57 | E6: 25.84 | F6: 6.628 | G6: 10.28 | I6: =B6*Portfolio!$B$3+Close!C6*Portfolio!$C$3+Close!D6*Portfolio!$D$3+Close!E6*Portfolio!$E$3+Close!F6*Portfolio!$F$3+Close!G6*Portfolio!$G$3 -> 319833.7 | J6: 14040.7
A7: 2001-01-11 | B7: 2.514 | C7: 303.59999 | D7: 733.71 | E7: 27.46 | F7: 6.769 | G7: 11.9 | I7: =B7*Portfolio!$B$3+Close!C7*Portfolio!$C$3+Close!D7*Portfolio!$D$3+Close!E7*Portfolio!$E$3+Close!F7*Portfolio!$F$3+Close!G7*Portfolio!$G$3 -> 329276.099 | J7: 9442.399 | K7: =I7-I2 -> 36189.0991 | N7: Expected value
A8: 2001-01-12 | B8: 2.574 | C8: 304.26 | D8: 744.8575 | E8: 28.4 | F8: 6.715 | G8: 11.205 | I8: =B8*Portfolio!$B$3+Close!C8*Portfolio!$C$3+Close!D8*Portfolio!$D$3+Close!E8*Portfolio!$E$3+Close!F8*Portfolio!$F$3+Close!G8*Portfolio!$G$3 -> 335992.075 | J8: 6715.976 | K8: 41957.075 | N8: =AVERAGE(J3:J468) -> 392.8220281
A9: 2001-01-15 | B9: 2.6265 | C9: 312.5 | D9: 752.99667 | E9: 29.395 | F9: 6.91 | G9: 12.21167 | I9: =B9*Portfolio!$B$3+Close!C9*Portfolio!$C$3+Close!D9*Portfolio!$D$3+Close!E9*Portfolio!$E$3+Close!F9*Portfolio!$F$3+Close!G9*Portfolio!$G$3 -> 343840.8017 | J9: 7848.7267 | K9: 38647.4717
A10: 2001-01-16 | B10: 2.593 | C10: 311.68 | D10: 751 | E10: 28.67 | F10: 6.864 | G10: 12 | I10: =B10*Portfolio!$B$3+Close!C10*Portfolio!$C$3+Close!D10*Portfolio!$D$3+Close!E10*Portfolio!$E$3+Close!F10*Portfolio!$F$3+Close!G10*Portfolio!$G$3 -> 339512 | J10: -4328.8017 | K10: 33719 | N10: Quantile
A11: 2001-01-17 | B11: 2.662 | C11: 323 | D11: 773.5 | E11: 29.495 | F11: 6.98 | G11: 12.5 | I11: =B11*Portfolio!$B$3+Close!C11*Portfolio!$C$3+Close!D11*Portfolio!$D$3+Close!E11*Portfolio!$E$3+Close!F11*Portfolio!$F$3+Close!G11*Portfolio!$G$3 -> 348960 | J11: 9448 | K11: 29126.3 | N11: =NORMINV($N$2,$N$8,$N$5) -> 23284.19214
A12: 2001-01-18 | B12: 2.678 | C12: 321.6 | D12: 774.75 | E12: 29.93 | F12: 6.983 | G12: 12.68 | I12: =B12*Portfolio!$B$3+Close!C12*Portfolio!$C$3+Close!D12*Portfolio!$D$3+Close!E12*Portfolio!$E$3+Close!F12*Portfolio!$F$3+Close!G12*Portfolio!$G$3 -> 350960.5 | J12: 2000.5 | K12: 21684.401
A13: 2001-01-19 | B13: 2.796 | C13: 320.49 | D13: 802 | E13: 30.76 | F13: 7.169 | G13: 12.83 | I13: =B13*Portfolio!$B$3+Close!C13*Portfolio!$C$3+Close!D13*Portfolio!$D$3+Close!E13*Portfolio!$E$3+Close!F13*Portfolio!$F$3+Close!G13*Portfolio!$G$3 -> 364013 | J13: 13052.5 | K13: 28020.925
A14: 2001-01-22 | B14: 2.67 | C14: 304.2 | D14: 781 | E14: 29.38 | F14: 7.15 | G14: 12.33 | I14: =B14*Portfolio!$B$3+Close!C14*Portfolio!$C$3+Close!D14*Portfolio!$D$3+Close!E14*Portfolio!$E$3+Close!F14*Portfolio!$F$3+Close!G14*Portfolio!$G$3 -> 347925 | J14: -16088 | K14: 4084.1983
A15: 2001-01-23 | B15: 2.7 | C15: 309.77 | D15: 787.46 | E15: 28.56 | F15: 7.2 | G15: 12.694 | I15: =B15*Portfolio!$B$3+Close!C15*Portfolio!$C$3+Close!D15*Portfolio!$D$3+Close!E15*Portfolio!$E$3+Close!F15*Portfolio!$F$3+Close!G15*Portfolio!$G$3 -> 350958.6 | J15: 3033.6 | K15: 11446.6 | L15: =I15-I5 -> 45165.6
A16: 2001-01-24 | B16: 2.89 | C16: 325.78 | D16: 815.5 | E16: 29.62 | F16: 7.594 | G16: 13.34 | I16: =B16*Portfolio!$B$3+Close!C16*Portfolio!$C$3+Close!D16*Portfolio!$D$3+Close!E16*Portfolio!$E$3+Close!F16*Portfolio!$F$3+Close!G16*Portfolio!$G$3 -> 373617 | J16: 22658.4 | K16: 24657 | L16: 53783.3
A17: 2001-01-25 | B17: 3.59999 | C17: 324.98333 | D17: 805.68 | E17: 29.83 | F17: 7.622 | G17: 13.795 | I17: =B17*Portfolio!$B$3+Close!C17*Portfolio!$C$3+Close!D17*Portfolio!$D$3+Close!E17*Portfolio!$E$3+Close!F17*Portfolio!$F$3+Close!G17*Portfolio!$G$3 -> 444903.633 | J17: 71286.633 | K17: 93943.133 | L17: 115627.534
A18: 2001-01-26 | B18: 3.017 | C18: 320.174 | D18: 794 | E18: 29.86 | F18: 7.63 | G18: 13.9 | I18: =B18*Portfolio!$B$3+Close!C18*Portfolio!$C$3+Close!D18*Portfolio!$D$3+Close!E18*Portfolio!$E$3+Close!F18*Portfolio!$F$3+Close!G18*Portfolio!$G$3 -> 386097.4 | J18: -58806.233 | K18: 22084.4 | L18: 50105.325
A19: 2001-01-29 | B19: 2.961 | C19: 290.4 | D19: 758.11 | E19: 29.26 | F19: 7.465 | G19: 13.76 | I19: =B19*Portfolio!$B$3+Close!C19*Portfolio!$C$3+Close!D19*Portfolio!$D$3+Close!E19*Portfolio!$E$3+Close!F19*Portfolio!$F$3+Close!G19*Portfolio!$G$3 -> 376326.1 | J19: -9771.3 | K19: 28401.1 | L19: 32485.2983
A20: 2001-01-30 | B20: 3.02 | C20: 288.61 | D20: 759.995 | E20: 29.64 | F20: 7.49 | G20: 13.96 | I20: =B20*Portfolio!$B$3+Close!C20*Portfolio!$C$3+Close!D20*Portfolio!$D$3+Close!E20*Portfolio!$E$3+Close!F20*Portfolio!$F$3+Close!G20*Portfolio!$G$3 -> 382570.95 | J20: 6244.85 | K20: 31612.35 | L20: 43058.95
A21: 2001-01-31 | B21: 3.016 | C21: 286.76 | D21: 757.32 | E21: 29.46 | F21: 7.4 | G21: 14.19 | I21: =B21*Portfolio!$B$3+Close!C21*Portfolio!$C$3+Close!D21*Portfolio!$D$3+Close!E21*Portfolio!$E$3+Close!F21*Portfolio!$F$3+Close!G21*Portfolio!$G$3 -> 381804.2 | J21: -766.75 | K21: 8187.2 | L21: 32844.2
A22: 2001-02-01 | B22: 2.882 | C22: 283 | D22: 730 | E22: 28.65 | F22: 7.291 | G22: 13.95 | I22: =B22*Portfolio!$B$3+Close!C22*Portfolio!$C$3+Close!D22*Portfolio!$D$3+Close!E22*Portfolio!$E$3+Close!F22*Portfolio!$F$3+Close!G22*Portfolio!$G$3 -> 366716 | J22: -15088.2 | K22: -78187.633 | L22: 15755.5
A23: 2001-02-02 | B23: 2.917 | C23: 285.56 | D23: 722.9 | E23: 28.75 | F23: 7.194 | G23: 13.75 | I23: =B23*Portfolio!$B$3+Close!C23*Portfolio!$C$3+Close!D23*Portfolio!$D$3+Close!E23*Portfolio!$E$3+Close!F23*Portfolio!$F$3+Close!G23*Portfolio!$G$3 -> 370304 | J23: 3588 | K23: -15793.4 | L23: 6291
A24: 2001-02-05 | B24: 2.8 | C24: 274.82 | D24: 734.06 | E24: 28.5 | F24: 6.71 | G24: 13.44 | I24: =B24*Portfolio!$B$3+Close!C24*Portfolio!$C$3+Close!D24*Portfolio!$D$3+Close!E24*Portfolio!$E$3+Close!F24*Portfolio!$F$3+Close!G24*Portfolio!$G$3 -> 356752.6 | J24: -13551.4 | K24: -19573.5 | L24: 8827.6
A25: 2001-02-06 | B25: 2.916 | C25: 285 | D25: 742.14 | E25: 29.78 | F25: 6.847 | G25: 13.45 | I25: =B25*Portfolio!$B$3+Close!C25*Portfolio!$C$3+Close!D25*Portfolio!$D$3+Close!E25*Portfolio!$E$3+Close!F25*Portfolio!$F$3+Close!G25*Portfolio!$G$3 -> 370873.4 | J25: 14120.8 | K25: -11697.55 | L25: 19914.8
A26: 2001-02-07 | B26: 2.82 | C26: 277.22 | D26: 725.33667 | E26: 29.43 | F26: 6.704 | G26: 13.64 | I26: =B26*Portfolio!$B$3+Close!C26*Portfolio!$C$3+Close!D26*Portfolio!$D$3+Close!E26*Portfolio!$E$3+Close!F26*Portfolio!$F$3+Close!G26*Portfolio!$G$3 -> 359929.3667 | J26: -10944.0333 | K26: -21874.8333 | L26: -13687.6333
A27: 2001-02-08 | B27: 2.961 | C27: 284.4 | D27: 733.57 | E27: 29.97 | F27: 6.894 | G27: 13.85 | I27: =B27*Portfolio!$B$3+Close!C27*Portfolio!$C$3+Close!D27*Portfolio!$D$3+Close!E27*Portfolio!$E$3+Close!F27*Portfolio!$F$3+Close!G27*Portfolio!$G$3 -> 375664.7 | J27: 15735.3333 | K27: 8948.7 | L27: -69238.933
A28: 2001-02-09 | B28: 2.901 | C28: 281 | D28: 720.8 | E28: 29.38 | F28: 6.805 | G28: 14.05 | I28: =B28*Portfolio!$B$3+Close!C28*Portfolio!$C$3+Close!D28*Portfolio!$D$3+Close!E28*Portfolio!$E$3+Close!F28*Portfolio!$F$3+Close!G28*Portfolio!$G$3 -> 368618 | J28: -7046.7 | K28: -1686 | L28: -17479.4
A29: 2001-02-12 | B29: 2.915 | C29: 282.46 | D29: 714.5 | E29: 29.46333 | F29: 6.84367 | G29: 14 | I29: =B29*Portfolio!$B$3+Close!C29*Portfolio!$C$3+Close!D29*Portfolio!$D$3+Close!E29*Portfolio!$E$3+Close!F29*Portfolio!$F$3+Close!G29*Portfolio!$G$3 -> 370198 | J29: 1580 | K29: 13445.4 | L29: -6128.1
A30: 2001-02-13 | B30: 3.113 | C30: 293.64 | D30: 733.28 | E30: 30.75 | F30: 7.31125 | G30: 14.6 | I30: =B30*Portfolio!$B$3+Close!C30*Portfolio!$C$3+Close!D30*Portfolio!$D$3+Close!E30*Portfolio!$E$3+Close!F30*Portfolio!$F$3+Close!G30*Portfolio!$G$3 -> 393358.05 | J30: 23160.05 | K30: 22484.65 | L30: 10787.1
A31: 2001-02-14 | B31: 3.133 | C31: 297.55 | D31: 727.8 | E31: 30.33 | F31: 7.349 | G31: 14.67 | I31: =B31*Portfolio!$B$3+Close!C31*Portfolio!$C$3+Close!D31*Portfolio!$D$3+Close!E31*Portfolio!$E$3+Close!F31*Portfolio!$F$3+Close!G31*Portfolio!$G$3 -> 395347 | J31: 1988.95 | K31: 35417.6333 | L31: 13542.8
A32: 2001-02-15 | B32: 3.415 | C32: 310.77 | D32: 780.06 | E32: 32.75 | F32: 7.578 | G32: 15.38 | I32: =B32*Portfolio!$B$3+Close!C32*Portfolio!$C$3+Close!D32*Portfolio!$D$3+Close!E32*Portfolio!$E$3+Close!F32*Portfolio!$F$3+Close!G32*Portfolio!$G$3 -> 428395.6 | J32: 33048.6 | K32: 52730.9 | L32: 61679.6
A33: 2001-02-16 | B33: 3.233 | C33: 294 | D33: 742.68 | E33: 30.46 | F33: 7.178 | G33: 14.67 | I33: =B33*Portfolio!$B$3+Close!C33*Portfolio!$C$3+Close!D33*Portfolio!$D$3+Close!E33*Portfolio!$E$3+Close!F33*Portfolio!$F$3+Close!G33*Portfolio!$G$3 -> 405099.8 | J33: -23295.8 | K33: 36481.8 | L33: 34795.8
A34: 2001-02-19 | B34: 3.154 | C34: 288.01 | D34: 730 | E34: 28.92 | F34: 6.926 | G34: 14.65 | I34: =B34*Portfolio!$B$3+Close!C34*Portfolio!$C$3+Close!D34*Portfolio!$D$3+Close!E34*Portfolio!$E$3+Close!F34*Portfolio!$F$3+Close!G34*Portfolio!$G$3 -> 394672 | J34: -10427.8 | K34: 24474 | L34: 37919.4
A35: 2001-02-20 | B35: 3.084 | C35: 285.445 | D35: 717.84 | E35: 28.54 | F35: 6.864 | G35: 14.61 | I35: =B35*Portfolio!$B$3+Close!C35*Portfolio!$C$3+Close!D35*Portfolio!$D$3+Close!E35*Portfolio!$E$3+Close!F35*Portfolio!$F$3+Close!G35*Portfolio!$G$3 -> 386831.9 | J35: -7840.1 | K35: -6526.15 | L35: 15958.5
A36: 2001-02-21 | B36: 2.718 | C36: 268.23 | D36: 670 | E36: 25.46 | F36: 6.08 | G36: 13.37 | I36: =B36*Portfolio!$B$3+Close!C36*Portfolio!$C$3+Close!D36*Portfolio!$D$3+Close!E36*Portfolio!$E$3+Close!F36*Portfolio!$F$3+Close!G36*Portfolio!$G$3 -> 343548 | J36: -43283.9 | K36: -51799 | L36: -16381.3667
A37: 2001-02-22 | B37: 2.804 | C37: 280.92 | D37: 675.625 | E37: 25.28 | F37: 6.469 | G37: 14.11 | I37: =B37*Portfolio!$B$3+Close!C37*Portfolio!$C$3+Close!D37*Portfolio!$D$3+Close!E37*Portfolio!$E$3+Close!F37*Portfolio!$F$3+Close!G37*Portfolio!$G$3 -> 354052.25 | J37: 10504.25 | K37: -74343.35 | L37: -21612.45
A38: 2001-02-23 | B38: 2.693 | C38: 270.61 | D38: 661 | E38: 24.55 | F38: 6.15 | G38: 13.8 | I38: =B38*Portfolio!$B$3+Close!C38*Portfolio!$C$3+Close!D38*Portfolio!$D$3+Close!E38*Portfolio!$E$3+Close!F38*Portfolio!$F$3+Close!G38*Portfolio!$G$3 -> 340571 | J38: -13481.25 | K38: -64528.8 | L38: -28047
A39: 2001-02-26 | B39: 2.831 | C39: 278 | D39: 691.73 | E39: 25.46 | F39: 6.42 | G39: 14.2 | I39: =B39*Portfolio!$B$3+Close!C39*Portfolio!$C$3+Close!D39*Portfolio!$D$3+Close!E39*Portfolio!$E$3+Close!F39*Portfolio!$F$3+Close!G39*Portfolio!$G$3 -> 356797.3 | J39: 16226.3 | K39: -37874.7 | L39: -13400.7
A40: 2001-02-27 | B40: 2.698 | C40: 272.06 | D40: 671 | E40: 24.32 | F40: 6.172 | G40: 13.76 | I40: =B40*Portfolio!$B$3+Close!C40*Portfolio!$C$3+Close!D40*Portfolio!$D$3+Close!E40*Portfolio!$E$3+Close!F40*Portfolio!$F$3+Close!G40*Portfolio!$G$3 -> 341088 | J40: -15709.3 | K40: -45743.9 | L40: -52270.05
A41: 2001-02-28 | B41: 2.735 | C41: 274.49 | D41: 674.5 | E41: 24.46 | F41: 6.37 | G41: 14.2 | I41: =B41*Portfolio!$B$3+Close!C41*Portfolio!$C$3+Close!D41*Portfolio!$D$3+Close!E41*Portfolio!$E$3+Close!F41*Portfolio!$F$3+Close!G41*Portfolio!$G$3 -> 345624 | J41: 4536 | K41: 2076 | L41: -49723
A42: 2001-03-01 | B42: 2.606 | C42: 265.92 | D42: 686.68 | E42: 23.71667 | F42: 6.272 | G42: 14.03 | I42: =B42*Portfolio!$B$3+Close!C42*Portfolio!$C$3+Close!D42*Portfolio!$D$3+Close!E42*Portfolio!$E$3+Close!F42*Portfolio!$F$3+Close!G42*Portfolio!$G$3 -> 331062.47 | J42: -14561.53 | K42: -22989.78 | L42: -97333.13
A43: 2001-03-02 | B43: 2.666 | C43: 263.24 | D43: 704.5 | E43: 24.095 | F43: 6.381 | G43: 13.8 | I43: =B43*Portfolio!$B$3+Close!C43*Portfolio!$C$3+Close!D43*Portfolio!$D$3+Close!E43*Portfolio!$E$3+Close!F43*Portfolio!$F$3+Close!G43*Portfolio!$G$3 -> 337345 | J43: 6282.53 | K43: -3226 | L43: -67754.8
A44: 2001-03-05 | B44: 2.919 | C44: 276.7 | D44: 747.798 | E44: 25.18 | F44: 6.87 | G44: 13.77 | I44: =B44*Portfolio!$B$3+Close!C44*Portfolio!$C$3+Close!D44*Portfolio!$D$3+Close!E44*Portfolio!$E$3+Close!F44*Portfolio!$F$3+Close!G44*Portfolio!$G$3 -> 365982.98 | J44: 28637.98 | K44: 9185.68 | L44: -28689.02
A45: 2001-03-06 | B45: 3.135 | C45: 294 | D45: 790 | E45: 27.02 | F45: 7.13217 | G45: 14 | I45: =B45*Portfolio!$B$3+Close!C45*Portfolio!$C$3+Close!D45*Portfolio!$D$3+Close!E45*Portfolio!$E$3+Close!F45*Portfolio!$F$3+Close!G45*Portfolio!$G$3 -> 391952.17 | J45: 25969.19 | K45: 50864.17 | L45: 5120.27
A46: 2001-03-07 | B46: 3.214 | C46: 298.26 | D46: 824.74 | E46: 27.436 | F46: 7.319 | G46: 14.1 | I46: =B46*Portfolio!$B$3+Close!C46*Portfolio!$C$3+Close!D46*Portfolio!$D$3+Close!E46*Portfolio!$E$3+Close!F46*Portfolio!$F$3+Close!G46*Portfolio!$G$3 -> 401278.4 | J46: 9326.23 | K46: 55654.4 | L46: 57730.4
A47: 2001-03-11 | B47: 3.083 | C47: 292.2 | D47: 803.77 | E47: 26.11 | F47: 7.13 | G47: 13.8 | I47: =B47*Portfolio!$B$3+Close!C47*Portfolio!$C$3+Close!D47*Portfolio!$D$3+Close!E47*Portfolio!$E$3+Close!F47*Portfolio!$F$3+Close!G47*Portfolio!$G$3 -> 385697.7 | J47: -15580.7 | K47: 54635.23 | L47: 31645.45
A48: 2001-03-12 | B48: 3 | C48: 286.35 | D48: 777.58 | E48: 25.77 | F48: 6.955 | G48: 12.9 | I48: =B48*Portfolio!$B$3+Close!C48*Portfolio!$C$3+Close!D48*Portfolio!$D$3+Close!E48*Portfolio!$E$3+Close!F48*Portfolio!$F$3+Close!G48*Portfolio!$G$3 -> 375585.8 | J48: -10111.9 | K48: 38240.8 | L48: 35014.8
A49: 2001-03-13 | B49: 2.991 | C49: 285.43 | D49: 781.98 | E49: 25.49 | F49: 6.921 | G49: 12.99 | I49: =B49*Portfolio!$B$3+Close!C49*Portfolio!$C$3+Close!D49*Portfolio!$D$3+Close!E49*Portfolio!$E$3+Close!F49*Portfolio!$F$3+Close!G49*Portfolio!$G$3 -> 374368.8 | J49: -1217 | K49: 8385.82 | L49: 17571.5
A50: 2001-03-14 | B50: 2.85383 | C50: 268.97 | D50: 827.9 | E50: 24.63 | F50: 6.48 | G50: 12 | I50: =B50*Portfolio!$B$3+Close!C50*Portfolio!$C$3+Close!D50*Portfolio!$D$3+Close!E50*Portfolio!$E$3+Close!F50*Portfolio!$F$3+Close!G50*Portfolio!$G$3 -> 357669 | J50: -16699.8 | K50: -34283.17 | L50: 16581
A51: 2001-03-15 | B51: 2.967 | C51: 279.39 | D51: 906.66 | E51: 24.82 | F51: 6.75 | G51: 12.38 | I51: =B51*Portfolio!$B$3+Close!C51*Portfolio!$C$3+Close!D51*Portfolio!$D$3+Close!E51*Portfolio!$E$3+Close!F51*Portfolio!$F$3+Close!G51*Portfolio!$G$3 -> 371465.6 | J51: 13796.6 | K51: -29812.8 | L51: 25841.6
A52: 2001-03-16 | B52: 3.013 | C52: 283.16 | D52: 950.5 | E52: 24.78 | F52: 6.818 | G52: 12.595 | I52: =B52*Portfolio!$B$3+Close!C52*Portfolio!$C$3+Close!D52*Portfolio!$D$3+Close!E52*Portfolio!$E$3+Close!F52*Portfolio!$F$3+Close!G52*Portfolio!$G$3 -> 377016.5 | J52: 5550.9 | K52: -8681.2 | L52: 45954.03
A53: 2001-03-19 | B53: 3.106 | C53: 288 | D53: 937.45 | E53: 25.99 | F53: 6.976 | G53: 13.09 | I53: =B53*Portfolio!$B$3+Close!C53*Portfolio!$C$3+Close!D53*Portfolio!$D$3+Close!E53*Portfolio!$E$3+Close!F53*Portfolio!$F$3+Close!G53*Portfolio!$G$3 -> 388285.5 | J53: 11269 | K53: 12699.7 | L53: 50940.5
A54: 2001-03-20 | B54: 3.086 | C54: 285.15 | D54: 941.23 | E54: 25.81 | F54: 7.047 | G54: 12.965 | I54: =B54*Portfolio!$B$3+Close!C54*Portfolio!$C$3+Close!D54*Portfolio!$D$3+Close!E54*Portfolio!$E$3+Close!F54*Portfolio!$F$3+Close!G54*Portfolio!$G$3 -> 385866.8 | J54: -2418.7 | K54: 11498 | L54: 19883.82
A55: 2001-03-21 | B55: 2.95833 | C55: 278 | D55: 915 | E55: 24.6 | F55: 6.836 | G55: 12.33 | I55: =B55*Portfolio!$B$3+Close!C55*Portfolio!$C$3+Close!D55*Portfolio!$D$3+Close!E55*Portfolio!$E$3+Close!F55*Portfolio!$F$3+Close!G55*Portfolio!$G$3 -> 370384 | J55: -15482.8 | K55: 12715 | L55: -21568.17
A56: 2001-03-22 | B56: 2.925 | C56: 279.92 | D56: 907.45 | E56: 24.3 | F56: 6.7 | G56: 12.12 | I56: =B56*Portfolio!$B$3+Close!C56*Portfolio!$C$3+Close!D56*Portfolio!$D$3+Close!E56*Portfolio!$E$3+Close!F56*Portfolio!$F$3+Close!G56*Portfolio!$G$3 -> 366626.5 | J56: -3757.5 | K56: -4839.1 | L56: -34651.9
A57: 2001-03-23 | B57: 2.996 | C57: 279.15667 | D57: 922 | E57: 23.94 | F57: 6.605 | G57: 12.36 | I57: =B57*Portfolio!$B$3+Close!C57*Portfolio!$C$3+Close!D57*Portfolio!$D$3+Close!E57*Portfolio!$E$3+Close!F57*Portfolio!$F$3+Close!G57*Portfolio!$G$3 -> 373460.667 | J57: 6834.167 | K57: -3555.833 | L57: -12237.033
A58: 2001-03-26 | B58: 3.032 | C58: 281.76 | D58: 908.66667 | E58: 23.88 | F58: 6.65 | G58: 12.1425 | I58: =B58*Portfolio!$B$3+Close!C58*Portfolio!$C$3+Close!D58*Portfolio!$D$3+Close!E58*Portfolio!$E$3+Close!F58*Portfolio!$F$3+Close!G58*Portfolio!$G$3 -> 377063.9167 | J58: 3603.2497 | K58: -11221.5833 | L58: 1478.1167
A59: 2001-03-27 | B59: 3 | C59: 285.5 | D59: 912.35 | E59: 23.45 | F59: 6.608 | G59: 12.015 | I59: =B59*Portfolio!$B$3+Close!C59*Portfolio!$C$3+Close!D59*Portfolio!$D$3+Close!E59*Portfolio!$E$3+Close!F59*Portfolio!$F$3+Close!G59*Portfolio!$G$3 -> 373739 | J59: -3324.9167 | K59: -12127.8 | L59: -629.8
A60: 2001-03-28 | B60: 2.925 | C60: 282 | D60: 909.86 | E60: 23.04667 | F60: 6.452 | G60: 12.01 | I60: =B60*Portfolio!$B$3+Close!C60*Portfolio!$C$3+Close!D60*Portfolio!$D$3+Close!E60*Portfolio!$E$3+Close!F60*Portfolio!$F$3+Close!G60*Portfolio!$G$3 -> 365302.27 | J60: -8436.73 | K60: -5081.73 | L60: 7633.27
A61: 2001-03-29 | B61: 2.851 | C61: 273.85 | D61: 900.06 | E61: 22.23 | F61: 6.114 | G61: 11.79 | I61: =B61*Portfolio!$B$3+Close!C61*Portfolio!$C$3+Close!D61*Portfolio!$D$3+Close!E61*Portfolio!$E$3+Close!F61*Portfolio!$F$3+Close!G61*Portfolio!$G$3 -> 355724.6 | J61: -9577.67 | K61: -10901.9 | L61: -15741
A62: 2001-03-30 | B62: 2.871 | C62: 269.65 | D62: 934.12 | E62: 22.31 | F62: 6.145 | G62: 11.63 | I62: =B62*Portfolio!$B$3+Close!C62*Portfolio!$C$3+Close!D62*Portfolio!$D$3+Close!E62*Portfolio!$E$3+Close!F62*Portfolio!$F$3+Close!G62*Portfolio!$G$3 -> 357676.2 | J62: 1951.6 | K62: -15784.467 | L62: -19340.3
A63: 2001-04-02 | B63: 2.789 | C63: 266.6225 | D63: 943.26143 | E63: 22.14 | F63: 6.078 | G63: 11.47 | I63: =B63*Portfolio!$B$3+Close!C63*Portfolio!$C$3+Close!D63*Portfolio!$D$3+Close!E63*Portfolio!$E$3+Close!F63*Portfolio!$F$3+Close!G63*Portfolio!$G$3 -> 348947.8643 | J63: -8728.3357 | K63: -28116.0524 | L63: -39337.6357
A64: 2001-04-03 | B64: 2.66 | C64: 258.3 | D64: 919.1 | E64: 21.51 | F64: 5.9 | G64: 11 | I64: =B64*Portfolio!$B$3+Close!C64*Portfolio!$C$3+Close!D64*Portfolio!$D$3+Close!E64*Portfolio!$E$3+Close!F64*Portfolio!$F$3+Close!G64*Portfolio!$G$3 -> 333931 | J64: -15016.8643 | K64: -39808 | L64: -51935.8
A65: 2001-04-04 | B65: 2.655 | C65: 257.55 | D65: 922.93 | E65: 20.54 | F65: 5.854 | G65: 10.99 | I65: =B65*Portfolio!$B$3+Close!C65*Portfolio!$C$3+Close!D65*Portfolio!$D$3+Close!E65*Portfolio!$E$3+Close!F65*Portfolio!$F$3+Close!G65*Portfolio!$G$3 -> 332373.3 | J65: -1557.7 | K65: -32928.97 | L65: -38010.7
A66: 2001-04-05 | B66: 2.852 | C66: 272.5 | D66: 961 | E66: 21.35 | F66: 6.044 | G66: 11.45 | I66: =B66*Portfolio!$B$3+Close!C66*Portfolio!$C$3+Close!D66*Portfolio!$D$3+Close!E66*Portfolio!$E$3+Close!F66*Portfolio!$F$3+Close!G66*Portfolio!$G$3 -> 355179 | J66: 22805.7 | K66: -545.6 | L66: -11447.5
A67: 2001-04-06 | B67: 2.776 | C67: 271.5 | D67: 939.925 | E67: 20.31 | F67: 5.975 | G67: 11.4 | I67: =B67*Portfolio!$B$3+Close!C67*Portfolio!$C$3+Close!D67*Portfolio!$D$3+Close!E67*Portfolio!$E$3+Close!F67*Portfolio!$F$3+Close!G67*Portfolio!$G$3 -> 346134.25 | J67: =I67-I66 -> -9044.75 | K67: -11541.95 | L67: -27326.417
A68: 2001-04-09 | B68: 2.821 | C68: 272.73 | D68: 938.91 | E68: 20.1 | F68: 5.904 | G68: 12 | I68: =B68*Portfolio!$B$3+Close!C68*Portfolio!$C$3+Close!D68*Portfolio!$D$3+Close!E68*Portfolio!$E$3+Close!F68*Portfolio!$F$3+Close!G68*Portfolio!$G$3 -> 350766.1 | J68: 4631.85 | K68: 1818.2357 | L68: -26297.8167
A69: 2001-04-10 | B69: 2.913 | C69: 282.3 | D69: 967.93 | E69: 20.81 | F69: 5.778 | G69: 12.28 | I69: =B69*Portfolio!$B$3+Close!C69*Portfolio!$C$3+Close!D69*Portfolio!$D$3+Close!E69*Portfolio!$E$3+Close!F69*Portfolio!$F$3+Close!G69*Portfolio!$G$3 -> 361937.3 | J69: 11171.2 | K69: 28006.3 | L69: -11801.7
A70: 2001-04-11 | B70: 2.99 | C70: 287 | D70: 1006.5 | E70: 21.7 | F70: 5.918 | G70: 12.255 | I70: =B70*Portfolio!$B$3+Close!C70*Portfolio!$C$3+Close!D70*Portfolio!$D$3+Close!E70*Portfolio!$E$3+Close!F70*Portfolio!$F$3+Close!G70*Portfolio!$G$3 -> 371510.5 | J70: 9573.2 | K70: 39137.2 | L70: 6208.23
A71: 2001-04-12 | B71: 2.912 | C71: 282.54 | D71: 1000.88 | E71: 21.18 | F71: 5.838 | G71: 12.07 | I71: =B71*Portfolio!$B$3+Close!C71*Portfolio!$C$3+Close!D71*Portfolio!$D$3+Close!E71*Portfolio!$E$3+Close!F71*Portfolio!$F$3+Close!G71*Portfolio!$G$3 -> 362515.8 | J71: -8994.7 | K71: =I71-I66 -> 7336.8 | L71: 6791.2
A72: 2001-04-13 | B72: 2.947 | C72: 283.65 | D72: 1026.99 | E72: 24.92 | F72: 5.95 | G72: 12.5 | I72: =B72*Portfolio!$B$3+Close!C72*Portfolio!$C$3+Close!D72*Portfolio!$D$3+Close!E72*Portfolio!$E$3+Close!F72*Portfolio!$F$3+Close!G72*Portfolio!$G$3 -> 370454.9 | J72: 7939.1 | K72: 24320.65 | L72: 12778.7
A73: 2001-04-16 | B73: 2.834 | C73: 279.75 | D73: 1008 | E73: 23.52 | F73: 5.8495 | G73: 12.34 | I73: =B73*Portfolio!$B$3+Close!C73*Portfolio!$C$3+Close!D73*Portfolio!$D$3+Close!E73*Portfolio!$E$3+Close!F73*Portfolio!$F$3+Close!G73*Portfolio!$G$3 -> 356994.5 | J73: -13460.4 | K73: 6228.4 | L73: 8046.6357
A74: 2001-04-17 | B74: 2.88 | C74: 278.9 | D74: 1027.99 | E74: 22.57 | F74: 5.6985 | G74: 12.29 | I74: =B74*Portfolio!$B$3+Close!C74*Portfolio!$C$3+Close!D74*Portfolio!$D$3+Close!E74*Portfolio!$E$3+Close!F74*Portfolio!$F$3+Close!G74*Portfolio!$G$3 -> 360583.4 | J74: 3588.9 | K74: -1353.9 | L74: 26652.4
A75: 2001-04-18 | B75: 3.054 | C75: 286.98833 | D75: 1083.09 | E75: 23.63 | F75: 5.908 | G75: 12.39 | I75: =B75*Portfolio!$B$3+Close!C75*Portfolio!$C$3+Close!D75*Portfolio!$D$3+Close!E75*Portfolio!$E$3+Close!F75*Portfolio!$F$3+Close!G75*Portfolio!$G$3 -> 380662.733 | J75: 20079.333 | K75: 9152.233 | L75: 48289.433
A76: 2001-04-19 | B76: 3.125 | C76: 294.7 | D76: 1064.43 | E76: 24.08 | F76: 6.01 | G76: 12.7075 | I76: =B76*Portfolio!$B$3+Close!C76*Portfolio!$C$3+Close!D76*Portfolio!$D$3+Close!E76*Portfolio!$E$3+Close!F76*Portfolio!$F$3+Close!G76*Portfolio!$G$3 -> 389058.05 | J76: 8395.317 | K76: 26542.25 | L76: 33879.05
A77: 2001-04-20 | B77: 2.983 | C77: 286.23 | D77: 1022.25 | E77: 22.68 | F77: 5.793 | G77: 12.1 | I77: =B77*Portfolio!$B$3+Close!C77*Portfolio!$C$3+Close!D77*Portfolio!$D$3+Close!E77*Portfolio!$E$3+Close!F77*Portfolio!$F$3+Close!G77*Portfolio!$G$3 -> 371668.5 | J77: -17389.55 | K77: 1213.6 | L77: 25534.25
A78: 2001-04-23 | B78: 2.843 | C78: 278.9 | D78: 1011.31 | E78: 22.12 | F78: 5.66 | G78: 11.9 | I78: =B78*Portfolio!$B$3+Close!C78*Portfolio!$C$3+Close!D78*Portfolio!$D$3+Close!E78*Portfolio!$E$3+Close!F78*Portfolio!$F$3+Close!G78*Portfolio!$G$3 -> 356033.1 | J78: -15635.4 | K78: -961.4 | L78: 5267
A79: 2001-04-24 | B79: 2.927 | C79: 285.29 | D79: 1036 | E79: 22.34 | F79: 5.751 | G79: 12.13 | I79: =B79*Portfolio!$B$3+Close!C79*Portfolio!$C$3+Close!D79*Portfolio!$D$3+Close!E79*Portfolio!$E$3+Close!F79*Portfolio!$F$3+Close!G79*Portfolio!$G$3 -> 365745 | J79: 9711.9 | K79: 5161.6 | L79: =I79-I69 -> 3807.7
A80: 2001-04-25 | B80: 2.926 | C80: 284.4 | D80: 1026 | E80: 22.38 | F80: 5.9 | G80: 12.35 | I80: =B80*Portfolio!$B$3+Close!C80*Portfolio!$C$3+Close!D80*Portfolio!$D$3+Close!E80*Portfolio!$E$3+Close!F80*Portfolio!$F$3+Close!G80*Portfolio!$G$3 -> 365755 | J80: 10 | K80: -14907.733 | L80: -5755.5
A81: 2001-04-26 | B81: 3.068 | C81: 293.99 | D81: 1065.65 | E81: 23.02 | F81: 6.14733 | G81: 12.6 | I81: =B81*Portfolio!$B$3+Close!C81*Portfolio!$C$3+Close!D81*Portfolio!$D$3+Close!E81*Portfolio!$E$3+Close!F81*Portfolio!$F$3+Close!G81*Portfolio!$G$3 -> 382322.83 | J81: 16567.83 | K81: -6735.22 | L81: 19807.03
A82: 2001-04-27 | B82: 3.177 | C82: 299.81 | D82: 1046.5 | E82: 22.99 | F82: 6.544 | G82: 12.96 | I82: =B82*Portfolio!$B$3+Close!C82*Portfolio!$C$3+Close!D82*Portfolio!$D$3+Close!E82*Portfolio!$E$3+Close!F82*Portfolio!$F$3+Close!G82*Portfolio!$G$3 -> 394160 | J82: 11837.17 | K82: 22491.5 | L82: 23705.1
A83: 2001-04-28 | B83: 3.08 | C83: 298 | D83: 1043.56 | E83: 22.68 | F83: 6.5 | G83: 12.86 | I83: =B83*Portfolio!$B$3+Close!C83*Portfolio!$C$3+Close!D83*Portfolio!$D$3+Close!E83*Portfolio!$E$3+Close!F83*Portfolio!$F$3+Close!G83*Portfolio!$G$3 -> 383845.6 | J83: -10314.4 | K83: 27812.5 | L83: 26851.1
A84: 2001-05-03 | B84: 3.122 | C84: 306.93 | D84: 1049 | E84: 22.65 | F84: 6.899 | G84: 13.08 | I84: =B84*Portfolio!$B$3+Close!C84*Portfolio!$C$3+Close!D84*Portfolio!$D$3+Close!E84*Portfolio!$E$3+Close!F84*Portfolio!$F$3+Close!G84*Portfolio!$G$3 -> 389472 | J84: 5626.4 | K84: 23727 | L84: 28888.6
A85: 2001-05-04 | B85: 3.118 | C85: 311.12 | D85: 1061.16667 | E85: 22.01 | F85: 7.022 | G85: 13.15 | I85: =B85*Portfolio!$B$3+Close!C85*Portfolio!$C$3+Close!D85*Portfolio!$D$3+Close!E85*Portfolio!$E$3+Close!F85*Portfolio!$F$3+Close!G85*Portfolio!$G$3 -> 389130.6667 | J85: -341.3333 | K85: 23375.6667 | L85: 8467.9337
A86: 2001-05-07 | B86: 3.183 | C86: 318.65 | D86: 1053.37 | E86: 22.04 | F86: 7.256 | G86: 13.4 | I86: =B86*Portfolio!$B$3+Close!C86*Portfolio!$C$3+Close!D86*Portfolio!$D$3+Close!E86*Portfolio!$E$3+Close!F86*Portfolio!$F$3+Close!G86*Portfolio!$G$3 -> 396694.7 | J86: 7564.0333 | K86: 14371.87 | L86: 7636.65
A87: 2001-05-08 | B87: 3.302 | C87: 327.42 | D87: 1061.16 | E87: 22.68 | F87: 7.538 | G87: 13.85 | I87: =B87*Portfolio!$B$3+Close!C87*Portfolio!$C$3+Close!D87*Portfolio!$D$3+Close!E87*Portfolio!$E$3+Close!F87*Portfolio!$F$3+Close!G87*Portfolio!$G$3 -> 410696.6 | J87: 14001.9 | K87: 16536.6 | L87: 39028.1
A88: 2001-05-10 | B88: 3.356 | C88: 334.19 | D88: 1061.91 | E88: 22.91 | F88: 7.68 | G88: 13.6 | I88: =B88*Portfolio!$B$3+Close!C88*Portfolio!$C$3+Close!D88*Portfolio!$D$3+Close!E88*Portfolio!$E$3+Close!F88*Portfolio!$F$3+Close!G88*Portfolio!$G$3 -> 417028.1 | J88: 6331.5 | K88: 33182.5 | L88: 60995
A89: 2001-05-11 | B89: 3.254 | C89: 330.86 | D89: 1051 | E89: 22.43 | F89: 7.6225 | G89: 13.2 | I89: =B89*Portfolio!$B$3+Close!C89*Portfolio!$C$3+Close!D89*Portfolio!$D$3+Close!E89*Portfolio!$E$3+Close!F89*Portfolio!$F$3+Close!G89*Portfolio!$G$3 -> 405648.5 | J89: -11379.6 | K89: 16176.5 | L89: 39903.5
A90: 2001-05-14 | B90: 3.215 | C90: 326.4975 | D90: 1047.5 | E90: 22.29 | F90: 7.51 | G90: 13.04 | I90: =B90*Portfolio!$B$3+Close!C90*Portfolio!$C$3+Close!D90*Portfolio!$D$3+Close!E90*Portfolio!$E$3+Close!F90*Portfolio!$F$3+Close!G90*Portfolio!$G$3 -> 400944.75 | J90: -4703.75 | K90: 11814.0833 | L90: 35189.75
A91: 2001-05-15 | B91: 3.234 | C91: 324.57 | D91: 1062 | E91: 22.05 | F91: 7.496 | G91: 13 | I91: =B91*Portfolio!$B$3+Close!C91*Portfolio!$C$3+Close!D91*Portfolio!$D$3+Close!E91*Portfolio!$E$3+Close!F91*Portfolio!$F$3+Close!G91*Portfolio!$G$3 -> 402523 | J91: 1578.25 | K91: 5828.3 | L91: 20200.17
A92: 2001-05-16 | B92: 3.185 | C92: 329.945 | D92: 1067 | E92: 22.15 | F92: 7.515 | G92: 13.085 | I92: =B92*Portfolio!$B$3+Close!C92*Portfolio!$C$3+Close!D92*Portfolio!$D$3+Close!E92*Portfolio!$E$3+Close!F92*Portfolio!$F$3+Close!G92*Portfolio!$G$3 -> 398372 | J92: -4151 | K92: -12324.6 | L92: 4212
A93: 2001-05-17 | B93: 3.389 | C93: 350 | D93: 1076.5 | E93: 22.84 | F93: 7.939 | G93: 13.60667 | I93: =B93*Portfolio!$B$3+Close!C93*Portfolio!$C$3+Close!D93*Portfolio!$D$3+Close!E93*Portfolio!$E$3+Close!F93*Portfolio!$F$3+Close!G93*Portfolio!$G$3 -> 422247.335 | J93: 23875.335 | K93: 5219.235 | L93: 38401.735
A94: 2001-05-18 | B94: 3.358 | C94: 352 | D94: 1088.59333 | E94: 23.54 | F94: 8.075 | G94: 13.92 | I94: =B94*Portfolio!$B$3+Close!C94*Portfolio!$C$3+Close!D94*Portfolio!$D$3+Close!E94*Portfolio!$E$3+Close!F94*Portfolio!$F$3+Close!G94*Portfolio!$G$3 -> 420460.9333 | J94: -1786.4017 | K94: 14812.4333 | L94: 30988.9333
A95: 2001-05-21 | B95: 3.195 | C95: 368.81 | D95: 1085.41 | E95: 24.7 | F95: 8.231 | G95: 14.35 | I95: =B95*Portfolio!$B$3+Close!C95*Portfolio!$C$3+Close!D95*Portfolio!$D$3+Close!E95*Portfolio!$E$3+Close!F95*Portfolio!$F$3+Close!G95*Portfolio!$G$3 -> 407341.1 | J95: -13119.8333 | K95: 6396.35 | L95: 18210.4333
A96: 2001-05-22 | B96: 3.085 | C96: 362.99 | D96: 1096.5 | E96: 23.78 | F96: 8.08 | G96: 14 | I96: =B96*Portfolio!$B$3+Close!C96*Portfolio!$C$3+Close!D96*Portfolio!$D$3+Close!E96*Portfolio!$E$3+Close!F96*Portfolio!$F$3+Close!G96*Portfolio!$G$3 -> 394624 | J96: -12717.1 | K96: -7899 | L96: -2070.7
A97: 2001-05-23 | B97: 3.102 | C97: 368.18 | D97: 1169.99 | E97: 24.19 | F97: 8.2088 | G97: 14.39 | I97: =B97*Portfolio!$B$3+Close!C97*Portfolio!$C$3+Close!D97*Portfolio!$D$3+Close!E97*Portfolio!$E$3+Close!F97*Portfolio!$F$3+Close!G97*Portfolio!$G$3 -> 398311.7 | J97: 3687.7 | K97: -60.3 | L97: -12384.9
A98: 2001-05-24 | B98: 3.049 | C98: 365 | D98: 1140.39667 | E98: 23.03 | F98: 8.209 | G98: 14.79 | I98: =B98*Portfolio!$B$3+Close!C98*Portfolio!$C$3+Close!D98*Portfolio!$D$3+Close!E98*Portfolio!$E$3+Close!F98*Portfolio!$F$3+Close!G98*Portfolio!$G$3 -> 391437.9667 | J98: -6873.7333 | K98: -30809.3683 | L98: -25590.1333
A99: 2001-05-25 | B99: 2.947 | C99: 353.99 | D99: 1122.32 | E99: 22.65 | F99: 8.069 | G99: 14.7 | I99: =B99*Portfolio!$B$3+Close!C99*Portfolio!$C$3+Close!D99*Portfolio!$D$3+Close!E99*Portfolio!$E$3+Close!F99*Portfolio!$F$3+Close!G99*Portfolio!$G$3 -> 379391.2 | J99: -12046.7667 | K99: -41069.7333 | L99: -26257.3
A100: 2001-05-28 | B100: 2.96 | C100: 354.11 | D100: 1083 | E100: 22.83 | F100: 7.981 | G100: 14.92 | I100: =B100*Portfolio!$B$3+Close!C100*Portfolio!$C$3+Close!D100*Portfolio!$D$3+Close!E100*Portfolio!$E$3+Close!F100*Portfolio!$F$3+Close!G100*Portfolio!$G$3 -> 380512 | J100: 1120.8 | K100: -26829.1 | L100: -20432.75
A101: 2001-05-29 | B101: 2.947 | C101: 357.68 | D101: 1066.05 | E101: 24.21 | F101: 7.999 | G101: 14.79 | I101: =B101*Portfolio!$B$3+Close!C101*Portfolio!$C$3+Close!D101*Portfolio!$D$3+Close!E101*Portfolio!$E$3+Close!F101*Portfolio!$F$3+Close!G101*Portfolio!$G$3 -> 380732.5 | J101: 220.5 | K101: -13891.5 | L101: -21790.5
A102: 2001-05-30 | B102: 3.024 | C102: 366.81 | D102: 1070.01 | E102: 24.18 | F102: 8.163 | G102: 14.68 | I102: =B102*Portfolio!$B$3+Close!C102*Portfolio!$C$3+Close!D102*Portfolio!$D$3+Close!E102*Portfolio!$E$3+Close!F102*Portfolio!$F$3+Close!G102*Portfolio!$G$3 -> 389464.1 | J102: 8731.6 | K102: -8847.6 | L102: -8907.9
A103: 2001-05-31 | B103: 3.046 | C103: 378.12 | D103: 1068.46 | E103: 25.02 | F103: 8.325 | G103: 14.8 | I103: =B103*Portfolio!$B$3+Close!C103*Portfolio!$C$3+Close!D103*Portfolio!$D$3+Close!E103*Portfolio!$E$3+Close!F103*Portfolio!$F$3+Close!G103*Portfolio!$G$3 -> 393841.6 | J103: 4377.5 | K103: 2403.6333 | L103: -28405.735
A104: 2001-06-01 | B104: 3.102 | C104: 394.21 | D104: 1088.96 | E104: 25.48 | F104: 8.456 | G104: 15.215 | I104: =B104*Portfolio!$B$3+Close!C104*Portfolio!$C$3+Close!D104*Portfolio!$D$3+Close!E104*Portfolio!$E$3+Close!F104*Portfolio!$F$3+Close!G104*Portfolio!$G$3 -> 402054.1 | J104: 8212.5 | K104: 22662.9 | L104: -18406.8333
A105: 2001-06-04 | B105: 3.188 | C105: 406.04 | D105: 1111.75 | E105: 27.56 | F105: 8.54 | G105: 16 | I105: =B105*Portfolio!$B$3+Close!C105*Portfolio!$C$3+Close!D105*Portfolio!$D$3+Close!E105*Portfolio!$E$3+Close!F105*Portfolio!$F$3+Close!G105*Portfolio!$G$3 -> 414621.5 | J105: 12567.4 | K105: 34109.5 | L105: 7280.4
A106: 2001-06-05 | B106: 3.158 | C106: 390.25333 | D106: 1142.34 | E106: 27.12 | F106: 8.215 | G106: 15.76 | I106: =B106*Portfolio!$B$3+Close!C106*Portfolio!$C$3+Close!D106*Portfolio!$D$3+Close!E106*Portfolio!$E$3+Close!F106*Portfolio!$F$3+Close!G106*Portfolio!$G$3 -> 409463.733 | J106: -5157.767 | K106: 28731.233 | L106: 14839.733
A107: 2001-06-06 | B107: 3.212 | C107: 383.38 | D107: 1137 | E107: 27.43 | F107: 8.108 | G107: 15.78 | I107: =B107*Portfolio!$B$3+Close!C107*Portfolio!$C$3+Close!D107*Portfolio!$D$3+Close!E107*Portfolio!$E$3+Close!F107*Portfolio!$F$3+Close!G107*Portfolio!$G$3 -> 414336 | J107: 4872.267 | K107: 24871.9 | L107: 16024.3
A108: 2001-06-07 | B108: 3.191 | C108: 372 | D108: 1113.16 | E108: 26.4 | F108: 7.966 | G108: 15.675 | I108: =B108*Portfolio!$B$3+Close!C108*Portfolio!$C$3+Close!D108*Portfolio!$D$3+Close!E108*Portfolio!$E$3+Close!F108*Portfolio!$F$3+Close!G108*Portfolio!$G$3 -> 409635.1 | J108: -4700.9 | K108: 15793.5 | L108: 18197.1333
A109: 2001-06-08 | B109: 3.24 | C109: 369.43 | D109: 1114.5 | E109: 26.79 | F109: 7.982 | G109: 16.25 | I109: =B109*Portfolio!$B$3+Close!C109*Portfolio!$C$3+Close!D109*Portfolio!$D$3+Close!E109*Portfolio!$E$3+Close!F109*Portfolio!$F$3+Close!G109*Portfolio!$G$3 -> 414985 | J109: 5349.9 | K109: 12930.9 | L109: 35593.8
A110: 2001-06-09 | B110: 3.238 | C110: 368.225 | D110: 1097.03333 | E110: 26.96 | F110: 8.037 | G110: 16.19 | I110: =B110*Portfolio!$B$3+Close!C110*Portfolio!$C$3+Close!D110*Portfolio!$D$3+Close!E110*Portfolio!$E$3+Close!F110*Portfolio!$F$3+Close!G110*Portfolio!$G$3 -> 414684.8333 | J110: -300.1667 | K110: 63.3333 | L110: 34172.8333
A111: 2001-06-13 | B111: 3.224 | C111: 369.82 | D111: 1122.06 | E111: 25.99 | F111: 7.814 | G111: 16.05 | I111: =B111*Portfolio!$B$3+Close!C111*Portfolio!$C$3+Close!D111*Portfolio!$D$3+Close!E111*Portfolio!$E$3+Close!F111*Portfolio!$F$3+Close!G111*Portfolio!$G$3 -> 412431.6 | J111: -2253.2333 | K111: 2967.867 | L111: 31699.1
A112: 2001-06-14 | B112: 3.131 | C112: 364.875 | D112: 1118.23 | E112: 25.9 | F112: 7.599 | G112: 15.6 | I112: =B112*Portfolio!$B$3+Close!C112*Portfolio!$C$3+Close!D112*Portfolio!$D$3+Close!E112*Portfolio!$E$3+Close!F112*Portfolio!$F$3+Close!G112*Portfolio!$G$3 -> 402068.8 | J112: -10362.8 | K112: -12267.2 | L112: 12604.7
A113: 2001-06-15 | B113: 3.198 | C113: 370.14 | D113: 1128.22 | E113: 26.14 | F113: 7.675 | G113: 15.69 | I113: =B113*Portfolio!$B$3+Close!C113*Portfolio!$C$3+Close!D113*Portfolio!$D$3+Close!E113*Portfolio!$E$3+Close!F113*Portfolio!$F$3+Close!G113*Portfolio!$G$3 -> 409756.2 | J113: 7687.4 | K113: 121.1 | L113: 15914.6
A114: 2001-06-18 | B114: 3.254 | C114: 380.11 | D114: 1162.93 | E114: 26.66 | F114: 7.891 | G114: 15.67333 | I114: =B114*Portfolio!$B$3+Close!C114*Portfolio!$C$3+Close!D114*Portfolio!$D$3+Close!E114*Portfolio!$E$3+Close!F114*Portfolio!$F$3+Close!G114*Portfolio!$G$3 -> 417427.965 | J114: 7671.765 | K114: 2442.965 | L114: 15373.865
A115: 2001-06-19 | B115: 3.316 | C115: 389.1 | D115: 1175.23 | E115: 27.38 | F115: 8.007 | G115: 16.32 | I115: =B115*Portfolio!$B$3+Close!C115*Portfolio!$C$3+Close!D115*Portfolio!$D$3+Close!E115*Portfolio!$E$3+Close!F115*Portfolio!$F$3+Close!G115*Portfolio!$G$3 -> 425809.3 | J115: 8381.335 | K115: 11124.4667 | L115: 11187.8
A116: 2001-06-20 | B116: 3.302 | C116: 384.28 | D116: 1167.995 | E116: 27.1 | F116: 7.917 | G116: 16.23 | I116: =B116*Portfolio!$B$3+Close!C116*Portfolio!$C$3+Close!D116*Portfolio!$D$3+Close!E116*Portfolio!$E$3+Close!F116*Portfolio!$F$3+Close!G116*Portfolio!$G$3 -> 423439.95 | J116: -2369.35 | K116: 11008.35 | L116: 13976.217
A117: 2001-06-21 | B117: 3.302 | C117: 391.1 | D117: 1163 | E117: 27.1 | F117: 7.941 | G117: 16.4 | I117: =B117*Portfolio!$B$3+Close!C117*Portfolio!$C$3+Close!D117*Portfolio!$D$3+Close!E117*Portfolio!$E$3+Close!F117*Portfolio!$F$3+Close!G117*Portfolio!$G$3 -> 424181 | J117: 741.05 | K117: 22112.2 | L117: 9845
A118: 2001-06-22 | B118: 3.341 | C118: 395.34 | D118: 1168.59 | E118: 27.43 | F118: 8.061 | G118: 16.915 | I118: =B118*Portfolio!$B$3+Close!C118*Portfolio!$C$3+Close!D118*Portfolio!$D$3+Close!E118*Portfolio!$E$3+Close!F118*Portfolio!$F$3+Close!G118*Portfolio!$G$3 -> 429268.4 | J118: 5087.4 | K118: 19512.2 | L118: 19633.3
A119: 2001-06-25 | B119: 3.291 | C119: 386.96 | D119: 1172.31 | E119: 26.88 | F119: 7.974 | G119: 16.85 | I119: =B119*Portfolio!$B$3+Close!C119*Portfolio!$C$3+Close!D119*Portfolio!$D$3+Close!E119*Portfolio!$E$3+Close!F119*Portfolio!$F$3+Close!G119*Portfolio!$G$3 -> 422798.1 | J119: -6470.3 | K119: 5370.135 | L119: 7813.1
A120: 2001-06-26 | B120: 3.268 | C120: 385.13 | D120: 1140.33667 | E120: 26 | F120: 7.751 | G120: 16.41 | I120: =B120*Portfolio!$B$3+Close!C120*Portfolio!$C$3+Close!D120*Portfolio!$D$3+Close!E120*Portfolio!$E$3+Close!F120*Portfolio!$F$3+Close!G120*Portfolio!$G$3 -> 418672.3667 | J120: -4125.7333 | K120: -7136.9333 | L120: 3987.5334
A121: 2001-06-27 | B121: 3.276 | C121: 383.01 | D121: 1092.03 | E121: 25.89 | F121: 7.706 | G121: 16.08 | I121: =B121*Portfolio!$B$3+Close!C121*Portfolio!$C$3+Close!D121*Portfolio!$D$3+Close!E121*Portfolio!$E$3+Close!F121*Portfolio!$F$3+Close!G121*Portfolio!$G$3 -> 418457.3 | J121: -215.0667 | K121: -4982.65 | L121: 6025.7
A122: 2001-06-28 | B122: 3.315 | C122: 365.73 | D122: 1104.89 | E122: 25.69 | F122: 7.534 | G122: 15.9 | I122: =B122*Portfolio!$B$3+Close!C122*Portfolio!$C$3+Close!D122*Portfolio!$D$3+Close!E122*Portfolio!$E$3+Close!F122*Portfolio!$F$3+Close!G122*Portfolio!$G$3 -> 420295.9 | J122: 1838.6 | K122: -3885.1 | L122: 18227.1
A123: 2001-06-29 | B123: 3.299 | C123: 350 | D123: 1099.8 | E123: 25.6 | F123: 7.394 | G123: 15.52 | I123: =B123*Portfolio!$B$3+Close!C123*Portfolio!$C$3+Close!D123*Portfolio!$D$3+Close!E123*Portfolio!$E$3+Close!F123*Portfolio!$F$3+Close!G123*Portfolio!$G$3 -> 416652 | J123: -3643.9 | K123: -12616.4 | L123: 6895.8
A124: 2001-07-02 | B124: 3.299 | C124: 344.97 | D124: 1068.32429 | E124: 25.62 | F124: 7.423 | G124: 15.2 | I124: =B124*Portfolio!$B$3+Close!C124*Portfolio!$C$3+Close!D124*Portfolio!$D$3+Close!E124*Portfolio!$E$3+Close!F124*Portfolio!$F$3+Close!G124*Portfolio!$G$3 -> 415723.2429 | J124: -928.7571 | K124: -7074.8571 | L124: -1704.7221
A125: 2001-07-03 | B125: 3.317 | C125: 335.76 | D125: 1053.89 | E125: 26.15 | F125: 7.337 | G125: 15.01 | I125: =B125*Portfolio!$B$3+Close!C125*Portfolio!$C$3+Close!D125*Portfolio!$D$3+Close!E125*Portfolio!$E$3+Close!F125*Portfolio!$F$3+Close!G125*Portfolio!$G$3 -> 416806.9 | J125: 1083.6571 | K125: -1865.4667 | L125: -9002.4
A126: 2001-07-04 | B126: 3.594 | C126: 347.9 | D126: 1090.5 | E126: 26.35 | F126: 7.31 | G126: 15.25 | I126: =B126*Portfolio!$B$3+Close!C126*Portfolio!$C$3+Close!D126*Portfolio!$D$3+Close!E126*Portfolio!$E$3+Close!F126*Portfolio!$F$3+Close!G126*Portfolio!$G$3 -> 446380 | J126: 29573.1 | K126: 27922.7 | L126: 22940.05
A127: 2001-07-05 | B127: 3.702 | C127: 347.62 | D127: 1083 | E127: 26.2 | F127: 7.557 | G127: 15.2 | I127: =B127*Portfolio!$B$3+Close!C127*Portfolio!$C$3+Close!D127*Portfolio!$D$3+Close!E127*Portfolio!$E$3+Close!F127*Portfolio!$F$3+Close!G127*Portfolio!$G$3 -> 457149 | J127: 10769 | K127: 36853.1 | L127: 32968
A128: 2001-07-06 | B128: 3.61 | C128: 336.29 | D128: 1055.55 | E128: 25.16 | F128: 7.277 | G128: 14.5 | I128: =B128*Portfolio!$B$3+Close!C128*Portfolio!$C$3+Close!D128*Portfolio!$D$3+Close!E128*Portfolio!$E$3+Close!F128*Portfolio!$F$3+Close!G128*Portfolio!$G$3 -> 444871.5 | J128: -12277.5 | K128: 28219.5 | L128: 15603.1
A129: 2001-07-09 | B129: 3.556 | C129: 336.36 | D129: 1053 | E129: 25.14333 | F129: 7.222 | G129: 14.18 | I129: =B129*Portfolio!$B$3+Close!C129*Portfolio!$C$3+Close!D129*Portfolio!$D$3+Close!E129*Portfolio!$E$3+Close!F129*Portfolio!$F$3+Close!G129*Portfolio!$G$3 -> 439221.33 | J129: -5650.17 | K129: 23498.0871 | L129: 16423.23
A130: 2001-07-10 | B130: 3.586 | C130: 332.43 | D130: 1053.99 | E130: 25 | F130: 7.107 | G130: 14.15 | I130: =B130*Portfolio!$B$3+Close!C130*Portfolio!$C$3+Close!D130*Portfolio!$D$3+Close!E130*Portfolio!$E$3+Close!F130*Portfolio!$F$3+Close!G130*Portfolio!$G$3 -> 441564.9 | J130: 2343.57 | K130: 24758 | L130: 22892.5333
A131: 2001-07-11 | B131: 3.393 | C131: 319.49 | D131: 1010 | E131: 22.77 | F131: 6.611 | G131: 13.17 | I131: =B131*Portfolio!$B$3+Close!C131*Portfolio!$C$3+Close!D131*Portfolio!$D$3+Close!E131*Portfolio!$E$3+Close!F131*Portfolio!$F$3+Close!G131*Portfolio!$G$3 -> 417315 | J131: =I131-I130 -> -24249.9 | K131: -29065 | L131: -1142.3
A132: 2001-07-12 | B132: 3.358 | C132: 315.74 | D132: 1014.5 | E132: 22.61 | F132: 6.943 | G132: 13.21 | I132: =B132*Portfolio!$B$3+Close!C132*Portfolio!$C$3+Close!D132*Portfolio!$D$3+Close!E132*Portfolio!$E$3+Close!F132*Portfolio!$F$3+Close!G132*Portfolio!$G$3 -> 413677 | J132: -3638 | K132: -43472 | L132: -6618.9
A133: 2001-07-13 | B133: 3.357 | C133: 322.57 | D133: 990.83 | E133: 22.2 | F133: 6.888 | G133: 13.39 | I133: =B133*Portfolio!$B$3+Close!C133*Portfolio!$C$3+Close!D133*Portfolio!$D$3+Close!E133*Portfolio!$E$3+Close!F133*Portfolio!$F$3+Close!G133*Portfolio!$G$3 -> 413648.3 | J133: -28.7 | K133: -31223.2 | L133: -3003.7
A134: 2001-07-16 | B134: 3.325 | C134: 325.29 | D134: 1012 | E134: 23 | F134: 7.055 | G134: 13.51 | I134: =B134*Portfolio!$B$3+Close!C134*Portfolio!$C$3+Close!D134*Portfolio!$D$3+Close!E134*Portfolio!$E$3+Close!F134*Portfolio!$F$3+Close!G134*Portfolio!$G$3 -> 411959 | J134: -1689.3 | K134: -27262.33 | L134: -3764.2429
A135: 2001-07-17 | B135: 3.231 | C135: 316 | D135: 1011.36667 | E135: 21.635 | F135: 6.858 | G135: 13.175 | I135: =B135*Portfolio!$B$3+Close!C135*Portfolio!$C$3+Close!D135*Portfolio!$D$3+Close!E135*Portfolio!$E$3+Close!F135*Portfolio!$F$3+Close!G135*Portfolio!$G$3 -> 399894.1667 | J135: -12064.8333 | K135: =I135-I130 -> -41670.7333 | L135: -16912.7333
A136: 2001-07-18 | B136: 3.178 | C136: 308.42 | D136: 995.34 | E136: 21.18 | F136: 6.607 | G136: 12.9 | I136: =B136*Portfolio!$B$3+Close!C136*Portfolio!$C$3+Close!D136*Portfolio!$D$3+Close!E136*Portfolio!$E$3+Close!F136*Portfolio!$F$3+Close!G136*Portfolio!$G$3 -> 392832.4 | J136: -7061.7667 | K136: -24482.6 | L136: -53547.6
A137: 2001-07-19 | B137: 3.297 | C137: 313 | D137: 1011 | E137: 21.71 | F137: 6.7 | G137: 13.1 | I137: =B137*Portfolio!$B$3+Close!C137*Portfolio!$C$3+Close!D137*Portfolio!$D$3+Close!E137*Portfolio!$E$3+Close!F137*Portfolio!$F$3+Close!G137*Portfolio!$G$3 -> 406070 | J137: 13237.6 | K137: -7607 | L137: -51079
A138: 2001-07-20 | B138: 3.239 | C138: 309.84 | D138: 996.18 | E138: 21.6 | F138: 6.685 | G138: 12.82 | I138: =B138*Portfolio!$B$3+Close!C138*Portfolio!$C$3+Close!D138*Portfolio!$D$3+Close!E138*Portfolio!$E$3+Close!F138*Portfolio!$F$3+Close!G138*Portfolio!$G$3 -> 399540.8 | J138: -6529.2 | K138: -14107.5 | L138: -45330.7
A139: 2001-07-23 | B139: 3.32 | C139: 305.8 | D139: 1003.35 | E139: 21.53 | F139: 6.845 | G139: 13.41 | I139: =B139*Portfolio!$B$3+Close!C139*Portfolio!$C$3+Close!D139*Portfolio!$D$3+Close!E139*Portfolio!$E$3+Close!F139*Portfolio!$F$3+Close!G139*Portfolio!$G$3 -> 407693.5 | J139: 8152.7 | K139: -4265.5 | L139: -31527.83
A140: 2001-07-24 | B140: 3.287 | C140: 299.15 | D140: 1000 | E140: 20.95 | F140: 6.718 | G140: 13.52 | I140: =B140*Portfolio!$B$3+Close!C140*Portfolio!$C$3+Close!D140*Portfolio!$D$3+Close!E140*Portfolio!$E$3+Close!F140*Portfolio!$F$3+Close!G140*Portfolio!$G$3 -> 403043 | J140: -4650.5 | K140: 3148.8333 | L140: -38521.9
A141: 2001-07-25 | B141: 3.32 | C141: 309.47 | D141: 1004 | E141: 21.29 | F141: 6.821 | G141: 14.08 | I141: =B141*Portfolio!$B$3+Close!C141*Portfolio!$C$3+Close!D141*Portfolio!$D$3+Close!E141*Portfolio!$E$3+Close!F141*Portfolio!$F$3+Close!G141*Portfolio!$G$3 -> 408138 | J141: 5095 | K141: 15305.6 | L141: -9177
A142: 2001-07-26 | B142: 3.367 | C142: 324.49 | D142: 1059 | E142: 21.39 | F142: 7.182 | G142: 14.33 | I142: =B142*Portfolio!$B$3+Close!C142*Portfolio!$C$3+Close!D142*Portfolio!$D$3+Close!E142*Portfolio!$E$3+Close!F142*Portfolio!$F$3+Close!G142*Portfolio!$G$3 -> 415476 | J142: 7338 | K142: 9406 | L142: 1799
A143: 2001-07-27 | B143: 3.256 | C143: 317.07 | D143: 1019.33 | E143: 20.94 | F143: 7.049 | G143: 13.8 | I143: =B143*Portfolio!$B$3+Close!C143*Portfolio!$C$3+Close!D143*Portfolio!$D$3+Close!E143*Portfolio!$E$3+Close!F143*Portfolio!$F$3+Close!G143*Portfolio!$G$3 -> 402389.3 | J143: -13086.7 | K143: 2848.5 | L143: =I143-I133 -> -11259
A144: 2001-07-30 | B144: 3.24 | C144: 318.08 | D144: 1019.965 | E144: 21.17 | F144: 6.99 | G144: 14.05 | I144: =B144*Portfolio!$B$3+Close!C144*Portfolio!$C$3+Close!D144*Portfolio!$D$3+Close!E144*Portfolio!$E$3+Close!F144*Portfolio!$F$3+Close!G144*Portfolio!$G$3 -> 401192.65 | J144: -1196.65 | K144: -6500.85 | L144: -10766.35
A145: 2001-07-31 | B145: 3.166 | C145: 310.45 | D145: 1000.33667 | E145: 21.07 | F145: 6.857 | G145: 13.89 | I145: =B145*Portfolio!$B$3+Close!C145*Portfolio!$C$3+Close!D145*Portfolio!$D$3+Close!E145*Portfolio!$E$3+Close!F145*Portfolio!$F$3+Close!G145*Portfolio!$G$3 -> 392520.3667 | J145: -8672.2833 | K145: -10522.6333 | L145: -7373.8
A146: 2001-08-01 | B146: 3.154 | C146: 316 | D146: 1033.82 | E146: 20.8 | F146: 6.855 | G146: 13.95 | I146: =B146*Portfolio!$B$3+Close!C146*Portfolio!$C$3+Close!D146*Portfolio!$D$3+Close!E146*Portfolio!$E$3+Close!F146*Portfolio!$F$3+Close!G146*Portfolio!$G$3 -> 391968.2 | J146: -552.1667 | K146: -16169.8 | L146: -864.2
A147: 2001-08-02 | B147: 3.198 | C147: 316.69 | D147: 1018.98 | E147: 20.96 | F147: 6.983 | G147: 14.22 | I147: =B147*Portfolio!$B$3+Close!C147*Portfolio!$C$3+Close!D147*Portfolio!$D$3+Close!E147*Portfolio!$E$3+Close!F147*Portfolio!$F$3+Close!G147*Portfolio!$G$3 -> 396711.8 | J147: 4743.6 | K147: -18764.2 | L147: -9358.2
A148: 2001-08-03 | B148: 3.156 | C148: 318.22857 | D148: 1012.5 | E148: 20.95 | F148: 6.955 | G148: 14.265 | I148: =B148*Portfolio!$B$3+Close!C148*Portfolio!$C$3+Close!D148*Portfolio!$D$3+Close!E148*Portfolio!$E$3+Close!F148*Portfolio!$F$3+Close!G148*Portfolio!$G$3 -> 392585.357 | J148: -4126.443 | K148: -9803.943 | L148: -6955.443
A149: 2001-08-06 | B149: 3.128 | C149: 316.99 | D149: 1001.205 | E149: 20.81 | F149: 6.803 | G149: 14 | I149: =B149*Portfolio!$B$3+Close!C149*Portfolio!$C$3+Close!D149*Portfolio!$D$3+Close!E149*Portfolio!$E$3+Close!F149*Portfolio!$F$3+Close!G149*Portfolio!$G$3 -> 389124.05 | J149: -3461.307 | K149: -12068.6 | L149: -18569.45
A150: 2001-08-07 | B150: 3.063 | C150: 310.7 | D150: 1000 | E150: 19.94 | F150: 6.77 | G150: 13.53 | I150: =B150*Portfolio!$B$3+Close!C150*Portfolio!$C$3+Close!D150*Portfolio!$D$3+Close!E150*Portfolio!$E$3+Close!F150*Portfolio!$F$3+Close!G150*Portfolio!$G$3 -> 380845 | J150: -8279.05 | K150: -11675.3667 | L150: -22198
A151: 2001-08-08 | B151: 3.103 | C151: 314.72 | D151: 999.9 | E151: 20.3 | F151: 6.829 | G151: 13.775 | I151: =B151*Portfolio!$B$3+Close!C151*Portfolio!$C$3+Close!D151*Portfolio!$D$3+Close!E151*Portfolio!$E$3+Close!F151*Portfolio!$F$3+Close!G151*Portfolio!$G$3 -> 385787.5 | J151: 4942.5 | K151: -6180.7 | L151: -22350.5
A152: 2001-08-09 | B152: 3.128 | C152: 319.1 | D152: 1006.71429 | E152: 20.08 | F152: 6.881 | G152: 13.91 | I152: =B152*Portfolio!$B$3+Close!C152*Portfolio!$C$3+Close!D152*Portfolio!$D$3+Close!E152*Portfolio!$E$3+Close!F152*Portfolio!$F$3+Close!G152*Portfolio!$G$3 -> 388693.1429 | J152: 2905.6429 | K152: -8018.6571 | L152: -26782.8571
A153: 2001-08-10 | B153: 3.14 | C153: 321.36 | D153: 1001 | E153: 20.08 | F153: 7.002 | G153: 14.22 | I153: =B153*Portfolio!$B$3+Close!C153*Portfolio!$C$3+Close!D153*Portfolio!$D$3+Close!E153*Portfolio!$E$3+Close!F153*Portfolio!$F$3+Close!G153*Portfolio!$G$3 -> 390338 | J153: 1644.8571 | K153: -2247.357 | L153: -12051.3
A154: 2001-08-13 | B154: 3.14 | C154: 323.18 | D154: 1014 | E154: 19.65 | F154: 7.039 | G154: 14.095 | I154: =B154*Portfolio!$B$3+Close!C154*Portfolio!$C$3+Close!D154*Portfolio!$D$3+Close!E154*Portfolio!$E$3+Close!F154*Portfolio!$F$3+Close!G154*Portfolio!$G$3 -> 390194.5 | J154: -143.5 | K154: 1070.45 | L154: -10998.15
A155: 2001-08-14 | B155: 3.184 | C155: 328.45 | D155: 1015 | E155: 19.94 | F155: 7.174 | G155: 14.34 | I155: =B155*Portfolio!$B$3+Close!C155*Portfolio!$C$3+Close!D155*Portfolio!$D$3+Close!E155*Portfolio!$E$3+Close!F155*Portfolio!$F$3+Close!G155*Portfolio!$G$3 -> 395679 | J155: 5484.5 | K155: 14834 | L155: 3158.6333
A156: 2001-08-15 | B156: 3.136 | C156: 317.17 | D156: 1010.89 | E156: 19.67 | F156: 7.17 | G156: 14.195 | I156: =B156*Portfolio!$B$3+Close!C156*Portfolio!$C$3+Close!D156*Portfolio!$D$3+Close!E156*Portfolio!$E$3+Close!F156*Portfolio!$F$3+Close!G156*Portfolio!$G$3 -> 389363.4 | J156: -6315.6 | K156: 3575.9 | L156: -2604.8
A157: 2001-08-16 | B157: 3.075 | C157: 314.67 | D157: 1005.99 | E157: 19.48 | F157: 7.07975 | G157: 14.25 | I157: =B157*Portfolio!$B$3+Close!C157*Portfolio!$C$3+Close!D157*Portfolio!$D$3+Close!E157*Portfolio!$E$3+Close!F157*Portfolio!$F$3+Close!G157*Portfolio!$G$3 -> 382711.65 | J157: -6651.75 | K157: -5981.4929 | L157: -14000.15
A158: 2001-08-17 | B158: 3.085 | C158: 313.23 | D158: 1002 | E158: 19.43 | F158: 7.085 | G158: 14.1 | I158: =B158*Portfolio!$B$3+Close!C158*Portfolio!$C$3+Close!D158*Portfolio!$D$3+Close!E158*Portfolio!$E$3+Close!F158*Portfolio!$F$3+Close!G158*Portfolio!$G$3 -> 383408 | J158: 696.35 | K158: -6930 | L158: -9177.357
A159: 2001-08-20 | B159: 3.124 | C159: 313.91 | D159: 1004 | E159: 19.48 | F159: 7.26 | G159: 14.3 | I159: =B159*Portfolio!$B$3+Close!C159*Portfolio!$C$3+Close!D159*Portfolio!$D$3+Close!E159*Portfolio!$E$3+Close!F159*Portfolio!$F$3+Close!G159*Portfolio!$G$3 -> 387721 | J159: 4313 | K159: -2473.5 | L159: -1403.05
A160: 2001-08-21 | B160: 3.124 | C160: 312.01 | D160: 1025.48 | E160: 19.3 | F160: 7.268 | G160: 14.4325 | I160: =B160*Portfolio!$B$3+Close!C160*Portfolio!$C$3+Close!D160*Portfolio!$D$3+Close!E160*Portfolio!$E$3+Close!F160*Portfolio!$F$3+Close!G160*Portfolio!$G$3 -> 387640.05 | J160: -80.95 | K160: -8038.95 | L160: 6795.05
A161: 2001-08-22 | B161: 3.201 | C161: 314.54 | D161: 1026 | E161: 19.87 | F161: 7.723 | G161: 14.84 | I161: =B161*Portfolio!$B$3+Close!C161*Portfolio!$C$3+Close!D161*Portfolio!$D$3+Close!E161*Portfolio!$E$3+Close!F161*Portfolio!$F$3+Close!G161*Portfolio!$G$3 -> 396827 | J161: 9186.95 | K161: 7463.6 | L161: 11039.5
A162: 2001-08-23 | B162: 3.254 | C162: 318.28 | D162: 1031 | E162: 20.23 | F162: 7.741 | G162: 14.75 | I162: =B162*Portfolio!$B$3+Close!C162*Portfolio!$C$3+Close!D162*Portfolio!$D$3+Close!E162*Portfolio!$E$3+Close!F162*Portfolio!$F$3+Close!G162*Portfolio!$G$3 -> 402884 | J162: 6057 | K162: 20172.35 | L162: 14190.8571
A163: 2001-08-24 | B163: 3.265 | C163: 322.12 | D163: 1033.85 | E163: 20.74444 | F163: 7.905 | G163: 14.875 | I163: =B163*Portfolio!$B$3+Close!C163*Portfolio!$C$3+Close!D163*Portfolio!$D$3+Close!E163*Portfolio!$E$3+Close!F163*Portfolio!$F$3+Close!G163*Portfolio!$G$3 -> 405137.44 | J163: 2253.44 | K163: 21729.44 | L163: 14799.44
A164: 2001-08-27 | B164: 3.278 | C164: 326.9 | D164: 1028.01 | E164: 20.79 | F164: 8.12 | G164: 15.25 | I164: =B164*Portfolio!$B$3+Close!C164*Portfolio!$C$3+Close!D164*Portfolio!$D$3+Close!E164*Portfolio!$E$3+Close!F164*Portfolio!$F$3+Close!G164*Portfolio!$G$3 -> 407305.1 | J164: 2167.66 | K164: 19584.1 | L164: 17110.6
A165: 2001-08-28 | B165: 3.296 | C165: 327.5 | D165: 1040 | E165: 20.76 | F165: 8.135 | G165: 15.34 | I165: =B165*Portfolio!$B$3+Close!C165*Portfolio!$C$3+Close!D165*Portfolio!$D$3+Close!E165*Portfolio!$E$3+Close!F165*Portfolio!$F$3+Close!G165*Portfolio!$G$3 -> 409315 | J165: 2009.9 | K165: 21674.95 | L165: 13636
A166: 2001-08-29 | B166: 3.258 | C166: 321.66 | D166: 1064.99 | E166: 20.59 | F166: 7.8625 | G166: 14.98 | I166: =B166*Portfolio!$B$3+Close!C166*Portfolio!$C$3+Close!D166*Portfolio!$D$3+Close!E166*Portfolio!$E$3+Close!F166*Portfolio!$F$3+Close!G166*Portfolio!$G$3 -> 404558.4 | J166: -4756.6 | K166: 7731.4 | L166: 15195
A167: 2001-08-30 | B167: 3.193 | C167: 317.01 | D167: 1060.96333 | E167: 20.4 | F167: 7.645 | G167: 14.66 | I167: =B167*Portfolio!$B$3+Close!C167*Portfolio!$C$3+Close!D167*Portfolio!$D$3+Close!E167*Portfolio!$E$3+Close!F167*Portfolio!$F$3+Close!G167*Portfolio!$G$3 -> 396985.6333 | J167: -7572.7667 | K167: -5898.3667 | L167: 14273.9833
A168: 2001-08-31 | B168: 3.177 | C168: 323 | D168: 1055 | E168: 20.37 | F168: 7.734 | G168: 14.76 | I168: =B168*Portfolio!$B$3+Close!C168*Portfolio!$C$3+Close!D168*Portfolio!$D$3+Close!E168*Portfolio!$E$3+Close!F168*Portfolio!$F$3+Close!G168*Portfolio!$G$3 -> 396034 | J168: -951.6333 | K168: -9103.44 | L168: 12626
A169: 2001-09-03 | B169: 3.231 | C169: 330.3 | D169: 1071.22 | E169: 20.21 | F169: 7.844 | G169: 14.8 | I169: =B169*Portfolio!$B$3+Close!C169*Portfolio!$C$3+Close!D169*Portfolio!$D$3+Close!E169*Portfolio!$E$3+Close!F169*Portfolio!$F$3+Close!G169*Portfolio!$G$3 -> 402296.2 | J169: 6262.2 | K169: -5008.9 | L169: 14575.2
A170: 2001-09-04 | B170: 3.279 | C170: 329.7 | D170: 1100.23 | E170: 20.38 | F170: 7.936 | G170: 14.85 | I170: =B170*Portfolio!$B$3+Close!C170*Portfolio!$C$3+Close!D170*Portfolio!$D$3+Close!E170*Portfolio!$E$3+Close!F170*Portfolio!$F$3+Close!G170*Portfolio!$G$3 -> 407613.3 | J170: 5317.1 | K170: -1701.7 | L170: 19973.25
A171: 2001-09-05 | B171: 3.263 | C171: 326.76 | D171: 1088 | E171: 20.22 | F171: 7.76033 | G171: 14.6 | I171: =B171*Portfolio!$B$3+Close!C171*Portfolio!$C$3+Close!D171*Portfolio!$D$3+Close!E171*Portfolio!$E$3+Close!F171*Portfolio!$F$3+Close!G171*Portfolio!$G$3 -> 405136.33 | J171: -2476.97 | K171: 577.93 | L171: 8309.33
A172: 2001-09-06 | B172: 3.232 | C172: 324.98 | D172: 1076.5 | E172: 20.02 | F172: 7.741 | G172: 14.69 | I172: =B172*Portfolio!$B$3+Close!C172*Portfolio!$C$3+Close!D172*Portfolio!$D$3+Close!E172*Portfolio!$E$3+Close!F172*Portfolio!$F$3+Close!G172*Portfolio!$G$3 -> 401569 | J172: -3567.33 | K172: 4583.3667 | L172: -1315
A173: 2001-09-07 | B173: 3.199 | C173: 325.65 | D173: 1076.1 | E173: 19.76 | F173: 7.7045 | G173: 14.46 | I173: =B173*Portfolio!$B$3+Close!C173*Portfolio!$C$3+Close!D173*Portfolio!$D$3+Close!E173*Portfolio!$E$3+Close!F173*Portfolio!$F$3+Close!G173*Portfolio!$G$3 -> 397920.5 | J173: -3648.5 | K173: 1886.5 | L173: -7216.94
A174: 2001-09-10 | B174: 3.136 | C174: 323.91 | D174: 1058.06 | E174: 19.29 | F174: 7.53 | G174: 14.36 | I174: =B174*Portfolio!$B$3+Close!C174*Portfolio!$C$3+Close!D174*Portfolio!$D$3+Close!E174*Portfolio!$E$3+Close!F174*Portfolio!$F$3+Close!G174*Portfolio!$G$3 -> 390571.6 | J174: -7348.9 | K174: -11724.6 | L174: -16733.5
A175: 2001-09-11 | B175: 3.071 | C175: 329.99 | D175: 1047.14 | E175: 18.91 | F175: 7.64 | G175: 14.58 | I175: =B175*Portfolio!$B$3+Close!C175*Portfolio!$C$3+Close!D175*Portfolio!$D$3+Close!E175*Portfolio!$E$3+Close!F175*Portfolio!$F$3+Close!G175*Portfolio!$G$3 -> 384410.4 | J175: -6161.2 | K175: -23202.9 | L175: -24904.6
A176: 2001-09-12 | B176: 2.808 | C176: 313.25 | D176: 983.44 | E176: 17.16 | F176: 7.155 | G176: 14 | I176: =B176*Portfolio!$B$3+Close!C176*Portfolio!$C$3+Close!D176*Portfolio!$D$3+Close!E176*Portfolio!$E$3+Close!F176*Portfolio!$F$3+Close!G176*Portfolio!$G$3 -> 353274.4 | J176: -31136 | K176: -51861.93 | L176: -51284
A177: 2001-09-13 | B177: 2.837 | C177: 315 | D177: 997 | E177: 17.31 | F177: 7.219 | G177: 14.4 | I177: =B177*Portfolio!$B$3+Close!C177*Portfolio!$C$3+Close!D177*Portfolio!$D$3+Close!E177*Portfolio!$E$3+Close!F177*Portfolio!$F$3+Close!G177*Portfolio!$G$3 -> 356899 | J177: 3624.6 | K177: -44670 | L177: -40086.6333
A178: 2001-09-14 | B178: 2.678 | C178: 301.33 | D178: 982.01 | E178: 16.27 | F178: 7.052 | G178: 14.03 | I178: =B178*Portfolio!$B$3+Close!C178*Portfolio!$C$3+Close!D178*Portfolio!$D$3+Close!E178*Portfolio!$E$3+Close!F178*Portfolio!$F$3+Close!G178*Portfolio!$G$3 -> 338090.1 | J178: -18808.9 | K178: -59830.4 | L178: -57943.9
A179: 2001-09-17 | B179: 2.61 | C179: 303.78 | D179: 972.29 | E179: 15.89 | F179: 6.939 | G179: 13.83667 | I179: =B179*Portfolio!$B$3+Close!C179*Portfolio!$C$3+Close!D179*Portfolio!$D$3+Close!E179*Portfolio!$E$3+Close!F179*Portfolio!$F$3+Close!G179*Portfolio!$G$3 -> 330848.235 | J179: -7241.865 | K179: -59723.365 | L179: -71447.965
A180: 2001-09-18 | B180: 2.654 | C180: 308 | D180: 984.41 | E180: 16.47 | F180: 7.25 | G180: 14.1 | I180: =B180*Portfolio!$B$3+Close!C180*Portfolio!$C$3+Close!D180*Portfolio!$D$3+Close!E180*Portfolio!$E$3+Close!F180*Portfolio!$F$3+Close!G180*Portfolio!$G$3 -> 336814.1 | J180: 5965.865 | K180: -47596.3 | L180: -70799.2
A181: 2001-09-19 | B181: 2.737 | C181: 317.93 | D181: 984.95 | E181: 16.75 | F181: 7.47 | G181: 14.2 | I181: =B181*Portfolio!$B$3+Close!C181*Portfolio!$C$3+Close!D181*Portfolio!$D$3+Close!E181*Portfolio!$E$3+Close!F181*Portfolio!$F$3+Close!G181*Portfolio!$G$3 -> 346662.5 | J181: 9848.4 | K181: -6611.9 | L181: -58473.83
A182: 2001-09-20 | B182: 2.623 | C182: 312.944 | D182: 951.99 | E182: 16.1 | F182: 7.215 | G182: 13.92 | I182: =B182*Portfolio!$B$3+Close!C182*Portfolio!$C$3+Close!D182*Portfolio!$D$3+Close!E182*Portfolio!$E$3+Close!F182*Portfolio!$F$3+Close!G182*Portfolio!$G$3 -> 333389.3 | J182: -13273.2 | K182: -23509.7 | L182: -68179.7
A183: 2001-09-21 | B183: 2.466 | C183: 291.435 | D183: 908.55 | E183: 14.91 | F183: 6.846 | G183: 12.94 | I183: =B183*Portfolio!$B$3+Close!C183*Portfolio!$C$3+Close!D183*Portfolio!$D$3+Close!E183*Portfolio!$E$3+Close!F183*Portfolio!$F$3+Close!G183*Portfolio!$G$3 -> 313055 | J183: -20334.3 | K183: -25035.1 | L183: -84865.5
A184: 2001-09-24 | B184: 2.594 | C184: 288.39 | D184: 893.36 | E184: 15.315 | F184: 6.874 | G184: 12.95 | I184: =B184*Portfolio!$B$3+Close!C184*Portfolio!$C$3+Close!D184*Portfolio!$D$3+Close!E184*Portfolio!$E$3+Close!F184*Portfolio!$F$3+Close!G184*Portfolio!$G$3 -> 325836.6 | J184: 12781.6 | K184: -5011.635 | L184: -64735
A185: 2001-09-25 | B185: 2.524 | C185: 277 | D185: 859.77 | E185: 14.84 | F185: 6.494 | G185: 12.35 | I185: =B185*Portfolio!$B$3+Close!C185*Portfolio!$C$3+Close!D185*Portfolio!$D$3+Close!E185*Portfolio!$E$3+Close!F185*Portfolio!$F$3+Close!G185*Portfolio!$G$3 -> 316206.7 | J185: -9629.9 | K185: -20607.4 | L185: -68203.7
A186: 2001-09-26 | B186: 2.507 | C186: 272.49 | D186: 864 | E186: 15.36 | F186: 6.355 | G186: 12.29 | I186: =B186*Portfolio!$B$3+Close!C186*Portfolio!$C$3+Close!D186*Portfolio!$D$3+Close!E186*Portfolio!$E$3+Close!F186*Portfolio!$F$3+Close!G186*Portfolio!$G$3 -> 314449 | J186: -1757.7 | K186: -32213.5 | L186: -38825.4
A187: 2001-09-27 | B187: 2.496 | C187: 270.96 | D187: 874.83 | E187: 14.92 | F187: 6.4 | G187: 12.45 | I187: =B187*Portfolio!$B$3+Close!C187*Portfolio!$C$3+Close!D187*Portfolio!$D$3+Close!E187*Portfolio!$E$3+Close!F187*Portfolio!$F$3+Close!G187*Portfolio!$G$3 -> 312989.3 | J187: -1459.7 | K187: -20400 | L187: -43909.7
A188: 2001-09-28 | B188: 2.589 | C188: 275.93 | D188: 889.65 | E188: 14.96 | F188: 6.569 | G188: 12.59 | I188: =B188*Portfolio!$B$3+Close!C188*Portfolio!$C$3+Close!D188*Portfolio!$D$3+Close!E188*Portfolio!$E$3+Close!F188*Portfolio!$F$3+Close!G188*Portfolio!$G$3 -> 323213.5 | J188: 10224.2 | K188: 10158.5 | L188: -14876.6
A189: 2001-10-01 | B189: 2.5805 | C189: 274.45 | D189: 890 | E189: 14.8 | F189: 6.545 | G189: 12.6 | I189: =B189*Portfolio!$B$3+Close!C189*Portfolio!$C$3+Close!D189*Portfolio!$D$3+Close!E189*Portfolio!$E$3+Close!F189*Portfolio!$F$3+Close!G189*Portfolio!$G$3 -> 322040 | J189: -1173.5 | K189: -3796.6 | L189: -8808.235
A190: 2001-10-02 | B190: 2.551 | C190: 276.445 | D190: 896.5 | E190: 14.24 | F190: 6.511 | G190: 12.28 | I190: =B190*Portfolio!$B$3+Close!C190*Portfolio!$C$3+Close!D190*Portfolio!$D$3+Close!E190*Portfolio!$E$3+Close!F190*Portfolio!$F$3+Close!G190*Portfolio!$G$3 -> 318600.5 | J190: -3439.5 | K190: 2393.8 | L190: -18213.6
A191: 2001-10-03 | B191: 2.471 | C191: 267.95 | D191: 878.61 | E191: 13.42 | F191: 6.292 | G191: 12 | I191: =B191*Portfolio!$B$3+Close!C191*Portfolio!$C$3+Close!D191*Portfolio!$D$3+Close!E191*Portfolio!$E$3+Close!F191*Portfolio!$F$3+Close!G191*Portfolio!$G$3 -> 308393.1 | J191: -10207.4 | K191: -6055.9 | L191: -38269.4
A192: 2001-10-04 | B192: 2.55 | C192: 271.04 | D192: 890 | E192: 13.85 | F192: 6.44867 | G192: 12.25 | I192: =B192*Portfolio!$B$3+Close!C192*Portfolio!$C$3+Close!D192*Portfolio!$D$3+Close!E192*Portfolio!$E$3+Close!F192*Portfolio!$F$3+Close!G192*Portfolio!$G$3 -> 317427.67 | J192: 9034.57 | K192: 4438.37 | L192: -15961.63
A193: 2001-10-05 | B193: 2.541 | C193: 270.26 | D193: 905 | E193: 14.56 | F193: 6.46533 | G193: 12.2 | I193: =B193*Portfolio!$B$3+Close!C193*Portfolio!$C$3+Close!D193*Portfolio!$D$3+Close!E193*Portfolio!$E$3+Close!F193*Portfolio!$F$3+Close!G193*Portfolio!$G$3 -> 317301.33 | J193: -126.34 | K193: -5912.17 | L193: 4246.33
A194: 2001-10-08 | B194: 2.519 | C194: 274.4 | D194: 900 | E194: 14.46 | F194: 6.417 | G194: 12.04 | I194: =B194*Portfolio!$B$3+Close!C194*Portfolio!$C$3+Close!D194*Portfolio!$D$3+Close!E194*Portfolio!$E$3+Close!F194*Portfolio!$F$3+Close!G194*Portfolio!$G$3 -> 315237 | J194: -2064.33 | K194: -6803 | L194: -10599.6
A195: 2001-10-09 | B195: 2.575 | C195: 277.47 | D195: 908.95 | E195: 14.88 | F195: 6.56 | G195: 12.345 | I195: =B195*Portfolio!$B$3+Close!C195*Portfolio!$C$3+Close!D195*Portfolio!$D$3+Close!E195*Portfolio!$E$3+Close!F195*Portfolio!$F$3+Close!G195*Portfolio!$G$3 -> 321949 | J195: =I195-I194 -> 6712 | K195: 3348.5 | L195: 5742.3
A196: 2001-10-10 | B196: 2.677 | C196: 286.59 | D196: 930.01 | E196: 15.7 | F196: 6.87114 | G196: 12.57 | I196: =B196*Portfolio!$B$3+Close!C196*Portfolio!$C$3+Close!D196*Portfolio!$D$3+Close!E196*Portfolio!$E$3+Close!F196*Portfolio!$F$3+Close!G196*Portfolio!$G$3 -> 334515.24 | J196: 12566.24 | K196: 26122.14 | L196: 20066.24
A197: 2001-10-11 | B197: 2.802 | C197: 302.99429 | D197: 959.7 | E197: 16.51 | F197: 7.30333 | G197: 13.2 | I197: =B197*Portfolio!$B$3+Close!C197*Portfolio!$C$3+Close!D197*Portfolio!$D$3+Close!E197*Portfolio!$E$3+Close!F197*Portfolio!$F$3+Close!G197*Portfolio!$G$3 -> 350509.759 | J197: 15994.519 | K197: 33082.089 | L197: 37520.459
A198: 2001-10-12 | B198: 2.7516 | C198: 303.65 | D198: 965 | E198: 16.15 | F198: 7.28 | G198: 13.05 | I198: =B198*Portfolio!$B$3+Close!C198*Portfolio!$C$3+Close!D198*Portfolio!$D$3+Close!E198*Portfolio!$E$3+Close!F198*Portfolio!$F$3+Close!G198*Portfolio!$G$3 -> 345130 | J198: -5379.759 | K198: 27828.67 | L198: 21916.5
A199: 2001-10-15 | B199: 2.699 | C199: 299.97 | D199: 968.25 | E199: 15.86 | F199: 7.19 | G199: 12.82 | I199: =B199*Portfolio!$B$3+Close!C199*Portfolio!$C$3+Close!D199*Portfolio!$D$3+Close!E199*Portfolio!$E$3+Close!F199*Portfolio!$F$3+Close!G199*Portfolio!$G$3 -> 339039.5 | J199: -6090.5 | K199: =I199-I194 -> 23802.5 | L199: 16999.5
A200: 2001-10-16 | B200: 2.766 | C200: 303.29 | D200: 972.18 | E200: 16.71 | F200: 7.392 | G200: 13.17 | I200: =B200*Portfolio!$B$3+Close!C200*Portfolio!$C$3+Close!D200*Portfolio!$D$3+Close!E200*Portfolio!$E$3+Close!F200*Portfolio!$F$3+Close!G200*Portfolio!$G$3 -> 347337.8 | J200: 8298.3 | K200: 25388.8 | L200: 28737.3
... 268 more rows

Sheet Portfolio
B2: EESR | C2: LKOH | D2: SBER | E2: RTKM | F2: SNGS | G2: TATN
A3: Акций в портфеле | B3: 100000 | C3: 100 | D3: 10 | E3: 1000 | F3: 1000 | G3: 500
